Workbook

Sheet 入力部
A1: カレンダープリント（2000〜2099年対応版） Ver. 1.1.3 Alpha
A3: 欲しいカレンダー年を「西暦年4ケタ」で入力するよろし → | J3: 2021
C5: 欲しいもののボタンをポチッとな(^o^) →
B8: 春分・秋分日計算の関係上、2000〜2099年までの対応です。ご容赦くださいませ m(_ _)m。
P10: [ Concept & Make out by AN2 -- Feb. 18th (SAT) 2011 ] | R10: z = (y + [y/4] - [y/100] + [y/400] + [2.6*m + 1.6] + d) % 7
C12: プリント年 | G12: うるう年2月日数判定 | K12: 春分・秋分日判定 | R12: 干支判定
C13: =$J$3 -> 2021 | G13: 計算部 | K13: 計算部 | M13: （翌年） | R13: 十干計算 | T13: 十二支計算
G14: =MOD(J3,4) -> 1 | H14: =MOD(J3,100) -> 21 | I14: =MOD(J3,400) -> 21 | K14: (a) | L14: =(C13-2000)*0.242194 -> 5.086074 | M14: (a) | N14: =((C13+1)-2000)*0.242194 -> 5.328268 | R14: (a) | S14: =IF($J$3<2000,"",MOD($J$3-2000,10)) -> 1 | T14: (c) | U14: =IF($J$3<2000,"",MOD($J$3-2000,12)) -> 9
C15: 曜日判定（Zellerの公式） | G15: =MOD(J3+1,4) -> 2 | H15: =MOD(J3+1,100) -> 22 | I15: =MOD(J3+1,400) -> 22 | K15: (b) | L15: =INT((C13-2000)/4) -> 5 | M15: (b) | N15: =INT(((C13+1)-2000)/4) -> 5 | R15: (b) | S15: =IF($J$3<2000,"",IF($J$3<2000,"",IF($S$14+7>10,($S$14+7)-10,$S$14+7))) -> 8 | T15: (d) | U15: =IF($J$3<2000,"",IF($U$14+5>12,($U$14+5)-12,$U$14+5)) -> 2
G16: 判定表示 | R16: 判定表示
C17: 12月 | D17: =ROUNDDOWN(MOD(E17,7),0) -> 2 | E17: =(C13-1)+ROUNDDOWN(((C13-1)/4),0)-ROUNDDOWN(((C13-1)/100),0)+ROUNDDOWN(((C13-1)/400),0)+ROUNDDOWN((2.6*(12)+1.6),0)+1 -> 2543 | G17: =$C$13&"年" -> 2021年 | H17: =IF(G14=0,IF(H14=0,IF(I14=0,29,28),29),28) -> 28 | K17: 春分日 | L17: =INT(20.69115+L14-L15) -> 20 | M17: 春分日 | N17: =INT(20.69115+N14-N15) -> 21 | R17: 干支： | S17: =IF($S$15="","",VLOOKUP($S$15,■十干,2)&VLOOKUP($U$15,■十二支,2)) -> 辛丑 | T17: =IF($S$15="","",VLOOKUP($S$15,■十干,3)&VLOOKUP($U$15,■十二支,3)) -> しんちゅう | U17: =IF($S$15="","",VLOOKUP($S$15,■十干,4)&VLOOKUP($U$15,■十二支,4)) -> かのとうし
C18: 1月 | D18: 5 | E18: =(C13-1)+ROUNDDOWN(((C13-1)/4),0)-ROUNDDOWN(((C13-1)/100),0)+ROUNDDOWN(((C13-1)/400),0)+ROUNDDOWN((2.6*(1+12)+1.6),0)+1 -> 2546 | G18: =$C$13+1&"年" -> 2022年 | H18: =IF(G15=0,IF(H15=0,IF(I15=0,29,28),29),28) -> 28 | K18: 秋分日 | L18: =INT(23.09+L14-L15) -> 23 | M18: 秋分日 | N18: =INT(23.09+N14-N15) -> 23
C19: 2月 | D19: 1 | E19: =(C13-1)+ROUNDDOWN(((C13-1)/4),0)-ROUNDDOWN(((C13-1)/100),0)+ROUNDDOWN(((C13-1)/400),0)+ROUNDDOWN((2.6*(2+12)+1.6),0)+1 -> 2549 | R19: 元号
C20: 3月 | D20: 1 | E20: =C13+ROUNDDOWN((C13/4),0)-ROUNDDOWN((C13/100),0)+ROUNDDOWN((C13/400),0)+ROUNDDOWN((2.6*(3)+1.6),0)+1 -> 2521 | R20: 平成 | S20: 2019/4/30まで
C21: 4月 | D21: 4 | E21: =C13+ROUNDDOWN((C13/4),0)-ROUNDDOWN((C13/100),0)+ROUNDDOWN((C13/400),0)+ROUNDDOWN((2.6*(4)+1.6),0)+1 -> 2524 | R21: 令和 | S21: 2019/5/1から
C22: 5月 | D22: 6 | E22: =C13+ROUNDDOWN((C13/4),0)-ROUNDDOWN((C13/100),0)+ROUNDDOWN((C13/400),0)+ROUNDDOWN((2.6*(5)+1.6),0)+1 -> 2526
C23: 6月 | D23: 2 | E23: =C13+ROUNDDOWN((C13/4),0)-ROUNDDOWN((C13/100),0)+ROUNDDOWN((C13/400),0)+ROUNDDOWN((2.6*(6)+1.6),0)+1 -> 2529
C24: 7月 | D24: 4 | E24: =C13+ROUNDDOWN((C13/4),0)-ROUNDDOWN((C13/100),0)+ROUNDDOWN((C13/400),0)+ROUNDDOWN((2.6*(7)+1.6),0)+1 -> 2531 | R24: 十干リスト | W24: 十二支リスト
C25: 8月 | D25: 0 | E25: =C13+ROUNDDOWN((C13/4),0)-ROUNDDOWN((C13/100),0)+ROUNDDOWN((C13/400),0)+ROUNDDOWN((2.6*(8)+1.6),0)+1 -> 2534 | R25: 1 | S25: 甲 | T25: こう | U25: きのえ | W25: 1 | X25: 子 | Y25: し | Z25: ね
C26: 9月 | D26: 3 | E26: =C13+ROUNDDOWN((C13/4),0)-ROUNDDOWN((C13/100),0)+ROUNDDOWN((C13/400),0)+ROUNDDOWN((2.6*(9)+1.6),0)+1 -> 2537 | R26: 2 | S26: 乙 | T26: いつ | U26: きのと | W26: 2 | X26: 丑 | Y26: ちゅう | Z26: うし
C27: 10月 | D27: 5 | E27: =C13+ROUNDDOWN((C13/4),0)-ROUNDDOWN((C13/100),0)+ROUNDDOWN((C13/400),0)+ROUNDDOWN((2.6*(10)+1.6),0)+1 -> 2539 | R27: 3 | S27: 丙 | T27: へい | U27: ひのえ | W27: 3 | X27: 寅 | Y27: いん | Z27: とら
C28: 11月 | D28: 1 | E28: =C13+ROUNDDOWN((C13/4),0)-ROUNDDOWN((C13/100),0)+ROUNDDOWN((C13/400),0)+ROUNDDOWN((2.6*(11)+1.6),0)+1 -> 2542 | R28: 4 | S28: 丁 | T28: てい | U28: ひのと | W28: 4 | X28: 卯 | Y28: ぼう | Z28: う
C29: 12月 | D29: 3 | E29: =C13+ROUNDDOWN((C13/4),0)-ROUNDDOWN((C13/100),0)+ROUNDDOWN((C13/400),0)+ROUNDDOWN((2.6*(12)+1.6),0)+1 -> 2544 | R29: 5 | S29: 戊 | T29: ぼ | U29: つちのえ | W29: 5 | X29: 辰 | Y29: しん | Z29: たつ
C30: 1月 | D30: 6 | E30: =C13+ROUNDDOWN((C13/4),0)-ROUNDDOWN((C13/100),0)+ROUNDDOWN((C13/400),0)+ROUNDDOWN((2.6*(1+12)+1.6),0)+1 -> 2547 | R30: 6 | S30: 己 | T30: き | U30: つちのと | W30: 6 | X30: 巳 | Y30: し | Z30: み
C31: 2月 | D31: 2 | E31: =C13+ROUNDDOWN((C13/4),0)-ROUNDDOWN((C13/100),0)+ROUNDDOWN((C13/400),0)+ROUNDDOWN((2.6*(2+12)+1.6),0)+1 -> 2550 | R31: 7 | S31: 庚 | T31: こう | U31: かのえ | W31: 7 | X31: 午 | Y31: ご | Z31: うま
C32: 3月 | D32: 2 | E32: =(C13+1)+ROUNDDOWN(((C13+1)/4),0)-ROUNDDOWN(((C13+1)/100),0)+ROUNDDOWN(((C13+1)/400),0)+ROUNDDOWN((2.6*(3)+1.6),0)+1 -> 2522 | R32: 8 | S32: 辛 | T32: しん | U32: かのと | W32: 8 | X32: 未 | Y32: び | Z32: ひつじ
R33: 9 | S33: 壬 | T33: じん | U33: みずのえ | W33: 9 | X33: 申 | Y33: しん | Z33: さる
B34: 月ごとタブ用紙設定用参考（A4作成時） | R34: 10 | S34: 癸 | T34: き | U34: みずのと | W34: 10 | X34: 酉 | Y34: ゆう | Z34: とり
B35: 環境設定デフォルトフォント | W35: 11 | X35: 戌 | Y35: じゅつ | Z35: いぬ
B36: ヒラギノ角ゴPro W6 12ポイント | W36: 12 | X36: 亥 | Y36: がい | Z36: い
B37: セル（プリント部）
B38: 幅： | C38: 0.67cm
B39: 高さ： | C39: 0.71cm
B40: A3変更用データ
B41: 縮尺率（A4→A3）：141%
B42: セル（プリント部）
B43: 幅： | C43: 0.95cm
B44: 高さ： | C44: 0.99cm

Sheet 1
B1: ☝この点線のところで一度折り曲げると切り取りやすいですよ♡ | AG1: 設定部 | AH1: =IF(AG3<2020,入力部!R20,入力部!R21) -> 令和
C2: １２月 | K2: =IF(AH1=0,DBCS(AG3)&"年",DBCS(AG3)&"年 ／ "&AH1&DBCS(AH3)&"年") -> ２０２１年 ／ 令和３年 | X2: ２月 | AG2: 西暦 | AH2: 和暦 | AI2: うるう年判定
A3: =IF($AH$5=0,1,"") ->  | B3: =IF($AH$5=1,1,IF(A3="","",A3+1)) ->  | C3: =IF($AH$5=2,1,IF(B3="","",B3+1)) -> 1 | D3: =IF($AH$5=3,1,IF(C3="","",C3+1)) -> 2 | E3: =IF($AH$5=4,1,IF(D3="","",D3+1)) -> 3 | F3: =IF($AH$5=5,1,IF(E3="","",E3+1)) -> 4 | G3: =IF($AH$5=6,1,IF(F3="","",F3+1)) -> 5 | J3: 1 | V3: =IF($AH$7=0,1,"") ->  | W3: =IF($AH$7=1,1,IF(V3="","",V3+1)) -> 1 | X3: =IF($AH$7=2,1,IF(W3="","",W3+1)) -> 2 | Y3: =IF($AH$7=3,1,IF(X3="","",X3+1)) -> 3 | Z3: =IF($AH$7=4,1,IF(Y3="","",Y3+1)) -> 4 | AA3: =IF($AH$7=5,1,IF(Z3="","",Z3+1)) -> 5 | AB3: =IF($AH$7=6,1,IF(AA3="","",AA3+1)) -> 6 | AG3: =入力部!J3 -> 2021 | AH3: =IF(AG3<2020,AG3-2000+12,IF(AG3-2018=1,"元",AG3-2018)) -> 3 | AI3: =入力部!H17 -> 28
A4: =G3+1 -> 6 | B4: =A4+1 -> 7 | C4: 8 | D4: 9 | E4: 10 | F4: 11 | G4: 12 | V4: =AB3+1 -> 7 | W4: =V4+1 -> 8 | X4: 9 | Y4: 10 | Z4: 11 | AA4: 12 | AB4: 13 | AG4: 曜日計算
A5: =G4+1 -> 13 | B5: 14 | C5: 15 | D5: 16 | E5: 17 | F5: 18 | G5: 19 | V5: =AB4+1 -> 14 | W5: 15 | X5: 16 | Y5: 17 | Z5: 18 | AA5: 19 | AB5: 20 | AG5: 前月 | AH5: =入力部!D17 -> 2
A6: =G5+1 -> 20 | B6: 21 | C6: 22 | D6: 23 | E6: 24 | F6: 25 | G6: 26 | V6: =AB5+1 -> 21 | W6: 22 | X6: 23 | Y6: 24 | Z6: 25 | AA6: 26 | AB6: 27 | AG6: 当月 | AH6: =入力部!D18 -> 5
A7: =G6+1 -> 27 | B7: =A7+1 -> 28 | C7: =IF(B7=31,"",IF(B7="","",B7+1)) -> 29 | D7: 30 | E7: 31 | V7: =IF(AB6=$AI$3,"",IF(AB6="","",AB6+1)) -> 28 | W7: =IF(V7=$AI$3,"",IF(V7="","",V7+1)) ->  | AG7: 次月 | AH7: =入力部!D19 -> 1
A8: =IF(G7=31,"",IF(G7="","",G7+1)) ->  | B8: =IF(A8=31,"",IF(A8="","",A8+1)) ->  | K8: =IF(入力部!$T$17="","",入力部!$T$17&"／") -> しんちゅう／ | N8: =IF(入力部!$S$17="","",入力部!$S$17) -> 辛丑 | P8: =IF(入力部!$U$17="","","／"&入力部!$U$17) -> ／かのとうし | V8: =IF(AB7=$AI$3,"",IF(AB7="","",AB7+1)) -> 
A9: ＳＵＮ | E9: ＭＯＮ | I9: ＴＵＥ | M9: ＷＥＤ | Q9: ＴＨＵ | U9: ＦＲＩ | Y9: ＳＡＴ | AG9: 祝日データ
A10: =IF($AH$6=0,1,"") ->  | B10: =IF(Z14=1,1,IF(A10="","",A10+1)) ->  | C10: =IF(Z14=2,1,IF(B10="","",B10+1)) ->  | D10: =IF(Z14=3,1,IF(C10="","",C10+1)) ->  | E10: =IF($AH$6=1,1,IF(A10="","",A10+1)) ->  | I10: =IF($AH$6=2,1,IF(E10="","",E10+1)) ->  | M10: =IF($AH$6=3,1,IF(I10="","",I10+1)) ->  | Q10: =IF($AH$6=4,1,IF(M10="","",M10+1)) ->  | U10: =IF($AH$6=5,1,IF(Q10="","",Q10+1)) -> 1 | Y10: =IF($AH$6=6,1,IF(U10="","",U10+1)) -> 2 | AG10: 元日
A11: =IF(Z15=0,1,"") -> 1 | B11: =IF(Z15=1,1,IF(A11="","",A11+1)) -> 2 | C11: =IF(Z15=2,1,IF(B11="","",B11+1)) -> 3 | D11: =IF(Z15=3,1,IF(C11="","",C11+1)) -> 4 | AG11: 1月1日 年のはじめを祝う。
A12: =IF(Z16=0,1,"") -> 1 | B12: =IF(Z16=1,1,IF(A12="","",A12+1)) -> 2 | C12: =IF(Z16=2,1,IF(B12="","",B12+1)) -> 3 | D12: =IF(Z16=3,1,IF(C12="","",C12+1)) -> 4 | AG12: 成人の日
AG13: 1月の第2月曜日 おとなになったことを自覚し、みずから生き抜こうとする青年を祝いはげます。
A14: =IF(A10=1,"元 日","") ->  | E14: =IF(E10=1,"元 日",IF(E10=2,"振替休日","")) ->  | I14: =IF(I10=1,"元 日","") ->  | M14: =IF(M10=1,"元 日","") ->  | Q14: =IF(Q10=1,"元 日","") ->  | U14: =IF(U10=1,"元 日","") -> 元 日 | Y14: =IF(Y10=1,"元 日","") -> 
A15: =$Y10+1 -> 3 | E15: =A$15+1 -> 4 | I15: =E$15+1 -> 5 | M15: =I$15+1 -> 6 | Q15: =M$15+1 -> 7 | U15: =Q$15+1 -> 8 | Y15: =U$15+1 -> 9
E19: =IF(E15=8,"成人の日",IF(E15=9,"成人の日","")) -> 
A20: =$Y15+1 -> 10 | E20: =A20+1 -> 11 | I20: =E20+1 -> 12 | M20: =I20+1 -> 13 | Q20: =M20+1 -> 14 | U20: =Q20+1 -> 15 | Y20: =U20+1 -> 16
E24: =IF(E20<10,"",IF(14<E20,"","成人の日")) -> 成人の日
A25: =$Y20+1 -> 17 | E25: =A25+1 -> 18 | I25: =E25+1 -> 19 | M25: =I25+1 -> 20 | Q25: =M25+1 -> 21 | U25: =Q25+1 -> 22 | Y25: =U25+1 -> 23
A30: =$Y25+1 -> 24 | E30: =A30+1 -> 25 | I30: =IF(E30=31,"",IF(E30="","",E30+1)) -> 26 | M30: =IF(I30=31,"",IF(I30="","",I30+1)) -> 27 | Q30: =IF(M30=31,"",IF(M30="","",M30+1)) -> 28 | U30: =IF(Q30=31,"",IF(Q30="","",Q30+1)) -> 29 | Y30: =IF(U30=31,"",IF(U30="","",U30+1)) -> 30
A35: =IF(Y30=31,"",IF(Y30="","",Y30+1)) -> 31 | E35: =IF(A35=31,"",IF(A35="","",A35+1)) ->  | I35: =IF(E35=31,"",IF(E35="","",E35+1)) ->  | M35: =IF(I35=31,"",IF(I35="","",I35+1)) ->  | Q35: =IF(M35=31,"",IF(M35="","",M35+1)) -> 
U36: 睦 月
AG37: 干支
U38: January | AG38: 庚子 | AH38: こうし | AI38: かのえね
AB40: (C)2011,2018 nasutaworks (Taka_AN2_Yoshida)

Sheet 2
AG1: 設定部 | AH1: =IF(AG3<2020,入力部!R20,入力部!R21) -> 令和 | AL1: 春分日対応用ダミー部
C2: １月 | K2: =IF(AH1=0,DBCS(AG3)&"年",DBCS(AG3)&"年 ／ "&AH1&DBCS(AH3)&"年") -> ２０２１年 ／ 令和３年 | X2: ３月 | AG2: 西暦 | AH2: 和暦 | AI2: うるう年判定 | AN2: ３月
A3: =IF($AH$5=0,1,"") ->  | B3: =IF($AH$5=1,1,IF(A3="","",A3+1)) ->  | C3: =IF($AH$5=2,1,IF(B3="","",B3+1)) ->  | D3: =IF($AH$5=3,1,IF(C3="","",C3+1)) ->  | E3: =IF($AH$5=4,1,IF(D3="","",D3+1)) ->  | F3: =IF($AH$5=5,1,IF(E3="","",E3+1)) -> 1 | G3: =IF($AH$5=6,1,IF(F3="","",F3+1)) -> 2 | J3: 2 | V3: =IF(ISBLANK(AL3),"",AL3) ->  | W3: =IF(ISBLANK(AM3),"",AM3) -> 1 | X3: 2 | Y3: 3 | Z3: 4 | AA3: 5 | AB3: 6 | AG3: =入力部!J3 -> 2021 | AH3: =IF(AG3<2020,AG3-2000+12,IF(AG3-2018=1,"元",AG3-2018)) -> 3 | AI3: =入力部!H17 -> 28 | AL3: =IF($AH$7=0,1,"") ->  | AM3: =IF($AH$7=1,1,IF(AL3="","",AL3+1)) -> 1 | AN3: =IF($AH$7=2,1,IF(AM3="","",AM3+1)) -> 2 | AO3: =IF($AH$7=3,1,IF(AN3="","",AN3+1)) -> 3 | AP3: =IF($AH$7=4,1,IF(AO3="","",AO3+1)) -> 4 | AQ3: =IF($AH$7=5,1,IF(AP3="","",AP3+1)) -> 5 | AR3: =IF($AH$7=6,1,IF(AQ3="","",AQ3+1)) -> 6
A4: =G3+1 -> 3 | B4: =A4+1 -> 4 | C4: 5 | D4: 6 | E4: 7 | F4: 8 | G4: 9 | V4: =IF(ISBLANK(AL4),"",AL4) -> 7 | W4: =IF(ISBLANK(AM4),"",AM4) -> 8 | X4: 9 | Y4: 10 | Z4: 11 | AA4: 12 | AB4: 13 | AG4: 曜日計算 | AL4: =AR3+1 -> 7 | AM4: =AL4+1 -> 8 | AN4: 9 | AO4: 10 | AP4: 11 | AQ4: 12 | AR4: 13
A5: =G4+1 -> 10 | B5: 11 | C5: 12 | D5: 13 | E5: 14 | F5: 15 | G5: 16 | V5: =IF(ISBLANK(AL5),"",AL5) -> 14 | W5: =IF(ISBLANK(AM5),"",AM5) -> 15 | X5: =IF(ISBLANK(AN5),"",AN5) -> 16 | Y5: =IF(ISBLANK(AO5),"",AO5) -> 17 | Z5: =IF(ISBLANK(AP5),"",AP5) -> 18 | AA5: =IF(ISBLANK(AQ5),"",IF(AQ5=$AH$12," "&AQ5,AQ5)) -> 19 | AB5: =IF(ISBLANK(AR5),"",IF(AR5=$AH$12," "&AR5,AR5)) -> 20 | AG5: 前月 | AH5: =入力部!D18 -> 5 | AL5: =AR4+1 -> 14 | AM5: =AL5+1 -> 15 | AN5: 16 | AO5: 17 | AP5: 18 | AQ5: 19 | AR5: 20
A6: =G5+1 -> 17 | B6: 18 | C6: 19 | D6: 20 | E6: 21 | F6: 22 | G6: 23 | V6: =IF(ISBLANK(AL6),"",IF(AL6=$AH$12," "&AL6,AL6)) -> 21 | W6: =IF(ISBLANK(AM6),"",IF(AL6=$AH$12," "&AM6,IF(AM6=$AH$12," "&AM6,AM6))) -> 22 | X6: 23 | Y6: 24 | Z6: 25 | AA6: 26 | AB6: =IF(ISBLANK(AR6),"",AR6) -> 27 | AG6: 当月 | AH6: =入力部!D19 -> 1 | AL6: =AR5+1 -> 21 | AM6: =AL6+1 -> 22 | AN6: 23 | AO6: 24 | AP6: 25 | AQ6: 26 | AR6: 27
A7: =G6+1 -> 24 | B7: =A7+1 -> 25 | C7: =IF(B7=31,"",IF(B7="","",B7+1)) -> 26 | D7: 27 | E7: 28 | F7: 29 | G7: 30 | V7: =IF(ISBLANK(AL7),"",AL7) -> 28 | W7: 29 | X7: 30 | Y7: 31 | AB7: =IF(ISBLANK(AR7),"",AR7) ->  | AG7: 次月 | AH7: =入力部!D20 -> 1 | AL7: =AR6+1 -> 28 | AM7: =AL7+1 -> 29 | AN7: =IF(AM7=31,"",IF(AM7="","",AM7+1)) -> 30 | AO7: 31
A8: =IF(G7=31,"",IF(G7="","",G7+1)) -> 31 | B8: =IF(A8=31,"",IF(A8="","",A8+1)) ->  | M8: =IF(入力部!$T$17="","",入力部!$T$17&"／") -> しんちゅう／ | N8: =IF(入力部!$S$17="","",入力部!$S$17) -> 辛丑 | P8: =IF(入力部!$U$17="","","／"&入力部!$U$17) -> ／かのとうし | AB8: =IF(ISBLANK(AR8),"",AR8) ->  | AL8: =IF(AR7=31,"",IF(AR7="","",AR7+1)) ->  | AM8: =IF(AL8=31,"",IF(AL8="","",AL8+1)) -> 
A9: ＳＵＮ | E9: ＭＯＮ | I9: ＴＵＥ | M9: ＷＥＤ | Q9: ＴＨＵ | U9: ＦＲＩ | Y9: ＳＡＴ | AG9: 祝日データ
A10: =IF($AH$6=0,1,"") ->  | B10: =IF(Z14=1,1,IF(A10="","",A10+1)) ->  | C10: =IF(Z14=2,1,IF(B10="","",B10+1)) ->  | D10: =IF(Z14=3,1,IF(C10="","",C10+1)) ->  | E10: =IF($AH$6=1,1,IF(A10="","",A10+1)) -> 1 | I10: =IF($AH$6=2,1,IF(E10="","",E10+1)) -> 2 | M10: =IF($AH$6=3,1,IF(I10="","",I10+1)) -> 3 | Q10: =IF($AH$6=4,1,IF(M10="","",M10+1)) -> 4 | U10: =IF($AH$6=5,1,IF(Q10="","",Q10+1)) -> 5 | Y10: =IF($AH$6=6,1,IF(U10="","",U10+1)) -> 6 | AG10: 建国記念の日
A11: =IF(Z15=0,1,"") -> 1 | B11: =IF(Z15=1,1,IF(A11="","",A11+1)) -> 2 | C11: =IF(Z15=2,1,IF(B11="","",B11+1)) -> 3 | D11: =IF(Z15=3,1,IF(C11="","",C11+1)) -> 4 | AG11: 政令で定める日(2月11日) 建国をしのび、国を愛する心を養う。
A12: =IF(Z16=0,1,"") -> 1 | B12: =IF(Z16=1,1,IF(A12="","",A12+1)) -> 2 | C12: =IF(Z16=2,1,IF(B12="","",B12+1)) -> 3 | D12: =IF(Z16=3,1,IF(C12="","",C12+1)) -> 4 | AG12: （春分日）： | AH12: =入力部!L17 -> 20
A15: =$Y10+1 -> 7 | E15: =A$15+1 -> 8 | I15: =E$15+1 -> 9 | M15: =I$15+1 -> 10 | Q15: =M$15+1 -> 11 | U15: =Q$15+1 -> 12 | Y15: =U$15+1 -> 13
M19: =IF(M15=11,"建国記念の日","") ->  | Q19: =IF(Q15=11,"建国記念の日","") -> 建国記念の日 | U19: =IF(U15=11,"建国記念の日","") ->  | Y19: =IF(Y15=11,"建国記念の日","") -> 
A20: =$Y15+1 -> 14 | E20: =A20+1 -> 15 | I20: =E20+1 -> 16 | M20: =I20+1 -> 17 | Q20: =M20+1 -> 18 | U20: =Q20+1 -> 19 | Y20: =U20+1 -> 20
A24: =IF(A20=11,"建国記念の日","") ->  | E24: =IF(E20=11,"建国記念の日",IF(E20=12,"振替休日","")) ->  | I24: =IF(I20=11,"建国記念の日","") -> 
A25: =$Y20+1 -> 21 | E25: =A25+1 -> 22 | I25: =E25+1 -> 23 | M25: =I25+1 -> 24 | Q25: =M25+1 -> 25 | U25: =Q25+1 -> 26 | Y25: =U25+1 -> 27
E29: =IF(E25=23,"天皇誕生日","") ->  | I29: =IF(I25=23,"天皇誕生日","") -> 天皇誕生日 | M29: =IF(M25=23,"天皇誕生日","") ->  | Q29: =IF(Q25=23,"天皇誕生日","") ->  | U29: =IF(U25=23,"天皇誕生日","") ->  | Y29: =IF(Y25=23,"天皇誕生日","") -> 
A30: =IF($Y25=$AI$3,"",IF($Y25="","",$Y25+1)) -> 28 | E30: =IF(A30=$AI$3,"",IF(A30="","",A30+1)) ->  | I30: =IF(E30=$AI$3,"",IF(E30="","",E30+1)) ->  | M30: =IF(I30=$AI$3,"",IF(I30="","",I30+1)) ->  | Q30: =IF(M30=$AI$3,"",IF(M30="","",M30+1)) ->  | U30: =IF(Q30=$AI$3,"",IF(Q30="","",Q30+1)) ->  | Y30: =IF(U30=$AI$3,"",IF(U30="","",U30+1)) -> 
A34: =IF(A30=23,"天皇誕生日","") ->  | E34: =IF(E30=24,"振替休日","") -> 
A35: =IF($Y30=$AI$3,"",IF($Y30="","",$Y30+1)) ->  | E35: =IF(A35=$AI$3,"",IF(A35="","",A35+1)) ->  | I35: =IF(E35=$AI$3,"",IF(E35="","",E35+1)) ->  | M35: =IF(I35=$AI$3,"",IF(I35="","",I35+1)) ->  | Q35: =IF(M35=$AI$3,"",IF(M35="","",M35+1)) -> 
U36: 如 月
U38: February
AB40: Jan. 8th 2011 - nasutaworks(AN2)

Sheet 3
AG1: 設定部 | AH1: =IF(AG3<2020,入力部!R20,入力部!R21) -> 令和
C2: ２月 | K2: =IF(AH1=0,DBCS(AG3)&"年",DBCS(AG3)&"年 ／ "&AH1&DBCS(AH3)&"年") -> ２０２１年 ／ 令和３年 | X2: ４月 | AG2: 西暦 | AH2: 和暦 | AI2: うるう年判定
A3: =IF($AH$5=0,1,"") ->  | B3: =IF($AH$5=1,1,IF(A3="","",A3+1)) -> 1 | C3: =IF($AH$5=2,1,IF(B3="","",B3+1)) -> 2 | D3: =IF($AH$5=3,1,IF(C3="","",C3+1)) -> 3 | E3: =IF($AH$5=4,1,IF(D3="","",D3+1)) -> 4 | F3: =IF($AH$5=5,1,IF(E3="","",E3+1)) -> 5 | G3: =IF($AH$5=6,1,IF(F3="","",F3+1)) -> 6 | J3: 3 | V3: =IF($AH$7=0,1,"") ->  | W3: =IF($AH$7=1,1,IF(V3="","",V3+1)) ->  | X3: =IF($AH$7=2,1,IF(W3="","",W3+1)) ->  | Y3: =IF($AH$7=3,1,IF(X3="","",X3+1)) ->  | Z3: =IF($AH$7=4,1,IF(Y3="","",Y3+1)) -> 1 | AA3: =IF($AH$7=5,1,IF(Z3="","",Z3+1)) -> 2 | AB3: =IF($AH$7=6,1,IF(AA3="","",AA3+1)) -> 3 | AG3: =入力部!J3 -> 2021 | AH3: =IF(AG3<2020,AG3-2000+12,IF(AG3-2018=1,"元",AG3-2018)) -> 3 | AI3: =入力部!H17 -> 28
A4: =G3+1 -> 7 | B4: =A4+1 -> 8 | C4: 9 | D4: 10 | E4: 11 | F4: 12 | G4: 13 | V4: =AB3+1 -> 4 | W4: =V4+1 -> 5 | X4: 6 | Y4: 7 | Z4: 8 | AA4: 9 | AB4: 10 | AG4: 曜日計算
A5: =G4+1 -> 14 | B5: 15 | C5: 16 | D5: 17 | E5: 18 | F5: 19 | G5: 20 | V5: =AB4+1 -> 11 | W5: 12 | X5: 13 | Y5: 14 | Z5: 15 | AA5: 16 | AB5: 17 | AG5: 前月 | AH5: =入力部!D19 -> 1
A6: =G5+1 -> 21 | B6: 22 | C6: 23 | D6: 24 | E6: 25 | F6: 26 | G6: 27 | V6: =AB5+1 -> 18 | W6: 19 | X6: 20 | Y6: 21 | Z6: 22 | AA6: 23 | AB6: 24 | AG6: 当月 | AH6: =入力部!D20 -> 1
A7: =IF(G6=$AI$3,"",IF(G6="","",G6+1)) -> 28 | B7: =IF(A7=$AI$3,"",IF(A7="","",A7+1)) ->  | V7: =AB6+1 -> 25 | W7: =V7+1 -> 26 | X7: =IF(W7=30,"",IF(W7="","",W7+1)) -> 27 | Y7: =IF(X7=30,"",IF(X7="","",X7+1)) -> 28 | Z7: =IF(Y7=30,"",IF(Y7="","",Y7+1)) -> 29 | AA7: =IF(Z7=30,"",IF(Z7="","",Z7+1)) -> 30 | AG7: 次月 | AH7: =入力部!D21 -> 4
A8: =IF(G7=$AI$3,"",IF(G7="","",G7+1)) ->  | M8: =IF(入力部!$T$17="","",入力部!$T$17&"／") -> しんちゅう／ | N8: =IF(入力部!$S$17="","",入力部!$S$17) -> 辛丑 | P8: =IF(入力部!$U$17="","","／"&入力部!$U$17) -> ／かのとうし | V8: =IF(AB7=30,"",IF(AB7="","",AB7+1)) ->  | W8: =IF(V8=30,"",IF(V8="","",V8+1)) ->  | X8: =IF(W8=30,"",IF(W8="","",W8+1)) ->  | Y8: =IF(X8=30,"",IF(X8="","",X8+1)) -> 
A9: ＳＵＮ | E9: ＭＯＮ | I9: ＴＵＥ | M9: ＷＥＤ | Q9: ＴＨＵ | U9: ＦＲＩ | Y9: ＳＡＴ | AG9: 祝日データ
A10: =IF($AH$6=0,1,"") ->  | B10: =IF(Z14=1,1,IF(A10="","",A10+1)) ->  | C10: =IF(Z14=2,1,IF(B10="","",B10+1)) ->  | D10: =IF(Z14=3,1,IF(C10="","",C10+1)) ->  | E10: =IF($AH$6=1,1,IF(A10="","",A10+1)) -> 1 | I10: =IF($AH$6=2,1,IF(E10="","",E10+1)) -> 2 | M10: =IF($AH$6=3,1,IF(I10="","",I10+1)) -> 3 | Q10: =IF($AH$6=4,1,IF(M10="","",M10+1)) -> 4 | U10: =IF($AH$6=5,1,IF(Q10="","",Q10+1)) -> 5 | Y10: =IF($AH$6=6,1,IF(U10="","",U10+1)) -> 6 | AG10: 春分の日
A11: =IF(Z15=0,1,"") -> 1 | B11: =IF(Z15=1,1,IF(A11="","",A11+1)) -> 2 | C11: =IF(Z15=2,1,IF(B11="","",B11+1)) -> 3 | D11: =IF(Z15=3,1,IF(C11="","",C11+1)) -> 4 | AG11: 春分日(3月21日頃) 自然をたたえ、生物をいつくしむ。
A12: =IF(Z16=0,1,"") -> 1 | B12: =IF(Z16=1,1,IF(A12="","",A12+1)) -> 2 | C12: =IF(Z16=2,1,IF(B12="","",B12+1)) -> 3 | D12: =IF(Z16=3,1,IF(C12="","",C12+1)) -> 4 | AG12: 春分日： | AH12: =入力部!L17 -> 20
A15: =$Y10+1 -> 7 | E15: =A$15+1 -> 8 | I15: =E$15+1 -> 9 | M15: =I$15+1 -> 10 | Q15: =M$15+1 -> 11 | U15: =Q$15+1 -> 12 | Y15: =U$15+1 -> 13
A20: =$Y15+1 -> 14 | E20: =A20+1 -> 15 | I20: =E20+1 -> 16 | M20: =I20+1 -> 17 | Q20: =M20+1 -> 18 | U20: =IF(U23=$AH$12,U23&" ",U23) -> 19 | Y20: =IF(Y23=$AH$12,Y23&" ",Y23) -> 20
U23: =Q20+1 -> 19 | Y23: =U20+1 -> 20
U24: =IF(U23>21,"",IF(U23<20,"",IF(U23=$AH$12,"春分の日",""))) ->  | Y24: =IF(Y23>21,"",IF(Y23<20,"",IF(Y23=$AH$12,"春分の日",""))) -> 春分の日
A25: =IF(A28=$AH$12,A28&" ",A28) -> 21 | E25: =IF(E28=$AH$12,E28&" ",IF(A28=$AH$12,E28&" ",E28)) -> 22 | I25: =IF(I28=$AH$12,I28&" ",I28) -> 23 | M25: =IF(M28=$AH$12,M28&" ",M28) -> 24 | Q25: =IF(Q28=$AH$12,Q28&" ",Q28) -> 25 | U25: =IF(U28=$AH$12,U28&" ",U28) -> 26 | Y25: =U25+1 -> 27
A28: =Y20+1 -> 21 | E28: =A25+1 -> 22 | I28: =E25+1 -> 23 | M28: =I25+1 -> 24 | Q28: =M25+1 -> 25 | U28: =Q25+1 -> 26
A29: =IF(A28>21,"",IF(A28<20,"",IF(A28=$AH$12,"春分の日",""))) ->  | E29: =IF(A28=$AH$12,"振替休日",IF(E28>21,"",IF(E28<20,"",IF(E28=$AH$12,"春分の日","")))) ->  | I29: =IF(I28>21,"",IF(I28<20,"",IF(I28=$AH$12,"春分の日",""))) ->  | M29: =IF(M28>21,"",IF(M28<20,"",IF(M28=$AH$12,"春分の日",""))) ->  | Q29: =IF(Q28>21,"",IF(Q28<20,"",IF(Q28=$AH$12,"春分の日",""))) ->  | U29: =IF(U28>21,"",IF(U28<20,"",IF(U28=$AH$12,"春分の日",""))) -> 
A30: =$Y25+1 -> 28 | E30: =A30+1 -> 29 | I30: =IF(E30=31,"",IF(E30="","",E30+1)) -> 30 | M30: =IF(I30=31,"",IF(I30="","",I30+1)) -> 31 | Q30: =IF(M30=31,"",IF(M30="","",M30+1)) ->  | U30: =IF(Q30=31,"",IF(Q30="","",Q30+1)) ->  | Y30: =IF(U30=31,"",IF(U30="","",U30+1)) -> 
A35: =IF(Y30=31,"",IF(Y30="","",Y30+1)) ->  | E35: =IF(A35=31,"",IF(A35="","",A35+1)) ->  | I35: =IF(E35=31,"",IF(E35="","",E35+1)) ->  | M35: =IF(I35=31,"",IF(I35="","",I35+1)) ->  | Q35: =IF(M35=31,"",IF(M35="","",M35+1)) -> 
U36: 弥 生
U38: March
AB40: Jan. 8th 2011 - nasutaworks(AN2)

Sheet 4
AG1: 設定部 | AH1: =IF(AG3<2020,入力部!R20,入力部!R21) -> 令和 | AL1: 春分日対応用ダミー部
C2: ３月 | K2: =IF(AH1=0,DBCS(AG3)&"年",DBCS(AG3)&"年 ／ "&AH1&DBCS(AH3)&"年") -> ２０２１年 ／ 令和３年 | X2: ５月 | AG2: 西暦 | AH2: 和暦 | AN2: ３月
A3: =IF(ISBLANK(AL3),"",AL3) ->  | B3: =IF(ISBLANK(AM3),"",AM3) -> 1 | C3: 2 | D3: 3 | E3: 4 | F3: 5 | G3: 6 | J3: 4 | V3: =IF($AH$7=0,1,"") ->  | W3: =IF($AH$7=1,1,IF(V3="","",V3+1)) ->  | X3: =IF($AH$7=2,1,IF(W3="","",W3+1)) ->  | Y3: =IF($AH$7=3,1,IF(X3="","",X3+1)) ->  | Z3: =IF($AH$7=4,1,IF(Y3="","",Y3+1)) ->  | AA3: =IF($AH$7=5,1,IF(Z3="","",Z3+1)) ->  | AB3: =IF($AH$7=6,1,IF(AA3="","",AA3+1)) -> 1 | AG3: =入力部!J3 -> 2021 | AH3: =IF(AG3<2020,AG3-2000+12,IF(AG3-2018=1,"元",AG3-2018)) -> 3 | AL3: =IF($AH$5=0,1,"") ->  | AM3: =IF($AH$5=1,1,IF(AL3="","",AL3+1)) -> 1 | AN3: =IF($AH$5=2,1,IF(AM3="","",AM3+1)) -> 2 | AO3: =IF($AH$5=3,1,IF(AN3="","",AN3+1)) -> 3 | AP3: =IF($AH$5=4,1,IF(AO3="","",AO3+1)) -> 4 | AQ3: =IF($AH$5=5,1,IF(AP3="","",AP3+1)) -> 5 | AR3: =IF($AH$5=6,1,IF(AQ3="","",AQ3+1)) -> 6
A4: 7 | B4: =IF(ISBLANK(AM4),"",AM4) -> 8 | C4: 9 | D4: 10 | E4: 11 | F4: 12 | G4: 13 | V4: =AB3+1 -> 2 | W4: =V4+1 -> 3 | X4: 4 | Y4: 5 | Z4: 6 | AA4: 7 | AB4: 8 | AG4: 曜日計算 | AL4: =AR3+1 -> 7 | AM4: =AL4+1 -> 8 | AN4: 9 | AO4: 10 | AP4: 11 | AQ4: 12 | AR4: 13
A5: 14 | B5: =IF(ISBLANK(AM5),"",AM5) -> 15 | C5: =IF(ISBLANK(AN5),"",AN5) -> 16 | D5: =IF(ISBLANK(AO5),"",AO5) -> 17 | E5: =IF(ISBLANK(AP5),"",AP5) -> 18 | F5: =IF(ISBLANK(AQ5),"",IF(AQ5=$AH$12," "&AQ5,AQ5)) -> 19 | G5: =IF(ISBLANK(AR5),"",IF(AR5=$AH$12," "&AR5,AR5)) -> 20 | V5: =AB4+1 -> 9 | W5: 10 | X5: 11 | Y5: 12 | Z5: 13 | AA5: 14 | AB5: 15 | AG5: 前月 | AH5: =入力部!D20 -> 1 | AL5: =AR4+1 -> 14 | AM5: =AL5+1 -> 15 | AN5: 16 | AO5: 17 | AP5: 18 | AQ5: 19 | AR5: 20
A6: 21 | B6: =IF(ISBLANK(AM6),"",IF(AL5=$AH$12," "&AM6,IF(AM6=$AH$12," "&AM6,AM6))) -> 22 | C6: =IF(ISBLANK(AN6),"",IF(AN6=$AH$12," "&AN6,AN6)) -> 23 | D6: =IF(ISBLANK(AO6),"",IF(AO6=$AH$12," "&AO6,AO6)) -> 24 | E6: =IF(ISBLANK(AP6),"",IF(AP6=$AH$12," "&AP6,AP6)) -> 25 | F6: =IF(ISBLANK(AQ6),"",IF(AQ6=$AH$12," "&AQ6,AQ6)) -> 26 | G6: =IF(ISBLANK(AR6),"",AR6) -> 27 | V6: =AB5+1 -> 16 | W6: 17 | X6: 18 | Y6: 19 | Z6: 20 | AA6: 21 | AB6: 22 | AG6: 当月 | AH6: =入力部!D21 -> 4 | AL6: =AR5+1 -> 21 | AM6: =AL6+1 -> 22 | AN6: 23 | AO6: 24 | AP6: 25 | AQ6: 26 | AR6: 27
A7: 28 | B7: =IF(ISBLANK(AM7),"",AM7) -> 29 | C7: 30 | D7: 31 | G7: =IF(ISBLANK(AR7),"",AR7) ->  | V7: =AB6+1 -> 23 | W7: =V7+1 -> 24 | X7: =IF(W7=31,"",IF(W7="","",W7+1)) -> 25 | Y7: 26 | Z7: 27 | AA7: 28 | AB7: 29 | AG7: 次月 | AH7: =入力部!D22 -> 6 | AL7: =AR6+1 -> 28 | AM7: =AL7+1 -> 29 | AN7: =IF(AM7=31,"",IF(AM7="","",AM7+1)) -> 30 | AO7: 31
G8: =IF(ISBLANK(AR8),"",AR8) ->  | M8: =IF(入力部!$T$17="","",入力部!$T$17&"／") -> しんちゅう／ | N8: =IF(入力部!$S$17="","",入力部!$S$17) -> 辛丑 | P8: =IF(入力部!$U$17="","","／"&入力部!$U$17) -> ／かのとうし | V8: =IF(AB7=31,"",IF(AB7="","",AB7+1)) -> 30 | W8: =IF(V8=31,"",IF(V8="","",V8+1)) -> 31 | AL8: =IF(AR7=31,"",IF(AR7="","",AR7+1)) ->  | AM8: =IF(AL8=31,"",IF(AL8="","",AL8+1)) -> 
A9: ＳＵＮ | E9: ＭＯＮ | I9: ＴＵＥ | M9: ＷＥＤ | Q9: ＴＨＵ | U9: ＦＲＩ | Y9: ＳＡＴ | AG9: 祝日データ
A10: =IF($AH$6=0,1,"") ->  | B10: =IF(Z14=1,1,IF(A10="","",A10+1)) ->  | C10: =IF(Z14=2,1,IF(B10="","",B10+1)) ->  | D10: =IF(Z14=3,1,IF(C10="","",C10+1)) ->  | E10: =IF($AH$6=1,1,IF(A10="","",A10+1)) ->  | I10: =IF($AH$6=2,1,IF(E10="","",E10+1)) ->  | M10: =IF($AH$6=3,1,IF(I10="","",I10+1)) ->  | Q10: =IF($AH$6=4,1,IF(M10="","",M10+1)) -> 1 | U10: =IF($AH$6=5,1,IF(Q10="","",Q10+1)) -> 2 | Y10: =IF($AH$6=6,1,IF(U10="","",U10+1)) -> 3 | AG10: 昭和の日
A11: =IF(Z15=0,1,"") -> 1 | B11: =IF(Z15=1,1,IF(A11="","",A11+1)) -> 2 | C11: =IF(Z15=2,1,IF(B11="","",B11+1)) -> 3 | D11: =IF(Z15=3,1,IF(C11="","",C11+1)) -> 4 | AG11: 4月29日 激動の日々を経て、復興を遂げた昭和の時代を顧み、国の将来に思いをいたす。
A12: =IF(Z16=0,1,"") -> 1 | B12: =IF(Z16=1,1,IF(A12="","",A12+1)) -> 2 | C12: =IF(Z16=2,1,IF(B12="","",B12+1)) -> 3 | D12: =IF(Z16=3,1,IF(C12="","",C12+1)) -> 4 | AG12: （春分日）： | AH12: =入力部!L17 -> 20
A15: =$Y10+1 -> 4 | E15: =A$15+1 -> 5 | I15: =E$15+1 -> 6 | M15: =I$15+1 -> 7 | Q15: =M$15+1 -> 8 | U15: =Q$15+1 -> 9 | Y15: =U$15+1 -> 10
A20: =$Y15+1 -> 11 | E20: =A20+1 -> 12 | I20: =E20+1 -> 13 | M20: =I20+1 -> 14 | Q20: =M20+1 -> 15 | U20: =Q20+1 -> 16 | Y20: =U20+1 -> 17
A25: =$Y20+1 -> 18 | E25: =A25+1 -> 19 | I25: =E25+1 -> 20 | M25: =I25+1 -> 21 | Q25: =M25+1 -> 22 | U25: =Q25+1 -> 23 | Y25: =U25+1 -> 24
A30: =$Y25+1 -> 25 | E30: =A30+1 -> 26 | I30: =IF(E30=30,"",IF(E30="","",E30+1)) -> 27 | M30: =IF(I30=30,"",IF(I30="","",I30+1)) -> 28 | Q30: =IF(M30=30,"",IF(M30="","",M30+1)) -> 29 | U30: =IF(Q30=30,"",IF(Q30="","",Q30+1)) -> 30 | Y30: =IF(U30=30,"",IF(U30="","",U30+1)) -> 
A34: =IF(A30=29,"昭和の日","") ->  | E34: =IF(E30=29,"昭和の日",IF(E30=30,"振替休日","")) ->  | I34: =IF(I30=29,"昭和の日",IF($AG$3=2019,"国民の休日","")) ->  | M34: =IF(M30=29,"昭和の日","") ->  | Q34: =IF(Q30=29,"昭和の日","") -> 昭和の日 | U34: =IF(U30=29,"昭和の日","") ->  | Y34: =IF(Y30=29,"昭和の日","") -> 
A35: =IF(Y30=30,"",IF(Y30="","",Y30+1)) ->  | E35: =IF(A35=30,"",IF(A35="","",A35+1)) ->  | I35: =IF(E35=30,"",IF(E35="","",E35+1)) ->  | M35: =IF(I35=30,"",IF(I35="","",I35+1)) ->  | Q35: =IF(M35=30,"",IF(M35="","",M35+1)) -> 
U36: 卯 月
U38: April
AB40: Jan. 8th 2011 - nasutaworks(AN2)

Sheet 5
AG1: 設定部 | AH1: =IF(AG3<2019,入力部!R20,入力部!R21) -> 令和
C2: ４月 | K2: =IF(AH1=0,DBCS(AG3)&"年",DBCS(AG3)&"年 ／ "&AH1&DBCS(AH3)&"年") -> ２０２１年 ／ 令和３年 | X2: ６月 | AG2: 西暦 | AH2: 和暦
A3: =IF($AH$5=0,1,"") ->  | B3: =IF($AH$5=1,1,IF(A3="","",A3+1)) ->  | C3: =IF($AH$5=2,1,IF(B3="","",B3+1)) ->  | D3: =IF($AH$5=3,1,IF(C3="","",C3+1)) ->  | E3: =IF($AH$5=4,1,IF(D3="","",D3+1)) -> 1 | F3: =IF($AH$5=5,1,IF(E3="","",E3+1)) -> 2 | G3: =IF($AH$5=6,1,IF(F3="","",F3+1)) -> 3 | J3: 5 | V3: =IF($AH$7=0,1,"") ->  | W3: =IF($AH$7=1,1,IF(V3="","",V3+1)) ->  | X3: =IF($AH$7=2,1,IF(W3="","",W3+1)) -> 1 | Y3: =IF($AH$7=3,1,IF(X3="","",X3+1)) -> 2 | Z3: =IF($AH$7=4,1,IF(Y3="","",Y3+1)) -> 3 | AA3: =IF($AH$7=5,1,IF(Z3="","",Z3+1)) -> 4 | AB3: =IF($AH$7=6,1,IF(AA3="","",AA3+1)) -> 5 | AG3: =入力部!J3 -> 2021 | AH3: =IF(AG3<2019,AG3-2000+12,IF(AG3-2018=1,"元",AG3-2018)) -> 3
A4: =G3+1 -> 4 | B4: =A4+1 -> 5 | C4: 6 | D4: 7 | E4: 8 | F4: 9 | G4: 10 | V4: =AB3+1 -> 6 | W4: =V4+1 -> 7 | X4: 8 | Y4: 9 | Z4: 10 | AA4: 11 | AB4: 12 | AG4: 曜日計算
A5: =G4+1 -> 11 | B5: 12 | C5: 13 | D5: 14 | E5: 15 | F5: 16 | G5: 17 | V5: =AB4+1 -> 13 | W5: 14 | X5: 15 | Y5: 16 | Z5: 17 | AA5: 18 | AB5: 19 | AG5: 前月 | AH5: =入力部!D21 -> 4
A6: =G5+1 -> 18 | B6: 19 | C6: 20 | D6: 21 | E6: 22 | F6: 23 | G6: 24 | V6: =AB5+1 -> 20 | W6: 21 | X6: 22 | Y6: 23 | Z6: 24 | AA6: 25 | AB6: 26 | AG6: 当月 | AH6: =入力部!D22 -> 6
A7: =G6+1 -> 25 | B7: =A7+1 -> 26 | C7: =IF(B7=30,"",IF(B7="","",B7+1)) -> 27 | D7: =IF(C7=30,"",IF(C7="","",C7+1)) -> 28 | E7: =IF(D7=30,"",IF(D7="","",D7+1)) -> 29 | F7: =IF(E7=30,"",IF(E7="","",E7+1)) -> 30 | V7: =AB6+1 -> 27 | W7: =V7+1 -> 28 | X7: =IF(W7=30,"",IF(W7="","",W7+1)) -> 29 | Y7: =IF(X7=30,"",IF(X7="","",X7+1)) -> 30 | Z7: =IF(Y7=30,"",IF(Y7="","",Y7+1)) ->  | AA7: =IF(Z7=30,"",IF(Z7="","",Z7+1)) ->  | AG7: 次月 | AH7: =入力部!D23 -> 2
A8: =IF(G7=30,"",IF(G7="","",G7+1)) ->  | B8: =IF(A8=30,"",IF(A8="","",A8+1)) ->  | C8: =IF(B8=30,"",IF(B8="","",B8+1)) ->  | D8: =IF(C8=30,"",IF(C8="","",C8+1)) ->  | M8: =IF(入力部!$T$17="","",入力部!$T$17&"／") -> しんちゅう／ | N8: =IF(入力部!$S$17="","",入力部!$S$17) -> 辛丑 | P8: =IF(入力部!$U$17="","","／"&入力部!$U$17) -> ／かのとうし | V8: =IF(AB7=30,"",IF(AB7="","",AB7+1)) ->  | W8: =IF(V8=30,"",IF(V8="","",V8+1)) ->  | X8: =IF(W8=30,"",IF(W8="","",W8+1)) ->  | Y8: =IF(X8=30,"",IF(X8="","",X8+1)) -> 
A9: ＳＵＮ | E9: ＭＯＮ | I9: ＴＵＥ | M9: ＷＥＤ | Q9: ＴＨＵ | U9: ＦＲＩ | Y9: ＳＡＴ | AG9: 祝日データ
A10: =IF($AH$6=0,1,"") ->  | B10: =IF(Z14=1,1,IF(A10="","",A10+1)) ->  | C10: =IF(Z14=2,1,IF(B10="","",B10+1)) ->  | D10: =IF(Z14=3,1,IF(C10="","",C10+1)) ->  | E10: =IF($AH$6=1,1,IF(A10="","",A10+1)) ->  | I10: =IF($AH$6=2,1,IF(E10="","",E10+1)) ->  | M10: =IF($AH$6=3,1,IF(I10="","",I10+1)) ->  | Q10: =IF($AH$6=4,1,IF(M10="","",M10+1)) ->  | U10: =IF($AH$6=5,1,IF(Q10="","",Q10+1)) ->  | Y10: =IF($AH$6=6,1,IF(U10="","",U10+1)) -> 1 | AG10: 憲法記念日
A11: =IF(Z15=0,1,"") -> 1 | B11: =IF(Z15=1,1,IF(A11="","",A11+1)) -> 2 | C11: =IF(Z15=2,1,IF(B11="","",B11+1)) -> 3 | D11: =IF(Z15=3,1,IF(C11="","",C11+1)) -> 4 | AG11: 5月3日 日本国憲法の施行を記念し、国の成長を期する。
A12: =IF(Z16=0,1,"") -> 1 | B12: =IF(Z16=1,1,IF(A12="","",A12+1)) -> 2 | C12: =IF(Z16=2,1,IF(B12="","",B12+1)) -> 3 | D12: =IF(Z16=3,1,IF(C12="","",C12+1)) -> 4 | AG12: みどりの日
AG13: 5月4日 自然に親しむとともにその恩恵に感謝し、豊かな心をはぐくむ。
I14: =IF(I10=3,"憲法記念日",IF(I10=4,"みどりの日",IF(I10=5,"こどもの日",""))) ->  | M14: =IF(M10=3,"憲法記念日",IF(M10=4,"みどりの日",IF(M10=5,"こどもの日",IF($AG$3=2019,"即位の日","")))) ->  | Q14: =IF(Q10=3,"憲法記念日",IF(Q10=4,"みどりの日",IF(Q10=5,"こどもの日",IF($AG$3=2019,"国民の休日","")))) ->  | U14: =IF(U10=3,"憲法記念日",IF(U10=4,"みどりの日",IF(U10=5,"こどもの日",""))) ->  | Y14: =IF(Y10=3,"憲法記念日",IF(Y10=4,"みどりの日",IF(Y10=5,"こどもの日",""))) ->  | AG14: こどもの日
A15: =$Y10+1 -> 2 | E15: =A$15+1 -> 3 | I15: =E$15+1 -> 4 | M15: =I$15+1 -> 5 | Q15: =M$15+1 -> 6 | U15: =Q$15+1 -> 7 | Y15: =U$15+1 -> 8 | AG15: 5月5日 こどもの人格を重んじ、こどもの幸福をはかるとともに、母に感謝する。
A19: =IF(A15=3,"憲法記念日",IF(A15=4,"みどりの日",IF(A15=5,"こどもの日",""))) ->  | E19: =IF(E15=3,"憲法記念日",IF(E15=4,"みどりの日",IF(E15=5,"こどもの日",IF(E15=6,"振替休日","")))) -> 憲法記念日 | I19: =IF(I15=3,"憲法記念日",IF(I15=4,"みどりの日",IF(I15=5,"こどもの日",IF(I15=6,"振替休日","")))) -> みどりの日 | M19: =IF(M15=3,"憲法記念日",IF(M15=4,"みどりの日",IF(M15=5,"こどもの日",IF(M15=6,"振替休日","")))) -> こどもの日
A20: =$Y15+1 -> 9 | E20: =A20+1 -> 10 | I20: =E20+1 -> 11 | M20: =I20+1 -> 12 | Q20: =M20+1 -> 13 | U20: =Q20+1 -> 14 | Y20: =U20+1 -> 15
A25: =$Y20+1 -> 16 | E25: =A25+1 -> 17 | I25: =E25+1 -> 18 | M25: =I25+1 -> 19 | Q25: =M25+1 -> 20 | U25: =Q25+1 -> 21 | Y25: =U25+1 -> 22
A30: =$Y25+1 -> 23 | E30: =A30+1 -> 24 | I30: =IF(E30=31,"",IF(E30="","",E30+1)) -> 25 | M30: =IF(I30=31,"",IF(I30="","",I30+1)) -> 26 | Q30: =IF(M30=31,"",IF(M30="","",M30+1)) -> 27 | U30: =IF(Q30=31,"",IF(Q30="","",Q30+1)) -> 28 | Y30: =IF(U30=31,"",IF(U30="","",U30+1)) -> 29
A35: =IF(Y30=31,"",IF(Y30="","",Y30+1)) -> 30 | E35: =IF(A35=31,"",IF(A35="","",A35+1)) -> 31 | I35: =IF(E35=31,"",IF(E35="","",E35+1)) ->  | M35: =IF(I35=31,"",IF(I35="","",I35+1)) ->  | Q35: =IF(M35=31,"",IF(M35="","",M35+1)) -> 
U36: 皐 月
U38: May
AB40: Jan. 8th 2011 - nasutaworks(AN2)

Sheet 6
AG1: 設定部 | AH1: =IF(AG3<2019,入力部!R20,入力部!R21) -> 令和
C2: ５月 | K2: =IF(AH1=0,DBCS(AG3)&"年",DBCS(AG3)&"年 ／ "&AH1&DBCS(AH3)&"年") -> ２０２１年 ／ 令和３年 | X2: ７月 | AG2: 西暦 | AH2: 和暦
A3: =IF($AH$5=0,1,"") ->  | B3: =IF($AH$5=1,1,IF(A3="","",A3+1)) ->  | C3: =IF($AH$5=2,1,IF(B3="","",B3+1)) ->  | D3: =IF($AH$5=3,1,IF(C3="","",C3+1)) ->  | E3: =IF($AH$5=4,1,IF(D3="","",D3+1)) ->  | F3: =IF($AH$5=5,1,IF(E3="","",E3+1)) ->  | G3: =IF($AH$5=6,1,IF(F3="","",F3+1)) -> 1 | J3: 6 | V3: =IF($AH$7=0,1,"") ->  | W3: =IF($AH$7=1,1,IF(V3="","",V3+1)) ->  | X3: =IF($AH$7=2,1,IF(W3="","",W3+1)) ->  | Y3: =IF($AH$7=3,1,IF(X3="","",X3+1)) ->  | Z3: =IF($AH$7=4,1,IF(Y3="","",Y3+1)) -> 1 | AA3: =IF($AH$7=5,1,IF(Z3="","",Z3+1)) -> 2 | AB3: =IF($AH$7=6,1,IF(AA3="","",AA3+1)) -> 3 | AG3: =入力部!J3 -> 2021 | AH3: =IF(AG3<2019,AG3-2000+12,IF(AG3-2018=1,"元",AG3-2018)) -> 3
A4: =G3+1 -> 2 | B4: =A4+1 -> 3 | C4: 4 | D4: 5 | E4: 6 | F4: 7 | G4: 8 | V4: =AB3+1 -> 4 | W4: =V4+1 -> 5 | X4: 6 | Y4: 7 | Z4: 8 | AA4: 9 | AB4: 10 | AG4: 曜日計算
A5: =G4+1 -> 9 | B5: 10 | C5: 11 | D5: 12 | E5: 13 | F5: 14 | G5: 15 | V5: =AB4+1 -> 11 | W5: 12 | X5: 13 | Y5: 14 | Z5: 15 | AA5: 16 | AB5: 17 | AG5: 前月 | AH5: =入力部!D22 -> 6
A6: =G5+1 -> 16 | B6: 17 | C6: 18 | D6: 19 | E6: 20 | F6: 21 | G6: 22 | V6: =AB5+1 -> 18 | W6: 19 | X6: 20 | Y6: 21 | Z6: 22 | AA6: 23 | AB6: 24 | AG6: 当月 | AH6: =入力部!D23 -> 2
A7: =G6+1 -> 23 | B7: =A7+1 -> 24 | C7: =IF(B7=31,"",IF(B7="","",B7+1)) -> 25 | D7: 26 | E7: 27 | F7: 28 | G7: 29 | V7: =AB6+1 -> 25 | W7: =V7+1 -> 26 | X7: =IF(W7=31,"",IF(W7="","",W7+1)) -> 27 | Y7: 28 | Z7: 29 | AA7: 30 | AB7: 31 | AG7: 次月 | AH7: =入力部!D24 -> 4
A8: =IF(G7=31,"",IF(G7="","",G7+1)) -> 30 | B8: =IF(A8=31,"",IF(A8="","",A8+1)) -> 31 | M8: =IF(入力部!$T$17="","",入力部!$T$17&"／") -> しんちゅう／ | N8: =IF(入力部!$S$17="","",入力部!$S$17) -> 辛丑 | P8: =IF(入力部!$U$17="","","／"&入力部!$U$17) -> ／かのとうし | V8: =IF(AB7=31,"",IF(AB7="","",AB7+1)) ->  | W8: =IF(V8=31,"",IF(V8="","",V8+1)) -> 
A9: ＳＵＮ | E9: ＭＯＮ | I9: ＴＵＥ | M9: ＷＥＤ | Q9: ＴＨＵ | U9: ＦＲＩ | Y9: ＳＡＴ | AG9: 祝日データ
A10: =IF($AH$6=0,1,"") ->  | B10: =IF(Z14=1,1,IF(A10="","",A10+1)) ->  | C10: =IF(Z14=2,1,IF(B10="","",B10+1)) ->  | D10: =IF(Z14=3,1,IF(C10="","",C10+1)) ->  | E10: =IF($AH$6=1,1,IF(A10="","",A10+1)) ->  | I10: =IF($AH$6=2,1,IF(E10="","",E10+1)) -> 1 | M10: =IF($AH$6=3,1,IF(I10="","",I10+1)) -> 2 | Q10: =IF($AH$6=4,1,IF(M10="","",M10+1)) -> 3 | U10: =IF($AH$6=5,1,IF(Q10="","",Q10+1)) -> 4 | Y10: =IF($AH$6=6,1,IF(U10="","",U10+1)) -> 5
A11: =IF(Z15=0,1,"") -> 1 | B11: =IF(Z15=1,1,IF(A11="","",A11+1)) -> 2 | C11: =IF(Z15=2,1,IF(B11="","",B11+1)) -> 3 | D11: =IF(Z15=3,1,IF(C11="","",C11+1)) -> 4
A12: =IF(Z16=0,1,"") -> 1 | B12: =IF(Z16=1,1,IF(A12="","",A12+1)) -> 2 | C12: =IF(Z16=2,1,IF(B12="","",B12+1)) -> 3 | D12: =IF(Z16=3,1,IF(C12="","",C12+1)) -> 4
A15: =$Y10+1 -> 6 | E15: =A$15+1 -> 7 | I15: =E$15+1 -> 8 | M15: =I$15+1 -> 9 | Q15: =M$15+1 -> 10 | U15: =Q$15+1 -> 11 | Y15: =U$15+1 -> 12
A20: =$Y15+1 -> 13 | E20: =A20+1 -> 14 | I20: =E20+1 -> 15 | M20: =I20+1 -> 16 | Q20: =M20+1 -> 17 | U20: =Q20+1 -> 18 | Y20: =U20+1 -> 19
A25: =$Y20+1 -> 20 | E25: =A25+1 -> 21 | I25: =E25+1 -> 22 | M25: =I25+1 -> 23 | Q25: =M25+1 -> 24 | U25: =Q25+1 -> 25 | Y25: =U25+1 -> 26
A30: =$Y25+1 -> 27 | E30: =A30+1 -> 28 | I30: =IF(E30=30,"",IF(E30="","",E30+1)) -> 29 | M30: =IF(I30=30,"",IF(I30="","",I30+1)) -> 30 | Q30: =IF(M30=30,"",IF(M30="","",M30+1)) ->  | U30: =IF(Q30=30,"",IF(Q30="","",Q30+1)) ->  | Y30: =IF(U30=30,"",IF(U30="","",U30+1)) -> 
A35: =IF(Y30=30,"",IF(Y30="","",Y30+1)) ->  | E35: =IF(A35=30,"",IF(A35="","",A35+1)) ->  | I35: =IF(E35=30,"",IF(E35="","",E35+1)) ->  | M35: =IF(I35=30,"",IF(I35="","",I35+1)) ->  | Q35: =IF(M35=30,"",IF(M35="","",M35+1)) -> 
U36: 水無月
U38: June
AB40: Jan. 8th 2011 - nasutaworks(AN2)

Sheet 7
AG1: 設定部 | AH1: =IF(AG3<2019,入力部!R20,入力部!R21) -> 令和 | AL1: 2016以降山の日対応ダミー部
C2: ６月 | K2: =IF(AH1=0,DBCS(AG3)&"年",DBCS(AG3)&"年 ／ "&AH1&DBCS(AH3)&"年") -> ２０２１年 ／ 令和３年 | X2: ８月 | AG2: 西暦 | AH2: 和暦 | AN2: ８月
A3: =IF($AH$5=0,1,"") ->  | B3: =IF($AH$5=1,1,IF(A3="","",A3+1)) ->  | C3: =IF($AH$5=2,1,IF(B3="","",B3+1)) -> 1 | D3: =IF($AH$5=3,1,IF(C3="","",C3+1)) -> 2 | E3: =IF($AH$5=4,1,IF(D3="","",D3+1)) -> 3 | F3: =IF($AH$5=5,1,IF(E3="","",E3+1)) -> 4 | G3: =IF($AH$5=6,1,IF(F3="","",F3+1)) -> 5 | J3: 7 | V3: =IF(ISBLANK(AL3),"",AL3) -> 1 | W3: =IF(ISBLANK(AM3),"",AM3) -> 2 | X3: 3 | Y3: 4 | Z3: 5 | AA3: 6 | AB3: 7 | AG3: =入力部!J3 -> 2021 | AH3: =IF(AG3<2019,AG3-2000+12,IF(AG3-2018=1,"元",AG3-2018)) -> 3 | AL3: =IF($AH$7=0,1,"") -> 1 | AM3: =IF($AH$7=1,1,IF(AL3="","",AL3+1)) -> 2 | AN3: =IF($AH$7=2,1,IF(AM3="","",AM3+1)) -> 3 | AO3: =IF($AH$7=3,1,IF(AN3="","",AN3+1)) -> 4 | AP3: =IF($AH$7=4,1,IF(AO3="","",AO3+1)) -> 5 | AQ3: =IF($AH$7=5,1,IF(AP3="","",AP3+1)) -> 6 | AR3: =IF($AH$7=6,1,IF(AQ3="","",AQ3+1)) -> 7
A4: =G3+1 -> 6 | B4: =A4+1 -> 7 | C4: 8 | D4: 9 | E4: 10 | F4: 11 | G4: 12 | V4: 8 | W4: 9 | X4: 10 | Y4: =IF(ISBLANK(AO4),"",IF(AO4=11,IF($AG$3<2016," "&AO4,AO4),AO4)) -> 11 | Z4: =IF(ISBLANK(AP4),"",IF(AP4=11,IF($AG$3<2016," "&AP4,AP4),AP4)) -> 12 | AA4: =IF(ISBLANK(AQ4),"",IF(AQ4=11,IF($AG$3<2016," "&AQ4,AQ4),AQ4)) -> 13 | AB4: =IF(ISBLANK(AR4),"",IF(AR4=11,IF($AG$3<2016," "&AR4,AR4),AR4)) -> 14 | AG4: 曜日計算 | AL4: =AR3+1 -> 8 | AM4: =AL4+1 -> 9 | AN4: 10 | AO4: 11 | AP4: 12 | AQ4: 13 | AR4: 14
A5: =G4+1 -> 13 | B5: 14 | C5: 15 | D5: 16 | E5: 17 | F5: 18 | G5: 19 | V5: 15 | W5: =IF(ISBLANK(AM5),"",IF(AM5=11,IF($AG$3<2016," "&AM5,AM5),AM5)) -> 16 | X5: =IF(ISBLANK(AN5),"",IF(AN5=11,IF($AG$3<2016," "&AN5,AN5),AN5)) -> 17 | Y5: 18 | Z5: 19 | AA5: 20 | AB5: 21 | AG5: 前月 | AH5: =入力部!D23 -> 2 | AL5: =AR4+1 -> 15 | AM5: 16 | AN5: 17 | AO5: 18 | AP5: 19 | AQ5: 20 | AR5: 21
A6: =G5+1 -> 20 | B6: 21 | C6: 22 | D6: 23 | E6: 24 | F6: 25 | G6: 26 | V6: 22 | W6: 23 | X6: 24 | Y6: 25 | Z6: 26 | AA6: 27 | AB6: 28 | AG6: 当月 | AH6: =入力部!D24 -> 4 | AL6: =AR5+1 -> 22 | AM6: 23 | AN6: 24 | AO6: 25 | AP6: 26 | AQ6: 27 | AR6: 28
A7: =G6+1 -> 27 | B7: =A7+1 -> 28 | C7: =IF(B7=30,"",IF(B7="","",B7+1)) -> 29 | D7: 30 | V7: 29 | W7: 30 | X7: 31 | AG7: 次月 | AH7: =入力部!D25 -> 0 | AL7: =AR6+1 -> 29 | AM7: =AL7+1 -> 30 | AN7: =IF(AM7=31,"",IF(AM7="","",AM7+1)) -> 31
A8: =IF(G7=30,"",IF(G7="","",G7+1)) ->  | B8: =IF(A8=30,"",IF(A8="","",A8+1)) ->  | M8: =IF(入力部!$T$17="","",入力部!$T$17&"／") -> しんちゅう／ | N8: =IF(入力部!$S$17="","",入力部!$S$17) -> 辛丑 | P8: =IF(入力部!$U$17="","","／"&入力部!$U$17) -> ／かのとうし | AL8: =IF(AR7=31,"",IF(AR7="","",AR7+1)) ->  | AM8: =IF(AL8=31,"",IF(AL8="","",AL8+1)) -> 
A9: ＳＵＮ | E9: ＭＯＮ | I9: ＴＵＥ | M9: ＷＥＤ | Q9: ＴＨＵ | U9: ＦＲＩ | Y9: ＳＡＴ | AG9: 祝日データ
A10: =IF($AH$6=0,1,"") ->  | B10: =IF(Z14=1,1,IF(A10="","",A10+1)) ->  | C10: =IF(Z14=2,1,IF(B10="","",B10+1)) ->  | D10: =IF(Z14=3,1,IF(C10="","",C10+1)) ->  | E10: =IF($AH$6=1,1,IF(A10="","",A10+1)) ->  | I10: =IF($AH$6=2,1,IF(E10="","",E10+1)) ->  | M10: =IF($AH$6=3,1,IF(I10="","",I10+1)) ->  | Q10: =IF($AH$6=4,1,IF(M10="","",M10+1)) -> 1 | U10: =IF($AH$6=5,1,IF(Q10="","",Q10+1)) -> 2 | Y10: =IF($AH$6=6,1,IF(U10="","",U10+1)) -> 3 | AG10: 海の日
A11: =IF(Z15=0,1,"") -> 1 | B11: =IF(Z15=1,1,IF(A11="","",A11+1)) -> 2 | C11: =IF(Z15=2,1,IF(B11="","",B11+1)) -> 3 | D11: =IF(Z15=3,1,IF(C11="","",C11+1)) -> 4 | AG11: 7月の第3月曜日 海の恩恵に感謝するとともに、海洋国日本の繁栄を願う。
A12: =IF(Z16=0,1,"") -> 1 | B12: =IF(Z16=1,1,IF(A12="","",A12+1)) -> 2 | C12: =IF(Z16=2,1,IF(B12="","",B12+1)) -> 3 | D12: =IF(Z16=3,1,IF(C12="","",C12+1)) -> 4
A15: =$Y10+1 -> 4 | E15: =A$15+1 -> 5 | I15: =E$15+1 -> 6 | M15: =I$15+1 -> 7 | Q15: =M$15+1 -> 8 | U15: =Q$15+1 -> 9 | Y15: =U$15+1 -> 10
A20: =$Y15+1 -> 11 | E20: =A20+1 -> 12 | I20: =E20+1 -> 13 | M20: =I20+1 -> 14 | Q20: =M20+1 -> 15 | U20: =Q20+1 -> 16 | Y20: =U20+1 -> 17
E24: =IF(E20=15,"海 の 日",IF(E20=16,"海 の 日","")) -> 
A25: =$Y20+1 -> 18 | E25: =A25+1 -> 19 | I25: =E25+1 -> 20 | M25: =I25+1 -> 21 | Q25: =M25+1 -> 22 | U25: =Q25+1 -> 23 | Y25: =U25+1 -> 24
E29: =IF(OR(AG3=2020,AG3=2021),"",IF(E25<17,"",IF(21<E25,"","海 の 日"))) ->  | Q29: =IF(OR($AG$3=2020,$AG$3=2021),"海 の 日","") -> 海 の 日 | U29: =IF(OR($AG$3=2020,$AG$3=2021),"スポーツの日","") -> スポーツの日
A30: =$Y25+1 -> 25 | E30: =A30+1 -> 26 | I30: =IF(E30=31,"",IF(E30="","",E30+1)) -> 27 | M30: =IF(I30=31,"",IF(I30="","",I30+1)) -> 28 | Q30: =IF(M30=31,"",IF(M30="","",M30+1)) -> 29 | U30: =IF(Q30=31,"",IF(Q30="","",Q30+1)) -> 30 | Y30: =IF(U30=31,"",IF(U30="","",U30+1)) -> 31
A35: =IF(Y30=31,"",IF(Y30="","",Y30+1)) ->  | E35: =IF(A35=31,"",IF(A35="","",A35+1)) ->  | I35: =IF(E35=31,"",IF(E35="","",E35+1)) ->  | M35: =IF(I35=31,"",IF(I35="","",I35+1)) ->  | Q35: =IF(M35=31,"",IF(M35="","",M35+1)) -> 
U36: 文 月
U38: July
AB40: Jan. 8th 2011 - nasutaworks(AN2)

Sheet 8
AG1: 設定部 | AH1: =IF(AG3<2019,入力部!R20,入力部!R21) -> 令和 | AL1: 秋分日対応用ダミー部
C2: ７月 | K2: =IF(AH1=0,DBCS(AG3)&"年",DBCS(AG3)&"年 ／ "&AH1&DBCS(AH3)&"年") -> ２０２１年 ／ 令和３年 | X2: ９月 | AG2: 西暦 | AH2: 和暦 | AN2: ９月
A3: =IF($AH$5=0,1,"") ->  | B3: =IF($AH$5=1,1,IF(A3="","",A3+1)) ->  | C3: =IF($AH$5=2,1,IF(B3="","",B3+1)) ->  | D3: =IF($AH$5=3,1,IF(C3="","",C3+1)) ->  | E3: =IF($AH$5=4,1,IF(D3="","",D3+1)) -> 1 | F3: =IF($AH$5=5,1,IF(E3="","",E3+1)) -> 2 | G3: =IF($AH$5=6,1,IF(F3="","",F3+1)) -> 3 | J3: 8 | V3: =IF(ISBLANK(AL3),"",AL3) ->  | W3: =IF(ISBLANK(AM3),"",AM3) ->  | Y3: 1 | Z3: 2 | AA3: 3 | AB3: 4 | AG3: =入力部!J3 -> 2021 | AH3: =IF(AG3<2019,AG3-2000+12,IF(AG3-2018=1,"元",AG3-2018)) -> 3 | AL3: =IF($AH$7=0,1,"") ->  | AM3: =IF($AH$7=1,1,IF(AL3="","",AL3+1)) ->  | AN3: =IF($AH$7=2,1,IF(AM3="","",AM3+1)) ->  | AO3: =IF($AH$7=3,1,IF(AN3="","",AN3+1)) -> 1 | AP3: =IF($AH$7=4,1,IF(AO3="","",AO3+1)) -> 2 | AQ3: =IF($AH$7=5,1,IF(AP3="","",AP3+1)) -> 3 | AR3: =IF($AH$7=6,1,IF(AQ3="","",AQ3+1)) -> 4
A4: =G3+1 -> 4 | B4: =A4+1 -> 5 | C4: 6 | D4: 7 | E4: 8 | F4: 9 | G4: 10 | V4: 5 | W4: =IF(ISBLANK(AM4),"",AM4) -> 6 | X4: 7 | Y4: 8 | Z4: 9 | AA4: 10 | AB4: 11 | AG4: 曜日計算 | AL4: =AR3+1 -> 5 | AM4: =AL4+1 -> 6 | AN4: 7 | AO4: 8 | AP4: 9 | AQ4: 10 | AR4: 11
A5: =G4+1 -> 11 | B5: 12 | C5: 13 | D5: 14 | E5: 15 | F5: 16 | G5: 17 | V5: 12 | W5: 13 | X5: 14 | Y5: 15 | Z5: 16 | AA5: 17 | AB5: 18 | AG5: 前月 | AH5: =入力部!D24 -> 4 | AL5: =AR4+1 -> 12 | AM5: =AL5+1 -> 13 | AN5: 14 | AO5: 15 | AP5: 16 | AQ5: 17 | AR5: 18
A6: =G5+1 -> 18 | B6: 19 | C6: 20 | D6: 21 | E6: 22 | F6: 23 | G6: 24 | V6: 19 | W6: =IF(ISBLANK(AM6),"",IF(AM6=$AH$10," "&AM6,AM6)) -> 20 | X6: =IF(ISBLANK(AN6),"",IF(AN6=$AH$10," "&AN6,IF(AO6=$AH$10," "&AN6,AN6))) -> 21 | Y6: 22 | Z6: 23 | AA6: 24 | AB6: 25 | AG6: 当月 | AH6: =入力部!D25 -> 0 | AL6: =AR5+1 -> 19 | AM6: =AL6+1 -> 20 | AN6: 21 | AO6: 22 | AP6: 23 | AQ6: 24 | AR6: 25
A7: =G6+1 -> 25 | B7: =A7+1 -> 26 | C7: =IF(B7=31,"",IF(B7="","",B7+1)) -> 27 | D7: 28 | E7: 29 | F7: 30 | G7: 31 | V7: 26 | W7: =IF(ISBLANK(AM7),"",IF(AL7=$AH$10," "&AM7,AM7)) -> 27 | X7: =IF(ISBLANK(AN7),"",AN7) -> 28 | Y7: 29 | Z7: 30 | AG7: 次月 | AH7: =入力部!D26 -> 3 | AL7: =AR6+1 -> 26 | AM7: =AL7+1 -> 27 | AN7: =IF(AM7=30,"",IF(AM7="","",AM7+1)) -> 28 | AO7: 29 | AP7: 30
A8: =IF(G7=31,"",IF(G7="","",G7+1)) ->  | B8: =IF(A8=31,"",IF(A8="","",A8+1)) ->  | M8: =IF(入力部!$T$17="","",入力部!$T$17&"／") -> しんちゅう／ | N8: =IF(入力部!$S$17="","",入力部!$S$17) -> 辛丑 | P8: =IF(入力部!$U$17="","","／"&入力部!$U$17) -> ／かのとうし | W8: =IF(ISBLANK(AM8),"",AM8) ->  | AL8: =IF(AR7=30,"",IF(AR7="","",AR7+1)) ->  | AM8: =IF(AL8=30,"",IF(AL8="","",AL8+1)) -> 
A9: ＳＵＮ | E9: ＭＯＮ | I9: ＴＵＥ | M9: ＷＥＤ | Q9: ＴＨＵ | U9: ＦＲＩ | Y9: ＳＡＴ | AG9: 祝日データ
A10: =IF($AH$6=0,1,"") -> 1 | B10: =IF(Z14=1,1,IF(A10="","",A10+1)) -> 2 | C10: =IF(Z14=2,1,IF(B10="","",B10+1)) -> 3 | D10: =IF(Z14=3,1,IF(C10="","",C10+1)) -> 4 | E10: =IF($AH$6=1,1,IF(A10="","",A10+1)) -> 2 | I10: =IF($AH$6=2,1,IF(E10="","",E10+1)) -> 3 | M10: =IF($AH$6=3,1,IF(I10="","",I10+1)) -> 4 | Q10: =IF($AH$6=4,1,IF(M10="","",M10+1)) -> 5 | U10: =IF($AH$6=5,1,IF(Q10="","",Q10+1)) -> 6 | Y10: =IF($AH$6=6,1,IF(U10="","",U10+1)) -> 7 | AG10: （秋分日）： | AH10: =入力部!L18 -> 23
A11: =IF(Z15=0,1,"") -> 1 | B11: =IF(Z15=1,1,IF(A11="","",A11+1)) -> 2 | C11: =IF(Z15=2,1,IF(B11="","",B11+1)) -> 3 | D11: =IF(Z15=3,1,IF(C11="","",C11+1)) -> 4 | AG11: 山の日（2016年以降）
A12: =IF(Z16=0,1,"") -> 1 | B12: =IF(Z16=1,1,IF(A12="","",A12+1)) -> 2 | C12: =IF(Z16=2,1,IF(B12="","",B12+1)) -> 3 | D12: =IF(Z16=3,1,IF(C12="","",C12+1)) -> 4 | AG12: 山に親しむ機会を得て、山の恩恵に感謝する
A15: =$Y10+1 -> 8 | E15: =A$15+1 -> 9 | I15: =E$15+1 -> 10 | M15: =I$15+1 -> 11 | Q15: =M$15+1 -> 12 | U15: =Q$15+1 -> 13 | Y15: =U$15+1 -> 14
A19: =IF($AG$3=2021,"山 の 日","") -> 山 の 日 | E19: =IF($AG$3=2021,"振替休日","") -> 振替休日 | M19: =IF($AG$3=2021,"",IF($AG$3>2015,IF(M15=11,"山 の 日",""),"")) ->  | Q19: =IF($AG$3>2015,IF(Q15=11,"山 の 日",""),"") ->  | U19: =IF($AG$3>2015,IF(U15=11,"山 の 日",""),"") ->  | Y19: =IF($AG$3>2015,IF(Y15=11,"山 の 日",""),"") -> 
A20: =$Y15+1 -> 15 | E20: =A20+1 -> 16 | I20: =E20+1 -> 17 | M20: =I20+1 -> 18 | Q20: =M20+1 -> 19 | U20: =Q20+1 -> 20 | Y20: =U20+1 -> 21
A24: =IF($AG$3>2015,IF(A20=11,"山 の 日",""),"") ->  | E24: =IF($AG$3=2020,"山 の 日",IF($AG$3>2015,IF(E20=11,"山 の 日",IF(E20=12,"振替休日","")),"")) ->  | I24: =IF($AG$3>2015,IF(I20=11,"山 の 日",""),"") -> 
A25: =$Y20+1 -> 22 | E25: =A25+1 -> 23 | I25: =E25+1 -> 24 | M25: =I25+1 -> 25 | Q25: =M25+1 -> 26 | U25: =Q25+1 -> 27 | Y25: =U25+1 -> 28
A30: =$Y25+1 -> 29 | E30: =A30+1 -> 30 | I30: =IF(E30=31,"",IF(E30="","",E30+1)) -> 31 | M30: =IF(I30=31,"",IF(I30="","",I30+1)) ->  | Q30: =IF(M30=31,"",IF(M30="","",M30+1)) ->  | U30: =IF(Q30=31,"",IF(Q30="","",Q30+1)) ->  | Y30: =IF(U30=31,"",IF(U30="","",U30+1)) -> 
A35: =IF(Y30=31,"",IF(Y30="","",Y30+1)) ->  | E35: =IF(A35=31,"",IF(A35="","",A35+1)) ->  | I35: =IF(E35=31,"",IF(E35="","",E35+1)) ->  | M35: =IF(I35=31,"",IF(I35="","",I35+1)) ->  | Q35: =IF(M35=31,"",IF(M35="","",M35+1)) -> 
U36: 葉 月
U38: August
AB40: Jan. 8th 2011 - nasutaworks(AN2)

Sheet 9
AG1: 設定部 | AH1: =IF(AG3<2019,入力部!R20,入力部!R21) -> 令和 | AL1: 2016以降山の日対応ダミー部
C2: ８月 | K2: =IF(AH1=0,DBCS(AG3)&"年",DBCS(AG3)&"年 ／ "&AH1&DBCS(AH3)&"年") -> ２０２１年 ／ 令和３年 | X2: １０月 | AG2: 西暦 | AH2: 和暦 | AN2: ８月
A3: =IF(ISBLANK(AL3),"",AL3) -> 1 | B3: =IF(ISBLANK(AM3),"",AM3) -> 2 | C3: 3 | D3: 4 | E3: 5 | F3: 6 | G3: 7 | J3: 9 | V3: =IF($AH$7=0,1,"") ->  | W3: =IF($AH$7=1,1,IF(V3="","",V3+1)) ->  | X3: =IF($AH$7=2,1,IF(W3="","",W3+1)) ->  | Y3: =IF($AH$7=3,1,IF(X3="","",X3+1)) ->  | Z3: =IF($AH$7=4,1,IF(Y3="","",Y3+1)) ->  | AA3: =IF($AH$7=5,1,IF(Z3="","",Z3+1)) -> 1 | AB3: =IF($AH$7=6,1,IF(AA3="","",AA3+1)) -> 2 | AG3: =入力部!J3 -> 2021 | AH3: =IF(AG3<2019,AG3-2000+12,IF(AG3-2018=1,"元",AG3-2018)) -> 3 | AL3: =IF($AH$5=0,1,"") -> 1 | AM3: =IF($AH$5=1,1,IF(AL3="","",AL3+1)) -> 2 | AN3: =IF($AH$5=2,1,IF(AM3="","",AM3+1)) -> 3 | AO3: =IF($AH$5=3,1,IF(AN3="","",AN3+1)) -> 4 | AP3: =IF($AH$5=4,1,IF(AO3="","",AO3+1)) -> 5 | AQ3: =IF($AH$5=5,1,IF(AP3="","",AP3+1)) -> 6 | AR3: =IF($AH$5=6,1,IF(AQ3="","",AQ3+1)) -> 7
A4: 8 | B4: 9 | C4: 10 | D4: =IF(ISBLANK(AO4),"",IF(AO4=11,IF($AG$3<2016," "&AO4,AO4),AO4)) -> 11 | E4: =IF(ISBLANK(AP4),"",IF(AP4=11,IF($AG$3<2016," "&AP4,AP4),AP4)) -> 12 | F4: =IF(ISBLANK(AQ4),"",IF(AQ4=11,IF($AG$3<2016," "&AQ4,AQ4),AQ4)) -> 13 | G4: =IF(ISBLANK(AR4),"",IF(AR4=11,IF($AG$3<2016," "&AR4,AR4),AR4)) -> 14 | V4: =AB3+1 -> 3 | W4: =V4+1 -> 4 | X4: 5 | Y4: 6 | Z4: 7 | AA4: 8 | AB4: 9 | AG4: 曜日計算 | AL4: =AR3+1 -> 8 | AM4: =AL4+1 -> 9 | AN4: 10 | AO4: 11 | AP4: 12 | AQ4: 13 | AR4: 14
A5: 15 | B5: =IF(ISBLANK(AM5),"",IF(AM5=11,IF($AG$3<2016," "&AM5,AM5),AM5)) -> 16 | C5: =IF(ISBLANK(AN5),"",IF(AN5=11,IF($AG$3<2016," "&AN5,AN5),AN5)) -> 17 | D5: 18 | E5: 19 | F5: 20 | G5: 21 | V5: =AB4+1 -> 10 | W5: 11 | X5: 12 | Y5: 13 | Z5: 14 | AA5: 15 | AB5: 16 | AG5: 前月 | AH5: =入力部!D25 -> 0 | AL5: =AR4+1 -> 15 | AM5: 16 | AN5: 17 | AO5: 18 | AP5: 19 | AQ5: 20 | AR5: 21
A6: 22 | B6: 23 | C6: 24 | D6: 25 | E6: 26 | F6: 27 | G6: 28 | V6: =AB5+1 -> 17 | W6: 18 | X6: 19 | Y6: 20 | Z6: 21 | AA6: 22 | AB6: 23 | AG6: 当月 | AH6: =入力部!D26 -> 3 | AL6: =AR5+1 -> 22 | AM6: 23 | AN6: 24 | AO6: 25 | AP6: 26 | AQ6: 27 | AR6: 28
A7: 29 | B7: 30 | C7: 31 | V7: =AB6+1 -> 24 | W7: =V7+1 -> 25 | X7: =IF(W7=31,"",IF(W7="","",W7+1)) -> 26 | Y7: 27 | Z7: 28 | AA7: 29 | AB7: 30 | AG7: 次月 | AH7: =入力部!D27 -> 5 | AL7: =AR6+1 -> 29 | AM7: =AL7+1 -> 30 | AN7: =IF(AM7=31,"",IF(AM7="","",AM7+1)) -> 31
M8: =IF(入力部!$T$17="","",入力部!$T$17&"／") -> しんちゅう／ | N8: =IF(入力部!$S$17="","",入力部!$S$17) -> 辛丑 | P8: =IF(入力部!$U$17="","","／"&入力部!$U$17) -> ／かのとうし | V8: =IF(AB7=31,"",IF(AB7="","",AB7+1)) -> 31 | W8: =IF(V8=31,"",IF(V8="","",V8+1)) ->  | AL8: =IF(AR7=31,"",IF(AR7="","",AR7+1)) ->  | AM8: =IF(AL8=31,"",IF(AL8="","",AL8+1)) -> 
A9: ＳＵＮ | E9: ＭＯＮ | I9: ＴＵＥ | M9: ＷＥＤ | Q9: ＴＨＵ | U9: ＦＲＩ | Y9: ＳＡＴ | AG9: 祝日データ
A10: =IF($AH$6=0,1,"") ->  | B10: =IF(Z14=1,1,IF(A10="","",A10+1)) ->  | C10: =IF(Z14=2,1,IF(B10="","",B10+1)) ->  | D10: =IF(Z14=3,1,IF(C10="","",C10+1)) ->  | E10: =IF($AH$6=1,1,IF(A10="","",A10+1)) ->  | I10: =IF($AH$6=2,1,IF(E10="","",E10+1)) ->  | M10: =IF($AH$6=3,1,IF(I10="","",I10+1)) -> 1 | Q10: =IF($AH$6=4,1,IF(M10="","",M10+1)) -> 2 | U10: =IF($AH$6=5,1,IF(Q10="","",Q10+1)) -> 3 | Y10: =IF($AH$6=6,1,IF(U10="","",U10+1)) -> 4 | AG10: 敬老の日
A11: =IF(Z15=0,1,"") -> 1 | B11: =IF(Z15=1,1,IF(A11="","",A11+1)) -> 2 | C11: =IF(Z15=2,1,IF(B11="","",B11+1)) -> 3 | D11: =IF(Z15=3,1,IF(C11="","",C11+1)) -> 4 | AG11: 9月の第3月曜日 多年にわたり社会につくしてきた老人を敬愛し、長寿を祝う。
A12: =IF(Z16=0,1,"") -> 1 | B12: =IF(Z16=1,1,IF(A12="","",A12+1)) -> 2 | C12: =IF(Z16=2,1,IF(B12="","",B12+1)) -> 3 | D12: =IF(Z16=3,1,IF(C12="","",C12+1)) -> 4 | AG12: 秋分の日
AG13: 秋分日(9月23日頃) 祖先をうやまい、なくなった人々をしのぶ。
AG14: 秋分日： | AH14: =入力部!L18 -> 23
A15: =$Y10+1 -> 5 | E15: =A$15+1 -> 6 | I15: =E$15+1 -> 7 | M15: =I$15+1 -> 8 | Q15: =M$15+1 -> 9 | U15: =Q$15+1 -> 10 | Y15: =U$15+1 -> 11
A20: =$Y15+1 -> 12 | E20: =A20+1 -> 13 | I20: =E20+1 -> 14 | M20: =I20+1 -> 15 | Q20: =M20+1 -> 16 | U20: =Q20+1 -> 17 | Y20: =U20+1 -> 18
E24: =IF(E20=15,"敬老の日",IF(E20=16,"敬老の日","")) -> 
A25: =$Y20+1 -> 19 | E25: =IF(E28=$AH$14,E28&" ",IF(A28=$AH$14,E28&" ",E28)) -> 20 | I25: =IF(I28=$AH$14,I28&" ",IF(23<E28,I28,IF(E28<17,I28,IF(M28=$AH$14,I28&" ",I28)))) -> 21 | M25: =IF(M28=$AH$14,M28&" ",M28) -> 22 | Q25: =IF(Q28=$AH$14,Q28&" ",Q28) -> 23 | U25: =IF(U28=$AH$14,U28&" ",U28) -> 24 | Y25: =IF(Y28=$AH$14,Y28&" ",Y28) -> 25
A28: =Y20+1 -> 19 | E28: =A28+1 -> 20 | I28: =E28+1 -> 21 | M28: =I28+1 -> 22 | Q28: =M28+1 -> 23 | U28: =Q28+1 -> 24 | Y28: =U28+1 -> 25
A29: =IF(A28>23,"",IF(A28<22,"",IF(A28=$AH$14,"秋分の日",""))) ->  | E29: =IF(E28>23,"",IF(E28<17,"",IF(E28<22,"敬老の日",IF(E28=$AH$14,"秋分の日","")))) -> 敬老の日 | I29: =IF(23<I28,"",IF(I28<17,"",IF(M28=$AH$14,"国民の休日",IF(I28=$AH$14,"秋分の日","")))) ->  | M29: =IF(M28>23,"",IF(M28<22,"",IF(M28=$AH$14,"秋分の日",""))) ->  | Q29: =IF(Q28>23,"",IF(Q28<22,"",IF(Q28=$AH$14,"秋分の日",""))) -> 秋分の日 | U29: =IF(U28>23,"",IF(U28<22,"",IF(U28=$AH$14,"秋分の日",""))) ->  | Y29: =IF(Y28>23,"",IF(Y28<22,"",IF(Y28=$AH$14,"秋分の日",""))) -> 
A30: =$Y25+1 -> 26 | E30: =IF(A30=$AH$14,E33&" ",A30+1) -> 27 | I30: =IF(E30=30,"",IF(E30="","",E30+1)) -> 28 | M30: =IF(I30=30,"",IF(I30="","",I30+1)) -> 29 | Q30: =IF(M30=30,"",IF(M30="","",M30+1)) -> 30 | U30: =IF(Q30=30,"",IF(Q30="","",Q30+1)) ->  | Y30: =IF(U30=30,"",IF(U30="","",U30+1)) -> 
A33: =Y25+1 -> 26 | E33: =A30+1 -> 27
A34: =IF(A33>23,"",IF(A33<22,"",IF(A33=$AH$14,"秋分の日",""))) ->  | E34: =IF(A30=$AH$14,"振替休日","") -> 
A35: =IF(Y30=30,"",IF(Y30="","",Y30+1)) ->  | E35: =IF(A35=30,"",IF(A35="","",A35+1)) ->  | I35: =IF(E35=30,"",IF(E35="","",E35+1)) ->  | M35: =IF(I35=30,"",IF(I35="","",I35+1)) ->  | Q35: =IF(M35=30,"",IF(M35="","",M35+1)) -> 
U36: 長 月
U38: September
AB40: Jan. 8th 2011 - nasutaworks(AN2)

Sheet 10
AG1: 設定部 | AH1: =IF(AG3<2019,入力部!R20,入力部!R21) -> 令和 | AL1: 秋分日対応用ダミー部
C2: ９月 | K2: =IF(AH1=0,DBCS(AG3)&"年",DBCS(AG3)&"年 ／ "&AH1&DBCS(AH3)&"年") -> ２０２１年 ／ 令和３年 | X2: １１月 | AG2: 西暦 | AH2: 和暦 | AN2: ９月
A3: =IF(ISBLANK(AL3),"",AL3) ->  | B3: =IF(ISBLANK(AM3),"",AM3) ->  | D3: 1 | E3: 2 | F3: 3 | G3: 4 | J3: 10 | V3: =IF($AH$7=0,1,"") ->  | W3: =IF($AH$7=1,1,IF(V3="","",V3+1)) -> 1 | X3: =IF($AH$7=2,1,IF(W3="","",W3+1)) -> 2 | Y3: =IF($AH$7=3,1,IF(X3="","",X3+1)) -> 3 | Z3: =IF($AH$7=4,1,IF(Y3="","",Y3+1)) -> 4 | AA3: =IF($AH$7=5,1,IF(Z3="","",Z3+1)) -> 5 | AB3: =IF($AH$7=6,1,IF(AA3="","",AA3+1)) -> 6 | AG3: =入力部!J3 -> 2021 | AH3: =IF(AG3<2019,AG3-2000+12,IF(AG3-2018=1,"元",AG3-2018)) -> 3 | AL3: =IF($AH$5=0,1,"") ->  | AM3: =IF($AH$5=1,1,IF(AL3="","",AL3+1)) ->  | AN3: =IF($AH$5=2,1,IF(AM3="","",AM3+1)) ->  | AO3: =IF($AH$5=3,1,IF(AN3="","",AN3+1)) -> 1 | AP3: =IF($AH$5=4,1,IF(AO3="","",AO3+1)) -> 2 | AQ3: =IF($AH$5=5,1,IF(AP3="","",AP3+1)) -> 3 | AR3: =IF($AH$5=6,1,IF(AQ3="","",AQ3+1)) -> 4
A4: 5 | B4: =IF(ISBLANK(AM4),"",AM4) -> 6 | C4: 7 | D4: 8 | E4: 9 | F4: 10 | G4: 11 | V4: =AB3+1 -> 7 | W4: =V4+1 -> 8 | X4: 9 | Y4: 10 | Z4: 11 | AA4: 12 | AB4: 13 | AG4: 曜日計算 | AL4: =AR3+1 -> 5 | AM4: =AL4+1 -> 6 | AN4: 7 | AO4: 8 | AP4: 9 | AQ4: 10 | AR4: 11
A5: 12 | B5: 13 | C5: 14 | D5: 15 | E5: 16 | F5: 17 | G5: 18 | V5: =AB4+1 -> 14 | W5: 15 | X5: 16 | Y5: 17 | Z5: 18 | AA5: 19 | AB5: 20 | AG5: 前月 | AH5: =入力部!D26 -> 3 | AL5: =AR4+1 -> 12 | AM5: =AL5+1 -> 13 | AN5: 14 | AO5: 15 | AP5: 16 | AQ5: 17 | AR5: 18
A6: 19 | B6: =IF(ISBLANK(AM6),"",IF(AL6=$AH$12," "&AM6,AM6)) -> 20 | C6: =IF(ISBLANK(AN6),"",IF(AN6=$AH$12," "&AN6,IF(AO6=$AH$12," "&AN6,AN6))) -> 21 | D6: =IF(ISBLANK(AO6),"",IF(AO6=$AH$12," "&AO6,AO6)) -> 22 | E6: =IF(ISBLANK(AP6),"",IF(AP6=$AH$12," "&AP6,AP6)) -> 23 | F6: =IF(ISBLANK(AQ6),"",IF(AQ6=$AH$12," "&AQ6,AQ6)) -> 24 | G6: =IF(ISBLANK(AR6),"",IF(AR6=$AH$12," "&AR6,AR6)) -> 25 | V6: =AB5+1 -> 21 | W6: 22 | X6: 23 | Y6: 24 | Z6: 25 | AA6: 26 | AB6: 27 | AG6: 当月 | AH6: =入力部!D27 -> 5 | AL6: =AR5+1 -> 19 | AM6: =AL6+1 -> 20 | AN6: 21 | AO6: 22 | AP6: 23 | AQ6: 24 | AR6: 25
A7: 26 | B7: =IF(ISBLANK(AM7),"",IF(AL7=$AH$12," "&AM7,AM7)) -> 27 | C7: =IF(ISBLANK(AN7),"",AN7) -> 28 | D7: 29 | E7: 30 | V7: =AB6+1 -> 28 | W7: =V7+1 -> 29 | X7: =IF(W7=30,"",IF(W7="","",W7+1)) -> 30 | Y7: =IF(X7=30,"",IF(X7="","",X7+1)) ->  | Z7: =IF(Y7=30,"",IF(Y7="","",Y7+1)) ->  | AA7: =IF(Z7=30,"",IF(Z7="","",Z7+1)) ->  | AG7: 次月 | AH7: =入力部!D28 -> 1 | AL7: =AR6+1 -> 26 | AM7: =AL7+1 -> 27 | AN7: =IF(AM7=30,"",IF(AM7="","",AM7+1)) -> 28 | AO7: 29 | AP7: 30
B8: =IF(ISBLANK(AM8),"",AM8) ->  | M8: =IF(入力部!$T$17="","",入力部!$T$17&"／") -> しんちゅう／ | N8: =IF(入力部!$S$17="","",入力部!$S$17) -> 辛丑 | P8: =IF(入力部!$U$17="","","／"&入力部!$U$17) -> ／かのとうし | V8: =IF(AB7=30,"",IF(AB7="","",AB7+1)) ->  | W8: =IF(V8=30,"",IF(V8="","",V8+1)) ->  | X8: =IF(W8=30,"",IF(W8="","",W8+1)) ->  | Y8: =IF(X8=30,"",IF(X8="","",X8+1)) ->  | AL8: =IF(AR7=30,"",IF(AR7="","",AR7+1)) ->  | AM8: =IF(AL8=30,"",IF(AL8="","",AL8+1)) -> 
A9: ＳＵＮ | E9: ＭＯＮ | I9: ＴＵＥ | M9: ＷＥＤ | Q9: ＴＨＵ | U9: ＦＲＩ | Y9: ＳＡＴ | AG9: 祝日データ
A10: =IF($AH$6=0,1,"") ->  | B10: =IF(Z14=1,1,IF(A10="","",A10+1)) ->  | C10: =IF(Z14=2,1,IF(B10="","",B10+1)) ->  | D10: =IF(Z14=3,1,IF(C10="","",C10+1)) ->  | E10: =IF($AH$6=1,1,IF(A10="","",A10+1)) ->  | I10: =IF($AH$6=2,1,IF(E10="","",E10+1)) ->  | M10: =IF($AH$6=3,1,IF(I10="","",I10+1)) ->  | Q10: =IF($AH$6=4,1,IF(M10="","",M10+1)) ->  | U10: =IF($AH$6=5,1,IF(Q10="","",Q10+1)) -> 1 | Y10: =IF($AH$6=6,1,IF(U10="","",U10+1)) -> 2 | AG10: =IF($AG$3<2020,$AH$10,$AI$10) -> スポーツの日 | AH10: 体育の日 | AI10: スポーツの日
A11: =IF(Z15=0,1,"") -> 1 | B11: =IF(Z15=1,1,IF(A11="","",A11+1)) -> 2 | C11: =IF(Z15=2,1,IF(B11="","",B11+1)) -> 3 | D11: =IF(Z15=3,1,IF(C11="","",C11+1)) -> 4 | AG11: 10月の第2月曜日 スポーツにしたしみ、健康な心身をつちかう。
A12: =IF(Z16=0,1,"") -> 1 | B12: =IF(Z16=1,1,IF(A12="","",A12+1)) -> 2 | C12: =IF(Z16=2,1,IF(B12="","",B12+1)) -> 3 | D12: =IF(Z16=3,1,IF(C12="","",C12+1)) -> 4 | AG12: （秋分日）： | AH12: =入力部!L18 -> 23
A15: =$Y10+1 -> 3 | E15: =A$15+1 -> 4 | I15: =E$15+1 -> 5 | M15: =I$15+1 -> 6 | Q15: =M$15+1 -> 7 | U15: =Q$15+1 -> 8 | Y15: =U$15+1 -> 9
E19: =IF(E15=8,AG10,IF(E15=9,AG10,"")) -> 
A20: =$Y15+1 -> 10 | E20: =A20+1 -> 11 | I20: =E20+1 -> 12 | M20: =I20+1 -> 13 | Q20: =M20+1 -> 14 | U20: =Q20+1 -> 15 | Y20: =U20+1 -> 16
E24: =IF(E20<10,"",IF(14<E20,"",AG10)) -> スポーツの日
A25: =$Y20+1 -> 17 | E25: =A25+1 -> 18 | I25: =E25+1 -> 19 | M25: =I25+1 -> 20 | Q25: =M25+1 -> 21 | U25: =Q25+1 -> 22 | Y25: =U25+1 -> 23
I29: =IF($AG$3=2019,"即位礼正殿の儀","") -> 
A30: =$Y25+1 -> 24 | E30: =A30+1 -> 25 | I30: =IF(E30=31,"",IF(E30="","",E30+1)) -> 26 | M30: =IF(I30=31,"",IF(I30="","",I30+1)) -> 27 | Q30: =IF(M30=31,"",IF(M30="","",M30+1)) -> 28 | U30: =IF(Q30=31,"",IF(Q30="","",Q30+1)) -> 29 | Y30: =IF(U30=31,"",IF(U30="","",U30+1)) -> 30
A35: =IF(Y30=31,"",IF(Y30="","",Y30+1)) -> 31 | E35: =IF(A35=31,"",IF(A35="","",A35+1)) ->  | I35: =IF(E35=31,"",IF(E35="","",E35+1)) ->  | M35: =IF(I35=31,"",IF(I35="","",I35+1)) ->  | Q35: =IF(M35=31,"",IF(M35="","",M35+1)) -> 
U36: 神無月
U38: October
AB40: Jan. 8th 2011 - nasutaworks(AN2)

Sheet 11
AG1: 設定部 | AH1: =IF(AG3<2019,入力部!R20,入力部!R21) -> 令和
C2: １０月 | K2: =IF(AH1=0,DBCS(AG3)&"年",DBCS(AG3)&"年 ／ "&AH1&DBCS(AH3)&"年") -> ２０２１年 ／ 令和３年 | X2: １２月 | AG2: 西暦 | AH2: 和暦
A3: =IF($AH$5=0,1,"") ->  | B3: =IF($AH$5=1,1,IF(A3="","",A3+1)) ->  | C3: =IF($AH$5=2,1,IF(B3="","",B3+1)) ->  | D3: =IF($AH$5=3,1,IF(C3="","",C3+1)) ->  | E3: =IF($AH$5=4,1,IF(D3="","",D3+1)) ->  | F3: =IF($AH$5=5,1,IF(E3="","",E3+1)) -> 1 | G3: =IF($AH$5=6,1,IF(F3="","",F3+1)) -> 2 | J3: 11 | V3: =IF($AH$7=0,1,"") ->  | W3: =IF($AH$7=1,1,IF(V3="","",V3+1)) ->  | X3: =IF($AH$7=2,1,IF(W3="","",W3+1)) ->  | Y3: =IF($AH$7=3,1,IF(X3="","",X3+1)) -> 1 | Z3: =IF($AH$7=4,1,IF(Y3="","",Y3+1)) -> 2 | AA3: =IF($AH$7=5,1,IF(Z3="","",Z3+1)) -> 3 | AB3: =IF($AH$7=6,1,IF(AA3="","",AA3+1)) -> 4 | AG3: =入力部!J3 -> 2021 | AH3: =IF(AG3<2019,AG3-2000+12,IF(AG3-2018=1,"元",AG3-2018)) -> 3
A4: =G3+1 -> 3 | B4: =A4+1 -> 4 | C4: 5 | D4: 6 | E4: 7 | F4: 8 | G4: 9 | V4: =AB3+1 -> 5 | W4: =V4+1 -> 6 | X4: 7 | Y4: 8 | Z4: 9 | AA4: 10 | AB4: 11 | AG4: 曜日計算
A5: =G4+1 -> 10 | B5: 11 | C5: 12 | D5: 13 | E5: 14 | F5: 15 | G5: 16 | V5: =AB4+1 -> 12 | W5: 13 | X5: 14 | Y5: 15 | Z5: 16 | AA5: 17 | AB5: 18 | AG5: 前月 | AH5: =入力部!D27 -> 5
A6: =G5+1 -> 17 | B6: 18 | C6: 19 | D6: 20 | E6: 21 | F6: 22 | G6: 23 | V6: =AB5+1 -> 19 | W6: 20 | X6: 21 | Y6: 22 | Z6: 23 | AA6: 24 | AB6: 25 | AG6: 当月 | AH6: =入力部!D28 -> 1
A7: =G6+1 -> 24 | B7: =A7+1 -> 25 | C7: =IF(B7=31,"",IF(B7="","",B7+1)) -> 26 | D7: 27 | E7: 28 | F7: 29 | G7: 30 | V7: =AB6+1 -> 26 | W7: =V7+1 -> 27 | X7: =IF(W7=31,"",IF(W7="","",W7+1)) -> 28 | Y7: 29 | Z7: 30 | AA7: 31 | AG7: 次月 | AH7: =入力部!D29 -> 3
A8: =IF(G7=31,"",IF(G7="","",G7+1)) -> 31 | B8: =IF(A8=31,"",IF(A8="","",A8+1)) ->  | M8: =IF(入力部!$T$17="","",入力部!$T$17&"／") -> しんちゅう／ | N8: =IF(入力部!$S$17="","",入力部!$S$17) -> 辛丑 | P8: =IF(入力部!$U$17="","","／"&入力部!$U$17) -> ／かのとうし | V8: =IF(AB7=31,"",IF(AB7="","",AB7+1)) ->  | W8: =IF(V8=31,"",IF(V8="","",V8+1)) -> 
A9: ＳＵＮ | E9: ＭＯＮ | I9: ＴＵＥ | M9: ＷＥＤ | Q9: ＴＨＵ | U9: ＦＲＩ | Y9: ＳＡＴ | AG9: 祝日データ
A10: =IF($AH$6=0,1,"") ->  | B10: =IF(Z14=1,1,IF(A10="","",A10+1)) ->  | C10: =IF(Z14=2,1,IF(B10="","",B10+1)) ->  | D10: =IF(Z14=3,1,IF(C10="","",C10+1)) ->  | E10: =IF($AH$6=1,1,IF(A10="","",A10+1)) -> 1 | I10: =IF($AH$6=2,1,IF(E10="","",E10+1)) -> 2 | M10: =IF($AH$6=3,1,IF(I10="","",I10+1)) -> 3 | Q10: =IF($AH$6=4,1,IF(M10="","",M10+1)) -> 4 | U10: =IF($AH$6=5,1,IF(Q10="","",Q10+1)) -> 5 | Y10: =IF($AH$6=6,1,IF(U10="","",U10+1)) -> 6 | AG10: 文化の日
A11: =IF(Z15=0,1,"") -> 1 | B11: =IF(Z15=1,1,IF(A11="","",A11+1)) -> 2 | C11: =IF(Z15=2,1,IF(B11="","",B11+1)) -> 3 | D11: =IF(Z15=3,1,IF(C11="","",C11+1)) -> 4 | AG11: 11月3日 自由と平和を愛し、文化をすすめる。
A12: =IF(Z16=0,1,"") -> 1 | B12: =IF(Z16=1,1,IF(A12="","",A12+1)) -> 2 | C12: =IF(Z16=2,1,IF(B12="","",B12+1)) -> 3 | D12: =IF(Z16=3,1,IF(C12="","",C12+1)) -> 4 | AG12: 勤労感謝の日
AG13: 11月23日 勤労をたっとび、生産を祝い、国民たがいに感謝しあう。
I14: =IF(I10=3,"文化の日","") ->  | M14: =IF(M10=3,"文化の日","") -> 文化の日 | Q14: =IF(Q10=3,"文化の日","") ->  | U14: =IF(U10=3,"文化の日","") ->  | Y14: =IF(Y10=3,"文化の日","") -> 
A15: =$Y10+1 -> 7 | E15: =A$15+1 -> 8 | I15: =E$15+1 -> 9 | M15: =I$15+1 -> 10 | Q15: =M$15+1 -> 11 | U15: =Q$15+1 -> 12 | Y15: =U$15+1 -> 13
A19: =IF(A15=3,"文化の日","") ->  | E19: =IF(E15=3,"文化の日",IF(E15=4,"振替休日","")) -> 
A20: =$Y15+1 -> 14 | E20: =A20+1 -> 15 | I20: =E20+1 -> 16 | M20: =I20+1 -> 17 | Q20: =M20+1 -> 18 | U20: =Q20+1 -> 19 | Y20: =U20+1 -> 20
A25: =$Y20+1 -> 21 | E25: =A25+1 -> 22 | I25: =E25+1 -> 23 | M25: =I25+1 -> 24 | Q25: =M25+1 -> 25 | U25: =Q25+1 -> 26 | Y25: =U25+1 -> 27
E29: =IF(E25=23,"勤労感謝の日","") ->  | I29: =IF(I25=23,"勤労感謝の日","") -> 勤労感謝の日 | M29: =IF(M25=23,"勤労感謝の日","") ->  | Q29: =IF(Q25=23,"勤労感謝の日","") ->  | U29: =IF(U25=23,"勤労感謝の日","") ->  | Y29: =IF(Y25=23,"勤労感謝の日","") -> 
A30: =$Y25+1 -> 28 | E30: =A30+1 -> 29 | I30: =IF(E30=30,"",IF(E30="","",E30+1)) -> 30 | M30: =IF(I30=30,"",IF(I30="","",I30+1)) ->  | Q30: =IF(M30=30,"",IF(M30="","",M30+1)) ->  | U30: =IF(Q30=30,"",IF(Q30="","",Q30+1)) ->  | Y30: =IF(U30=30,"",IF(U30="","",U30+1)) -> 
A34: =IF(A30=23,"勤労感謝の日","") ->  | E34: =IF(E30=24,"振替休日","") -> 
A35: =IF(Y30=30,"",IF(Y30="","",Y30+1)) ->  | E35: =IF(A35=30,"",IF(A35="","",A35+1)) ->  | I35: =IF(E35=30,"",IF(E35="","",E35+1)) ->  | M35: =IF(I35=30,"",IF(I35="","",I35+1)) ->  | Q35: =IF(M35=30,"",IF(M35="","",M35+1)) -> 
U36: 霜 月
U38: November
AB40: Jan. 8th 2011 - nasutaworks(AN2)

Sheet 12
AG1: 設定部 | AH1: =IF(AG3<2019,入力部!R20,入力部!R21) -> 令和
C2: １１月 | K2: =IF(AH1=0,DBCS(AG3)&"年",DBCS(AG3)&"年 ／ "&AH1&DBCS(AH3)&"年") -> ２０２１年 ／ 令和３年 | X2: 1月 | AG2: 西暦 | AH2: 和暦
A3: =IF($AH$5=0,1,"") ->  | B3: =IF($AH$5=1,1,IF(A3="","",A3+1)) -> 1 | C3: =IF($AH$5=2,1,IF(B3="","",B3+1)) -> 2 | D3: =IF($AH$5=3,1,IF(C3="","",C3+1)) -> 3 | E3: =IF($AH$5=4,1,IF(D3="","",D3+1)) -> 4 | F3: =IF($AH$5=5,1,IF(E3="","",E3+1)) -> 5 | G3: =IF($AH$5=6,1,IF(F3="","",F3+1)) -> 6 | J3: 12 | V3: =IF($AH$7=0,1,"") ->  | W3: =IF($AH$7=1,1,IF(V3="","",V3+1)) ->  | X3: =IF($AH$7=2,1,IF(W3="","",W3+1)) ->  | Y3: =IF($AH$7=3,1,IF(X3="","",X3+1)) ->  | Z3: =IF($AH$7=4,1,IF(Y3="","",Y3+1)) ->  | AA3: =IF($AH$7=5,1,IF(Z3="","",Z3+1)) ->  | AB3: =IF($AH$7=6,1,IF(AA3="","",AA3+1)) -> 1 | AG3: =入力部!J3 -> 2021 | AH3: =IF(AG3<2019,AG3-2000+12,IF(AG3-2018=1,"元",AG3-2018)) -> 3
A4: =G3+1 -> 7 | B4: =A4+1 -> 8 | C4: 9 | D4: 10 | E4: 11 | F4: 12 | G4: 13 | V4: =AB3+1 -> 2 | W4: =V4+1 -> 3 | X4: 4 | Y4: 5 | Z4: 6 | AA4: 7 | AB4: 8 | AG4: 曜日計算
A5: =G4+1 -> 14 | B5: 15 | C5: 16 | D5: 17 | E5: 18 | F5: 19 | G5: 20 | V5: =AB4+1 -> 9 | W5: 10 | X5: 11 | Y5: 12 | Z5: 13 | AA5: 14 | AB5: 15 | AG5: 前月 | AH5: =入力部!D28 -> 1
A6: =G5+1 -> 21 | B6: 22 | C6: 23 | D6: 24 | E6: 25 | F6: 26 | G6: 27 | V6: =AB5+1 -> 16 | W6: 17 | X6: 18 | Y6: 19 | Z6: 20 | AA6: 21 | AB6: 22 | AG6: 当月 | AH6: =入力部!D29 -> 3
A7: =G6+1 -> 28 | B7: =A7+1 -> 29 | C7: =IF(B7=30,"",IF(B7="","",B7+1)) -> 30 | V7: =AB6+1 -> 23 | W7: =V7+1 -> 24 | X7: =IF(W7=31,"",IF(W7="","",W7+1)) -> 25 | Y7: 26 | Z7: 27 | AA7: 28 | AB7: 29 | AG7: 次月 | AH7: =入力部!D30 -> 6
A8: =IF(G7=30,"",IF(G7="","",G7+1)) ->  | B8: =IF(A8=30,"",IF(A8="","",A8+1)) ->  | M8: =IF(入力部!$T$17="","",入力部!$T$17&"／") -> しんちゅう／ | N8: =IF(入力部!$S$17="","",入力部!$S$17) -> 辛丑 | P8: =IF(入力部!$U$17="","","／"&入力部!$U$17) -> ／かのとうし | V8: =IF(AB7=31,"",IF(AB7="","",AB7+1)) -> 30 | W8: =IF(V8=31,"",IF(V8="","",V8+1)) -> 31
A9: ＳＵＮ | E9: ＭＯＮ | I9: ＴＵＥ | M9: ＷＥＤ | Q9: ＴＨＵ | U9: ＦＲＩ | Y9: ＳＡＴ | AG9: 祝日データ
A10: =IF($AH$6=0,1,"") ->  | B10: =IF(Z14=1,1,IF(A10="","",A10+1)) ->  | C10: =IF(Z14=2,1,IF(B10="","",B10+1)) ->  | D10: =IF(Z14=3,1,IF(C10="","",C10+1)) ->  | E10: =IF($AH$6=1,1,IF(A10="","",A10+1)) ->  | I10: =IF($AH$6=2,1,IF(E10="","",E10+1)) ->  | M10: =IF($AH$6=3,1,IF(I10="","",I10+1)) -> 1 | Q10: =IF($AH$6=4,1,IF(M10="","",M10+1)) -> 2 | U10: =IF($AH$6=5,1,IF(Q10="","",Q10+1)) -> 3 | Y10: =IF($AH$6=6,1,IF(U10="","",U10+1)) -> 4 | AG10: 天皇誕生日
A11: =IF(Z15=0,1,"") -> 1 | B11: =IF(Z15=1,1,IF(A11="","",A11+1)) -> 2 | C11: =IF(Z15=2,1,IF(B11="","",B11+1)) -> 3 | D11: =IF(Z15=3,1,IF(C11="","",C11+1)) -> 4 | AG11: 12月23日 天皇の誕生日を祝う。
A12: =IF(Z16=0,1,"") -> 1 | B12: =IF(Z16=1,1,IF(A12="","",A12+1)) -> 2 | C12: =IF(Z16=2,1,IF(B12="","",B12+1)) -> 3 | D12: =IF(Z16=3,1,IF(C12="","",C12+1)) -> 4
A15: =$Y10+1 -> 5 | E15: =A$15+1 -> 6 | I15: =E$15+1 -> 7 | M15: =I$15+1 -> 8 | Q15: =M$15+1 -> 9 | U15: =Q$15+1 -> 10 | Y15: =U$15+1 -> 11
A20: =$Y15+1 -> 12 | E20: =A20+1 -> 13 | I20: =E20+1 -> 14 | M20: =I20+1 -> 15 | Q20: =M20+1 -> 16 | U20: =Q20+1 -> 17 | Y20: =U20+1 -> 18
A25: =$Y20+1 -> 19 | E25: =A25+1 -> 20 | I25: =E25+1 -> 21 | M25: =I25+1 -> 22 | Q25: =M25+1 -> 23 | U25: =Q25+1 -> 24 | Y25: =U25+1 -> 25
E29: =IF(E25=23,"天皇誕生日","") ->  | I29: =IF(I25=23,"天皇誕生日","") ->  | M29: =IF(M25=23,"天皇誕生日","") ->  | Q29: =IF(Q25=23,"天皇誕生日","") -> 天皇誕生日 | U29: =IF(U25=23,"天皇誕生日","") ->  | Y29: =IF(Y25=23,"天皇誕生日","") -> 
A30: =$Y25+1 -> 26 | E30: =A30+1 -> 27 | I30: =IF(E30=31,"",IF(E30="","",E30+1)) -> 28 | M30: =IF(I30=31,"",IF(I30="","",I30+1)) -> 29 | Q30: =IF(M30=31,"",IF(M30="","",M30+1)) -> 30 | U30: =IF(Q30=31,"",IF(Q30="","",Q30+1)) -> 31 | Y30: =IF(U30=31,"",IF(U30="","",U30+1)) -> 
A34: =IF(A30=23,"天皇誕生日","") ->  | E34: =IF(E30=24,"振替休日","") -> 
A35: =IF(Y30=31,"",IF(Y30="","",Y30+1)) ->  | E35: =IF(A35=31,"",IF(A35="","",A35+1)) ->  | I35: =IF(E35=31,"",IF(E35="","",E35+1)) ->  | M35: =IF(I35=31,"",IF(I35="","",I35+1)) ->  | Q35: =IF(M35=31,"",IF(M35="","",M35+1)) -> 
U36: 師 走
U38: December
AB40: Jan. 8th 2011 - nasutaworks(AN2)

Sheet 1-12月
A1: =Y3 -> 2021 | Y1: 計算部 | AE1: 3月・9月春分・秋分日対応ダミー部
A2: 1月 | I2: 2月 | Q2: 3月 | Y2: プリント年 | AB2: うるう年2月日数判定 | AE2: 3月 | AL2: 祝日・休日一覧
A3: =IF(Z7=0,1,"") ->  | B3: =IF(Z7=1,1,IF(A3="","",A3+1)) ->  | C3: =IF(Z7=2,1,IF(B3="","",B3+1)) ->  | D3: =IF(Z7=3,1,IF(C3="","",C3+1)) ->  | E3: =IF(Z7=4,1,IF(D3="","",D3+1)) ->  | F3: =IF(Z7=5,1,IF(E3="","",E3+1)) -> 1 | G3: =IF(Z7=6,1,IF(F3="","",F3+1)) -> 2 | I3: =IF(Z8=0,1,"") ->  | J3: =IF(Z8=1,1,IF(I3="","",I3+1)) -> 1 | K3: =IF(Z8=2,1,IF(J3="","",J3+1)) -> 2 | L3: =IF(Z8=3,1,IF(K3="","",K3+1)) -> 3 | M3: =IF(Z8=4,1,IF(L3="","",L3+1)) -> 4 | N3: =IF(Z8=5,1,IF(M3="","",M3+1)) -> 5 | O3: =IF(Z8=6,1,IF(N3="","",N3+1)) -> 6 | Q3: =IF(ISBLANK(AE3),"",AE3) ->  | R3: 1 | S3: 2 | T3: 3 | U3: 4 | V3: 5 | W3: 6 | Y3: =入力部!J3 -> 2021 | AC3: =入力部!H17 -> 28 | AE3: =IF(Z9=0,1,"") ->  | AF3: =IF(Z9=1,1,IF(AE3="","",AE3+1)) -> 1 | AG3: =IF(Z9=2,1,IF(AF3="","",AF3+1)) -> 2 | AH3: =IF(Z9=3,1,IF(AG3="","",AG3+1)) -> 3 | AI3: =IF(Z9=4,1,IF(AH3="","",AH3+1)) -> 4 | AJ3: =IF(Z9=5,1,IF(AI3="","",AI3+1)) -> 5 | AK3: =IF(Z9=6,1,IF(AJ3="","",AJ3+1)) -> 6 | AL3: 1月 | AM3: 1日・第2月曜日
A4: =G3+1 -> 3 | B4: =A4+1 -> 4 | C4: 5 | D4: 6 | E4: 7 | F4: 8 | G4: 9 | I4: =O3+1 -> 7 | J4: =I4+1 -> 8 | K4: 9 | L4: 10 | M4: 11 | N4: 12 | O4: 13 | Q4: 7 | R4: 8 | S4: 9 | T4: 10 | U4: 11 | V4: 12 | W4: 13 | AC4: =入力部!H18 -> 28 | AE4: =AK3+1 -> 7 | AF4: =AE4+1 -> 8 | AG4: 9 | AH4: 10 | AI4: 11 | AJ4: 12 | AK4: 13 | AL4: 2月 | AM4: 11日
A5: =G4+1 -> 10 | B5: 11 | C5: 12 | D5: 13 | E5: 14 | F5: 15 | G5: 16 | I5: =O4+1 -> 14 | J5: 15 | K5: 16 | L5: 17 | M5: 18 | N5: 19 | O5: 20 | Q5: 14 | R5: 15 | S5: 16 | T5: 17 | U5: 18 | V5: =IF(ISBLANK(AJ5),"",IF(AJ5=$AA$24," "&AJ5,AJ5)) -> 19 | W5: =IF(ISBLANK(AK5),"",IF(AK5=$AA$24," "&AK5,AK5)) -> 20 | Y5: 曜日判定 | AE5: =AK4+1 -> 14 | AF5: 15 | AG5: 16 | AH5: 17 | AI5: 18 | AJ5: 19 | AK5: 20 | AL5: 3月 | AM5: 21日ごろ（＊）
A6: =G5+1 -> 17 | B6: 18 | C6: 19 | D6: 20 | E6: 21 | F6: 22 | G6: 23 | I6: =O5+1 -> 21 | J6: 22 | K6: 23 | L6: 24 | M6: 25 | N6: 26 | O6: 27 | Q6: =IF(ISBLANK(AE6),"",AE6) -> 21 | R6: =IF(ISBLANK(AF6),"",IF(AF6=$AA$24," "&AF6,IF(AE6=$AA$24," "&AF6,AF6))) -> 22 | S6: =IF(ISBLANK(AG6),"",IF(AG6=$AA$24," "&AG6,AG6)) -> 23 | T6: =IF(ISBLANK(AH6),"",IF(AH6=$AA$24," "&AH6,AH6)) -> 24 | U6: =IF(ISBLANK(AI6),"",IF(AI6=$AA$24," "&AI6,AI6)) -> 25 | V6: 26 | W6: 27 | AE6: =AK5+1 -> 21 | AF6: 22 | AG6: 23 | AH6: 24 | AI6: 25 | AJ6: 26 | AK6: 27 | AL6: 4月 | AM6: 29日
A7: =G6+1 -> 24 | B7: =A7+1 -> 25 | C7: =IF(B7=31,"",IF(B7="","",B7+1)) -> 26 | D7: 27 | E7: 28 | F7: 29 | G7: 30 | I7: =IF(O6=AC3,"",IF(O6="","",O6+1)) -> 28 | J7: =IF(I7=AC3,"",IF(I7="","",I7+1)) ->  | K7: =IF(J7=AC3,"",IF(J7="","",J7+1)) ->  | L7: =IF(K7=AC3,"",IF(K7="","",K7+1)) ->  | M7: =IF(L7=AC3,"",IF(L7="","",L7+1)) ->  | N7: =IF(M7=AC3,"",IF(M7="","",M7+1)) ->  | O7: =IF(N7=AC3,"",IF(N7="","",N7+1)) ->  | Q7: =IF(ISBLANK(AE7),"",AE7) -> 28 | R7: =IF(ISBLANK(AF7),"",AF7) -> 29 | S7: 30 | T7: 31 | Y7: 1月 | Z7: =ROUNDDOWN(MOD(AC7,7),0) -> 5 | AC7: =(Y3-1)+ROUNDDOWN(((Y3-1)/4),0)-ROUNDDOWN(((Y3-1)/100),0)+ROUNDDOWN(((Y3-1)/400),0)+ROUNDDOWN((2.6*(1+12)+1.6),0)+1 -> 2546 | AE7: =AK6+1 -> 28 | AF7: =AE7+1 -> 29 | AG7: =IF(AF7=31,"",IF(AF7="","",AF7+1)) -> 30 | AH7: 31 | AL7: 5月 | AM7: 3日・4日・5日
A8: =IF(G7=31,"",IF(G7="","",G7+1)) -> 31 | B8: =IF(A8=31,"",IF(A8="","",A8+1)) ->  | I8: =IF(O7=AC3,"",IF(O7="","",O7+1)) ->  | J8: =IF(I8=AC3,"",IF(I8="","",I8+1)) ->  | K8: =IF(J8=AC3,"",IF(J8="","",J8+1)) ->  | L8: =IF(K8=AC3,"",IF(K8="","",K8+1)) ->  | M8: =IF(L8=AC3,"",IF(L8="","",L8+1)) ->  | N8: =IF(M8=AC3,"",IF(M8="","",M8+1)) ->  | O8: =IF(N8=AC3,"",IF(N8="","",N8+1)) ->  | Q8: =IF(ISBLANK(AE8),"",AE8) ->  | Y8: 2月 | Z8: 1 | AC8: =(Y3-1)+ROUNDDOWN(((Y3-1)/4),0)-ROUNDDOWN(((Y3-1)/100),0)+ROUNDDOWN(((Y3-1)/400),0)+ROUNDDOWN((2.6*(2+12)+1.6),0)+1 -> 2549 | AE8: =IF(AK7=31,"",IF(AK7="","",AK7+1)) ->  | AF8: =IF(AE8=31,"",IF(AE8="","",AE8+1)) ->  | AL8: 6月
Y9: 3月 | Z9: 1 | AC9: =Y3+ROUNDDOWN((Y3/4),0)-ROUNDDOWN((Y3/100),0)+ROUNDDOWN((Y3/400),0)+ROUNDDOWN((2.6*(3)+1.6),0)+1 -> 2521 | AL9: 7月 | AM9: 第3月曜日
A10: 4月 | I10: 5月 | Q10: 6月 | Y10: 4月 | Z10: 4 | AC10: =Y3+ROUNDDOWN((Y3/4),0)-ROUNDDOWN((Y3/100),0)+ROUNDDOWN((Y3/400),0)+ROUNDDOWN((2.6*(4)+1.6),0)+1 -> 2524 | AL10: 8月
A11: =IF(Z10=0,1,"") ->  | B11: =IF(Z10=1,1,IF(A11="","",A11+1)) ->  | C11: =IF(Z10=2,1,IF(B11="","",B11+1)) ->  | D11: =IF(Z10=3,1,IF(C11="","",C11+1)) ->  | E11: =IF(Z10=4,1,IF(D11="","",D11+1)) -> 1 | F11: =IF(Z10=5,1,IF(E11="","",E11+1)) -> 2 | G11: =IF(Z10=6,1,IF(F11="","",F11+1)) -> 3 | I11: =IF(Z11=0,1,"") ->  | J11: =IF(Z11=1,1,IF(I11="","",I11+1)) ->  | K11: =IF(Z11=2,1,IF(J11="","",J11+1)) ->  | L11: =IF(Z11=3,1,IF(K11="","",K11+1)) ->  | M11: =IF(Z11=4,1,IF(L11="","",L11+1)) ->  | N11: =IF(Z11=5,1,IF(M11="","",M11+1)) ->  | O11: =IF(Z11=6,1,IF(N11="","",N11+1)) -> 1 | Q11: =IF(Z12=0,1,"") ->  | R11: =IF(Z12=1,1,IF(Q11="","",Q11+1)) ->  | S11: =IF(Z12=2,1,IF(R11="","",R11+1)) -> 1 | T11: =IF(Z12=3,1,IF(S11="","",S11+1)) -> 2 | U11: =IF(Z12=4,1,IF(T11="","",T11+1)) -> 3 | V11: =IF(Z12=5,1,IF(U11="","",U11+1)) -> 4 | W11: =IF(Z12=6,1,IF(V11="","",V11+1)) -> 5 | Y11: 5月 | Z11: 6 | AC11: =Y3+ROUNDDOWN((Y3/4),0)-ROUNDDOWN((Y3/100),0)+ROUNDDOWN((Y3/400),0)+ROUNDDOWN((2.6*(5)+1.6),0)+1 -> 2526 | AL11: 9月 | AM11: 第3月曜日・23日ごろ（＊）
A12: =G11+1 -> 4 | B12: =A12+1 -> 5 | C12: 6 | D12: 7 | E12: 8 | F12: 9 | G12: 10 | I12: =O11+1 -> 2 | J12: =I12+1 -> 3 | K12: 4 | L12: 5 | M12: 6 | N12: 7 | O12: 8 | Q12: =W11+1 -> 6 | R12: =Q12+1 -> 7 | S12: 8 | T12: 9 | U12: 10 | V12: 11 | W12: 12 | Y12: 6月 | Z12: 2 | AC12: =Y3+ROUNDDOWN((Y3/4),0)-ROUNDDOWN((Y3/100),0)+ROUNDDOWN((Y3/400),0)+ROUNDDOWN((2.6*(6)+1.6),0)+1 -> 2529 | AL12: 10月 | AM12: 第2月曜日
A13: =G12+1 -> 11 | B13: 12 | C13: 13 | D13: 14 | E13: 15 | F13: 16 | G13: 17 | I13: =O12+1 -> 9 | J13: 10 | K13: 11 | L13: 12 | M13: 13 | N13: 14 | O13: 15 | Q13: =W12+1 -> 13 | R13: 14 | S13: 15 | T13: 16 | U13: 17 | V13: 18 | W13: 19 | Y13: 7月 | Z13: 4 | AC13: =Y3+ROUNDDOWN((Y3/4),0)-ROUNDDOWN((Y3/100),0)+ROUNDDOWN((Y3/400),0)+ROUNDDOWN((2.6*(7)+1.6),0)+1 -> 2531 | AL13: 11月 | AM13: 3日・23日
A14: =G13+1 -> 18 | B14: 19 | C14: 20 | D14: 21 | E14: 22 | F14: 23 | G14: 24 | I14: =O13+1 -> 16 | J14: 17 | K14: 18 | L14: 19 | M14: 20 | N14: 21 | O14: 22 | Q14: =W13+1 -> 20 | R14: 21 | S14: 22 | T14: 23 | U14: 24 | V14: 25 | W14: 26 | Y14: 8月 | Z14: 0 | AC14: =Y3+ROUNDDOWN((Y3/4),0)-ROUNDDOWN((Y3/100),0)+ROUNDDOWN((Y3/400),0)+ROUNDDOWN((2.6*(8)+1.6),0)+1 -> 2534 | AL14: 12月 | AM14: 23日
A15: =G14+1 -> 25 | B15: =A15+1 -> 26 | C15: =IF(B15=30,"",IF(B15="","",B15+1)) -> 27 | D15: 28 | E15: 29 | F15: 30 | I15: =O14+1 -> 23 | J15: =I15+1 -> 24 | K15: =IF(J15=31,"",IF(J15="","",J15+1)) -> 25 | L15: 26 | M15: 27 | N15: 28 | O15: 29 | Q15: =W14+1 -> 27 | R15: =Q15+1 -> 28 | S15: =IF(R15=30,"",IF(R15="","",R15+1)) -> 29 | T15: 30 | Y15: 9月 | Z15: 3 | AC15: =Y3+ROUNDDOWN((Y3/4),0)-ROUNDDOWN((Y3/100),0)+ROUNDDOWN((Y3/400),0)+ROUNDDOWN((2.6*(9)+1.6),0)+1 -> 2537 | AL15: （＊）春分日・秋分日は年ごとに変化
A16: =IF(G15=30,"",IF(G15="","",G15+1)) ->  | B16: =IF(A16=30,"",IF(A16="","",A16+1)) ->  | I16: =IF(O15=31,"",IF(O15="","",O15+1)) -> 30 | J16: =IF(I16=31,"",IF(I16="","",I16+1)) -> 31 | Q16: =IF(W15=30,"",IF(W15="","",W15+1)) ->  | R16: =IF(Q16=30,"",IF(Q16="","",Q16+1)) ->  | Y16: 10月 | Z16: 5 | AC16: =Y3+ROUNDDOWN((Y3/4),0)-ROUNDDOWN((Y3/100),0)+ROUNDDOWN((Y3/400),0)+ROUNDDOWN((2.6*(10)+1.6),0)+1 -> 2539 | AL16: 前年2月ごろに発表
Y17: 11月 | Z17: 1 | AC17: =Y3+ROUNDDOWN((Y3/4),0)-ROUNDDOWN((Y3/100),0)+ROUNDDOWN((Y3/400),0)+ROUNDDOWN((2.6*(11)+1.6),0)+1 -> 2542
A18: 7月 | I18: 8月 | Q18: 9月 | Y18: 12月 | Z18: 3 | AC18: =Y3+ROUNDDOWN((Y3/4),0)-ROUNDDOWN((Y3/100),0)+ROUNDDOWN((Y3/400),0)+ROUNDDOWN((2.6*(12)+1.6),0)+1 -> 2544 | AE18: 9月
A19: =IF(Z13=0,1,"") ->  | B19: =IF(Z13=1,1,IF(A19="","",A19+1)) ->  | C19: =IF(Z13=2,1,IF(B19="","",B19+1)) ->  | D19: =IF(Z13=3,1,IF(C19="","",C19+1)) ->  | E19: =IF(Z13=4,1,IF(D19="","",D19+1)) -> 1 | F19: =IF(Z13=5,1,IF(E19="","",E19+1)) -> 2 | G19: =IF(Z13=6,1,IF(F19="","",F19+1)) -> 3 | I19: =IF(Z14=0,1,"") -> 1 | J19: =IF(Z14=1,1,IF(I19="","",I19+1)) -> 2 | K19: =IF(Z14=2,1,IF(J19="","",J19+1)) -> 3 | L19: =IF(Z14=3,1,IF(K19="","",K19+1)) -> 4 | M19: =IF(Z14=4,1,IF(L19="","",L19+1)) -> 5 | N19: =IF(Z14=5,1,IF(M19="","",M19+1)) -> 6 | O19: =IF(Z14=6,1,IF(N19="","",N19+1)) -> 7 | Q19: =IF(ISBLANK(AE19),"",AE19) ->  | T19: 1 | U19: 2 | V19: 3 | W19: 4 | Y19: 1月 | Z19: 6 | AC19: =Y3+ROUNDDOWN((Y3/4),0)-ROUNDDOWN((Y3/100),0)+ROUNDDOWN((Y3/400),0)+ROUNDDOWN((2.6*(1+12)+1.6),0)+1 -> 2547 | AE19: =IF(Z15=0,1,"") ->  | AF19: =IF(Z15=1,1,IF(AE19="","",AE19+1)) ->  | AG19: =IF(Z15=2,1,IF(AF19="","",AF19+1)) ->  | AH19: =IF(Z15=3,1,IF(AG19="","",AG19+1)) -> 1 | AI19: =IF(Z15=4,1,IF(AH19="","",AH19+1)) -> 2 | AJ19: =IF(Z15=5,1,IF(AI19="","",AI19+1)) -> 3 | AK19: =IF(Z15=6,1,IF(AJ19="","",AJ19+1)) -> 4
A20: =G19+1 -> 4 | B20: =A20+1 -> 5 | C20: 6 | D20: 7 | E20: 8 | F20: 9 | G20: 10 | I20: =O19+1 -> 8 | J20: =I20+1 -> 9 | K20: 10 | L20: =IF(K20<>10,K20+1,IF($Y$3<2016," "&K20+1,K20+1)) -> 11 | M20: =IF(L20<>10,L20+1,IF($Y$3<2016," "&L20+1,L20+1)) -> 12 | N20: =IF(M20<>10,M20+1,IF($Y$3<2016," "&M20+1,M20+1)) -> 13 | O20: =IF(N20<>10,N20+1,IF($Y$3<2016," "&N20+1,N20+1)) -> 14 | Q20: 5 | R20: 6 | S20: 7 | T20: 8 | U20: 9 | V20: 10 | W20: 11 | Y20: 2月 | Z20: 2 | AC20: =Y3+ROUNDDOWN((Y3/4),0)-ROUNDDOWN((Y3/100),0)+ROUNDDOWN((Y3/400),0)+ROUNDDOWN((2.6*(2+12)+1.6),0)+1 -> 2550 | AE20: =AK19+1 -> 5 | AF20: =AE20+1 -> 6 | AG20: 7 | AH20: 8 | AI20: 9 | AJ20: 10 | AK20: 11
A21: =G20+1 -> 11 | B21: 12 | C21: 13 | D21: 14 | E21: 15 | F21: 16 | G21: 17 | I21: =O20+1 -> 15 | J21: =IF(I21<>10,I21+1,IF($Y$3<2016," "&I21+1,I21+1)) -> 16 | K21: =IF(J21<>10,J21+1,IF($Y$3<2016," "&J21+1,J21+1)) -> 17 | L21: 18 | M21: 19 | N21: 20 | O21: 21 | Q21: 12 | R21: 13 | S21: 14 | T21: 15 | U21: 16 | V21: 17 | W21: 18 | Y21: 3月 | Z21: 2 | AC21: =(Y3+1)+ROUNDDOWN(((Y3+1)/4),0)-ROUNDDOWN(((Y3+1)/100),0)+ROUNDDOWN(((Y3+1)/400),0)+ROUNDDOWN((2.6*(3)+1.6),0)+1 -> 2522 | AE21: =AK20+1 -> 12 | AF21: 13 | AG21: 14 | AH21: 15 | AI21: 16 | AJ21: 17 | AK21: 18
A22: =G21+1 -> 18 | B22: 19 | C22: 20 | D22: 21 | E22: 22 | F22: 23 | G22: 24 | I22: =O21+1 -> 22 | J22: 23 | K22: 24 | L22: 25 | M22: 26 | N22: 27 | O22: 28 | Q22: =IF(ISBLANK(AE22),"",AE22) -> 19 | R22: =IF(ISBLANK(AF22),"",AF22) -> 20 | S22: =IF(ISBLANK(AG22),"",IF(AG22=$AA$25," "&AG22,IF(AH22=$AA$25," "&AG22,AG22))) -> 21 | T22: =IF(ISBLANK(AH22),"",IF(AH22=$AA$25," "&AH22,AH22)) -> 22 | U22: =IF(ISBLANK(AI22),"",IF(AI22=$AA$25," "&AI22,AI22)) -> 23 | V22: =IF(ISBLANK(AJ22),"",IF(AJ22=$AA$25," "&AJ22,AJ22)) -> 24 | W22: =IF(ISBLANK(AK22),"",IF(AK22=$AA$25," "&AK22,AK22)) -> 25 | AE22: =AK21+1 -> 19 | AF22: 20 | AG22: 21 | AH22: 22 | AI22: 23 | AJ22: 24 | AK22: 25
A23: =G22+1 -> 25 | B23: =A23+1 -> 26 | C23: =IF(B23=31,"",IF(B23="","",B23+1)) -> 27 | D23: 28 | E23: 29 | F23: 30 | G23: 31 | I23: =O22+1 -> 29 | J23: =I23+1 -> 30 | K23: =IF(J23=31,"",IF(J23="","",J23+1)) -> 31 | Q23: =IF(ISBLANK(AE23),"",AE23) -> 26 | R23: =IF(ISBLANK(AF23),"",IF(AF23=$AA$25," "&AF23,AF23)) -> 27 | S23: =IF(ISBLANK(AG23),"",AG23) -> 28 | T23: 29 | U23: 30 | Y23: 春分・秋分日 | AE23: =AK22+1 -> 26 | AF23: =AE23+1 -> 27 | AG23: =IF(AF23=30,"",IF(AF23="","",AF23+1)) -> 28 | AH23: 29 | AI23: 30
A24: =IF(G23=31,"",IF(G23="","",G23+1)) ->  | B24: =IF(A24=31,"",IF(A24="","",A24+1)) ->  | I24: =IF(O23=31,"",IF(O23="","",O23+1)) ->  | J24: =IF(I24=31,"",IF(I24="","",I24+1)) ->  | Q24: =IF(ISBLANK(AE24),"",AE24) ->  | R24: =IF(ISBLANK(AF24),"",AF24) ->  | Y24: 春分日 | AA24: =入力部!L17 -> 20 | AE24: =IF(AK23=30,"",IF(AK23="","",AK23+1)) ->  | AF24: =IF(AE24=30,"",IF(AE24="","",AE24+1)) -> 
Y25: 秋分日 | AA25: =入力部!L18 -> 23
A26: 10月 | I26: 11月 | Q26: 12月
A27: =IF(Z16=0,1,"") ->  | B27: =IF(Z16=1,1,IF(A27="","",A27+1)) ->  | C27: =IF(Z16=2,1,IF(B27="","",B27+1)) ->  | D27: =IF(Z16=3,1,IF(C27="","",C27+1)) ->  | E27: =IF(Z16=4,1,IF(D27="","",D27+1)) ->  | F27: =IF(Z16=5,1,IF(E27="","",E27+1)) -> 1 | G27: =IF(Z16=6,1,IF(F27="","",F27+1)) -> 2 | I27: =IF(Z17=0,1,"") ->  | J27: =IF(Z17=1,1,IF(I27="","",I27+1)) -> 1 | K27: =IF(Z17=2,1,IF(J27="","",J27+1)) -> 2 | L27: =IF(Z17=3,1,IF(K27="","",K27+1)) -> 3 | M27: =IF(Z17=4,1,IF(L27="","",L27+1)) -> 4 | N27: =IF(Z17=5,1,IF(M27="","",M27+1)) -> 5 | O27: =IF(Z17=6,1,IF(N27="","",N27+1)) -> 6 | Q27: =IF(Z18=0,1,"") ->  | R27: =IF(Z18=1,1,IF(Q27="","",Q27+1)) ->  | S27: =IF(Z18=2,1,IF(R27="","",R27+1)) ->  | T27: =IF(Z18=3,1,IF(S27="","",S27+1)) -> 1 | U27: =IF(Z18=4,1,IF(T27="","",T27+1)) -> 2 | V27: =IF(Z18=5,1,IF(U27="","",U27+1)) -> 3 | W27: =IF(Z18=6,1,IF(V27="","",V27+1)) -> 4 | Y27: セル幅・高さ設定
A28: =G27+1 -> 3 | B28: =A28+1 -> 4 | C28: 5 | D28: 6 | E28: 7 | F28: 8 | G28: 9 | I28: =O27+1 -> 7 | J28: =I28+1 -> 8 | K28: 9 | L28: 10 | M28: 11 | N28: 12 | O28: 13 | Q28: =W27+1 -> 5 | R28: =Q28+1 -> 6 | S28: 7 | T28: 8 | U28: 9 | V28: 10 | W28: 11 | Y28: (幅) | Z28: 列H、列Pを除く列A〜W：0.81cm
A29: =G28+1 -> 10 | B29: 11 | C29: 12 | D29: 13 | E29: 14 | F29: 15 | G29: 16 | I29: =O28+1 -> 14 | J29: 15 | K29: 16 | L29: 17 | M29: 18 | N29: 19 | O29: 20 | Q29: =W28+1 -> 12 | R29: 13 | S29: 14 | T29: 15 | U29: 16 | V29: 17 | W29: 18 | Z29: 列H&列P：1.41cm
A30: =G29+1 -> 17 | B30: 18 | C30: 19 | D30: 20 | E30: 21 | F30: 22 | G30: 23 | I30: =O29+1 -> 21 | J30: 22 | K30: 23 | L30: 24 | M30: 25 | N30: 26 | O30: 27 | Q30: =W29+1 -> 19 | R30: 20 | S30: 21 | T30: 22 | U30: 23 | V30: 24 | W30: 25 | Y30: (高さ)
A31: =G30+1 -> 24 | B31: =A31+1 -> 25 | C31: =IF(B31=31,"",IF(B31="","",B31+1)) -> 26 | D31: 27 | E31: 28 | F31: 29 | G31: 30 | I31: =O30+1 -> 28 | J31: =I31+1 -> 29 | K31: =IF(J31=30,"",IF(J31="","",J31+1)) -> 30 | Q31: =W30+1 -> 26 | R31: =Q31+1 -> 27 | S31: =IF(R31=31,"",IF(R31="","",R31+1)) -> 28 | T31: 29 | U31: 30 | V31: 31 | Z31: 行1&行33：1.31cm
A32: =IF(G31=31,"",IF(G31="","",G31+1)) -> 31 | B32: =IF(A32=31,"",IF(A32="","",A32+1)) ->  | I32: =IF(O31=30,"",IF(O31="","",O31+1)) ->  | J32: =IF(I32=30,"",IF(I32="","",I32+1)) ->  | Q32: =IF(W31=31,"",IF(W31="","",W31+1)) ->  | R32: =IF(Q32=31,"",IF(Q32="","",Q32+1)) ->  | Z32: 行2〜行32：0.81cm
W33: [ Concept & Make out by AN2 -- Feb. 18th (SAT) 2011 ]

Sheet 4-3月
A1: =Y3&" / "&(Y3+1) -> 2021 / 2022 | Y1: 計算部
A2: 4月 | I2: 5月 | Q2: 6月 | Y2: プリント年 | AB2: うるう年2月日数判定 | AM2: 祝日・休日一覧
A3: =IF(Z10=0,1,"") ->  | B3: =IF(Z10=1,1,IF(A3="","",A3+1)) ->  | C3: =IF(Z10=2,1,IF(B3="","",B3+1)) ->  | D3: =IF(Z10=3,1,IF(C3="","",C3+1)) ->  | E3: =IF(Z10=4,1,IF(D3="","",D3+1)) -> 1 | F3: =IF(Z10=5,1,IF(E3="","",E3+1)) -> 2 | G3: =IF(Z10=6,1,IF(F3="","",F3+1)) -> 3 | I3: =IF(Z11=0,1,"") ->  | J3: =IF(Z11=1,1,IF(I3="","",I3+1)) ->  | K3: =IF(Z11=2,1,IF(J3="","",J3+1)) ->  | L3: =IF(Z11=3,1,IF(K3="","",K3+1)) ->  | M3: =IF(Z11=4,1,IF(L3="","",L3+1)) ->  | N3: =IF(Z11=5,1,IF(M3="","",M3+1)) ->  | O3: =IF(Z11=6,1,IF(N3="","",N3+1)) -> 1 | Q3: =IF(Z12=0,1,"") ->  | R3: =IF(Z12=1,1,IF(Q3="","",Q3+1)) ->  | S3: =IF(Z12=2,1,IF(R3="","",R3+1)) -> 1 | T3: =IF(Z12=3,1,IF(S3="","",S3+1)) -> 2 | U3: =IF(Z12=4,1,IF(T3="","",T3+1)) -> 3 | V3: =IF(Z12=5,1,IF(U3="","",U3+1)) -> 4 | W3: =IF(Z12=6,1,IF(V3="","",V3+1)) -> 5 | Y3: =入力部!J3 -> 2021 | AC3: =入力部!H17 -> 28 | AM3: 1月 | AN3: 1日・第2月曜日
A4: =G3+1 -> 4 | B4: =A4+1 -> 5 | C4: 6 | D4: 7 | E4: 8 | F4: 9 | G4: 10 | I4: =O3+1 -> 2 | J4: =I4+1 -> 3 | K4: 4 | L4: 5 | M4: 6 | N4: 7 | O4: 8 | Q4: =W3+1 -> 6 | R4: =Q4+1 -> 7 | S4: 8 | T4: 9 | U4: 10 | V4: 11 | W4: 12 | AC4: =入力部!H18 -> 28 | AM4: 2月 | AN4: 11日
A5: =G4+1 -> 11 | B5: 12 | C5: 13 | D5: 14 | E5: 15 | F5: 16 | G5: 17 | I5: =O4+1 -> 9 | J5: 10 | K5: 11 | L5: 12 | M5: 13 | N5: 14 | O5: 15 | Q5: =W4+1 -> 13 | R5: 14 | S5: 15 | T5: 16 | U5: 17 | V5: 18 | W5: 19 | Y5: 曜日判定 | AE5: 9月・3月春分・秋分日対応ダミー部 | AM5: 3月 | AN5: 21日ごろ（＊）
A6: =G5+1 -> 18 | B6: 19 | C6: 20 | D6: 21 | E6: 22 | F6: 23 | G6: 24 | I6: =O5+1 -> 16 | J6: 17 | K6: 18 | L6: 19 | M6: 20 | N6: 21 | O6: 22 | Q6: =W5+1 -> 20 | R6: 21 | S6: 22 | T6: 23 | U6: 24 | V6: 25 | W6: 26 | AM6: 4月 | AN6: 29日
A7: =G6+1 -> 25 | B7: =A7+1 -> 26 | C7: =IF(B7=30,"",IF(B7="","",B7+1)) -> 27 | D7: 28 | E7: 29 | F7: 30 | I7: =O6+1 -> 23 | J7: =I7+1 -> 24 | K7: =IF(J7=31,"",IF(J7="","",J7+1)) -> 25 | L7: 26 | M7: 27 | N7: 28 | O7: 29 | Q7: =W6+1 -> 27 | R7: =Q7+1 -> 28 | S7: =IF(R7=30,"",IF(R7="","",R7+1)) -> 29 | T7: 30 | Y7: 1月 | Z7: =ROUNDDOWN(MOD(AC7,7),0) -> 5 | AC7: =(Y3-1)+ROUNDDOWN(((Y3-1)/4),0)-ROUNDDOWN(((Y3-1)/100),0)+ROUNDDOWN(((Y3-1)/400),0)+ROUNDDOWN((2.6*(1+12)+1.6),0)+1 -> 2546 | AM7: 5月 | AN7: 3日・4日・5日
A8: =IF(G7=30,"",IF(G7="","",G7+1)) ->  | B8: =IF(A8=30,"",IF(A8="","",A8+1)) ->  | I8: =IF(O7=31,"",IF(O7="","",O7+1)) -> 30 | J8: =IF(I8=31,"",IF(I8="","",I8+1)) -> 31 | Q8: =IF(W7=30,"",IF(W7="","",W7+1)) ->  | R8: =IF(Q8=30,"",IF(Q8="","",Q8+1)) ->  | Y8: 2月 | Z8: 1 | AC8: =(Y3-1)+ROUNDDOWN(((Y3-1)/4),0)-ROUNDDOWN(((Y3-1)/100),0)+ROUNDDOWN(((Y3-1)/400),0)+ROUNDDOWN((2.6*(2+12)+1.6),0)+1 -> 2549 | AM8: 6月
Y9: 3月 | Z9: 1 | AC9: =Y3+ROUNDDOWN((Y3/4),0)-ROUNDDOWN((Y3/100),0)+ROUNDDOWN((Y3/400),0)+ROUNDDOWN((2.6*(3)+1.6),0)+1 -> 2521 | AM9: 7月 | AN9: 第3月曜日
A10: 7月 | I10: 8月 | Q10: 9月 | Y10: 4月 | Z10: 4 | AC10: =Y3+ROUNDDOWN((Y3/4),0)-ROUNDDOWN((Y3/100),0)+ROUNDDOWN((Y3/400),0)+ROUNDDOWN((2.6*(4)+1.6),0)+1 -> 2524 | AE10: 9月 | AM10: 8月
A11: =IF(Z13=0,1,"") ->  | B11: =IF(Z13=1,1,IF(A11="","",A11+1)) ->  | C11: =IF(Z13=2,1,IF(B11="","",B11+1)) ->  | D11: =IF(Z13=3,1,IF(C11="","",C11+1)) ->  | E11: =IF(Z13=4,1,IF(D11="","",D11+1)) -> 1 | F11: =IF(Z13=5,1,IF(E11="","",E11+1)) -> 2 | G11: =IF(Z13=6,1,IF(F11="","",F11+1)) -> 3 | I11: =IF(Z14=0,1,"") -> 1 | J11: =IF(Z14=1,1,IF(I11="","",I11+1)) -> 2 | K11: =IF(Z14=2,1,IF(J11="","",J11+1)) -> 3 | L11: =IF(Z14=3,1,IF(K11="","",K11+1)) -> 4 | M11: =IF(Z14=4,1,IF(L11="","",L11+1)) -> 5 | N11: =IF(Z14=5,1,IF(M11="","",M11+1)) -> 6 | O11: =IF(Z14=6,1,IF(N11="","",N11+1)) -> 7 | Q11: =IF(ISBLANK(AE11),"",AE11) ->  | T11: 1 | U11: 2 | V11: 3 | W11: 4 | Y11: 5月 | Z11: 6 | AC11: =Y3+ROUNDDOWN((Y3/4),0)-ROUNDDOWN((Y3/100),0)+ROUNDDOWN((Y3/400),0)+ROUNDDOWN((2.6*(5)+1.6),0)+1 -> 2526 | AE11: =IF(Z15=0,1,"") ->  | AF11: =IF(Z15=1,1,IF(AE11="","",AE11+1)) ->  | AG11: =IF(Z15=2,1,IF(AF11="","",AF11+1)) ->  | AH11: =IF(Z15=3,1,IF(AG11="","",AG11+1)) -> 1 | AI11: =IF(Z15=4,1,IF(AH11="","",AH11+1)) -> 2 | AJ11: =IF(Z15=5,1,IF(AI11="","",AI11+1)) -> 3 | AK11: =IF(Z15=6,1,IF(AJ11="","",AJ11+1)) -> 4 | AM11: 9月 | AN11: 第3月曜日・23日ごろ（＊）
A12: =G11+1 -> 4 | B12: =A12+1 -> 5 | C12: 6 | D12: 7 | E12: 8 | F12: 9 | G12: 10 | I12: =O11+1 -> 8 | J12: =I12+1 -> 9 | K12: =J12+1 -> 10 | L12: =IF(K12<>10,K12+1,IF($Y$3<2016," "&K12+1,K12+1)) -> 11 | M12: =IF(L12<>10,L12+1,IF($Y$3<2016," "&L12+1,L12+1)) -> 12 | N12: =IF(M12<>10,M12+1,IF($Y$3<2016," "&M12+1,M12+1)) -> 13 | O12: =IF(N12<>10,N12+1,IF($Y$3<2016," "&N12+1,N12+1)) -> 14 | Q12: 5 | R12: 6 | S12: 7 | T12: 8 | U12: 9 | V12: 10 | W12: 11 | Y12: 6月 | Z12: 2 | AC12: =Y3+ROUNDDOWN((Y3/4),0)-ROUNDDOWN((Y3/100),0)+ROUNDDOWN((Y3/400),0)+ROUNDDOWN((2.6*(6)+1.6),0)+1 -> 2529 | AE12: =AK11+1 -> 5 | AF12: =AE12+1 -> 6 | AG12: 7 | AH12: 8 | AI12: 9 | AJ12: 10 | AK12: 11 | AM12: 10月 | AN12: 第2月曜日
A13: =G12+1 -> 11 | B13: 12 | C13: 13 | D13: 14 | E13: 15 | F13: 16 | G13: 17 | I13: =O12+1 -> 15 | J13: =IF(I13<>10,I13+1,IF($Y$3<2016," "&I13+1,I13+1)) -> 16 | K13: =IF(J13<>10,J13+1,IF($Y$3<2016," "&J13+1,J13+1)) -> 17 | L13: =K13+1 -> 18 | M13: 19 | N13: 20 | O13: 21 | Q13: 12 | R13: 13 | S13: 14 | T13: 15 | U13: 16 | V13: 17 | W13: 18 | Y13: 7月 | Z13: 4 | AC13: =Y3+ROUNDDOWN((Y3/4),0)-ROUNDDOWN((Y3/100),0)+ROUNDDOWN((Y3/400),0)+ROUNDDOWN((2.6*(7)+1.6),0)+1 -> 2531 | AE13: =AK12+1 -> 12 | AF13: 13 | AG13: 14 | AH13: 15 | AI13: 16 | AJ13: 17 | AK13: 18 | AM13: 11月 | AN13: 3日・23日
A14: =G13+1 -> 18 | B14: 19 | C14: 20 | D14: 21 | E14: 22 | F14: 23 | G14: 24 | I14: =O13+1 -> 22 | J14: =I14+1 -> 23 | K14: =J14+1 -> 24 | L14: 25 | M14: 26 | N14: 27 | O14: 28 | Q14: =IF(ISBLANK(AE14),"",AE14) -> 19 | R14: =IF(ISBLANK(AF14),"",AF14) -> 20 | S14: =IF(ISBLANK(AG14),"",IF(AG14=$AA$25," "&AG14,IF(AH14=$AA$25," "&AG14,AG14))) -> 21 | T14: =IF(ISBLANK(AH14),"",IF(AH14=$AA$25," "&AH14,AH14)) -> 22 | U14: =IF(ISBLANK(AI14),"",IF(AI14=$AA$25," "&AI14,AI14)) -> 23 | V14: =IF(ISBLANK(AJ14),"",IF(AJ14=$AA$25," "&AJ14,AJ14)) -> 24 | W14: =IF(ISBLANK(AK14),"",IF(AK14=$AA$25," "&AK14,AK14)) -> 25 | Y14: 8月 | Z14: 0 | AC14: =Y3+ROUNDDOWN((Y3/4),0)-ROUNDDOWN((Y3/100),0)+ROUNDDOWN((Y3/400),0)+ROUNDDOWN((2.6*(8)+1.6),0)+1 -> 2534 | AE14: =AK13+1 -> 19 | AF14: 20 | AG14: 21 | AH14: 22 | AI14: 23 | AJ14: 24 | AK14: 25 | AM14: 12月 | AN14: 23日
A15: =G14+1 -> 25 | B15: =A15+1 -> 26 | C15: =IF(B15=31,"",IF(B15="","",B15+1)) -> 27 | D15: 28 | E15: 29 | F15: 30 | G15: 31 | I15: =O14+1 -> 29 | J15: =I15+1 -> 30 | K15: =IF(J15=31,"",IF(J15="","",J15+1)) -> 31 | Q15: =IF(ISBLANK(AE15),"",AE15) -> 26 | R15: =IF(ISBLANK(AF15),"",IF(AF15=$AA$25," "&AF15,AF15)) -> 27 | S15: =IF(ISBLANK(AG15),"",AG15) -> 28 | T15: 29 | U15: 30 | Y15: 9月 | Z15: 3 | AC15: =Y3+ROUNDDOWN((Y3/4),0)-ROUNDDOWN((Y3/100),0)+ROUNDDOWN((Y3/400),0)+ROUNDDOWN((2.6*(9)+1.6),0)+1 -> 2537 | AE15: =AK14+1 -> 26 | AF15: =AE15+1 -> 27 | AG15: =IF(AF15=30,"",IF(AF15="","",AF15+1)) -> 28 | AH15: 29 | AI15: 30 | AM15: （＊）春分日・秋分日は年ごとに変化
A16: =IF(G15=31,"",IF(G15="","",G15+1)) ->  | B16: =IF(A16=31,"",IF(A16="","",A16+1)) ->  | I16: =IF(O15=31,"",IF(O15="","",O15+1)) ->  | J16: =IF(I16=31,"",IF(I16="","",I16+1)) ->  | Q16: =IF(ISBLANK(AE16),"",AE16) ->  | R16: =IF(ISBLANK(AF16),"",AF16) ->  | Y16: 10月 | Z16: 5 | AC16: =Y3+ROUNDDOWN((Y3/4),0)-ROUNDDOWN((Y3/100),0)+ROUNDDOWN((Y3/400),0)+ROUNDDOWN((2.6*(10)+1.6),0)+1 -> 2539 | AE16: =IF(AK15=30,"",IF(AK15="","",AK15+1)) ->  | AF16: =IF(AE16=30,"",IF(AE16="","",AE16+1)) ->  | AM16: 前年2月ごろに発表
Y17: 11月 | Z17: 1 | AC17: =Y3+ROUNDDOWN((Y3/4),0)-ROUNDDOWN((Y3/100),0)+ROUNDDOWN((Y3/400),0)+ROUNDDOWN((2.6*(11)+1.6),0)+1 -> 2542
A18: 10月 | I18: 11月 | Q18: 12月 | Y18: 12月 | Z18: 3 | AC18: =Y3+ROUNDDOWN((Y3/4),0)-ROUNDDOWN((Y3/100),0)+ROUNDDOWN((Y3/400),0)+ROUNDDOWN((2.6*(12)+1.6),0)+1 -> 2544
A19: =IF(Z16=0,1,"") ->  | B19: =IF(Z16=1,1,IF(A19="","",A19+1)) ->  | C19: =IF(Z16=2,1,IF(B19="","",B19+1)) ->  | D19: =IF(Z16=3,1,IF(C19="","",C19+1)) ->  | E19: =IF(Z16=4,1,IF(D19="","",D19+1)) ->  | F19: =IF(Z16=5,1,IF(E19="","",E19+1)) -> 1 | G19: =IF(Z16=6,1,IF(F19="","",F19+1)) -> 2 | I19: =IF(Z17=0,1,"") ->  | J19: =IF(Z17=1,1,IF(I19="","",I19+1)) -> 1 | K19: =IF(Z17=2,1,IF(J19="","",J19+1)) -> 2 | L19: =IF(Z17=3,1,IF(K19="","",K19+1)) -> 3 | M19: =IF(Z17=4,1,IF(L19="","",L19+1)) -> 4 | N19: =IF(Z17=5,1,IF(M19="","",M19+1)) -> 5 | O19: =IF(Z17=6,1,IF(N19="","",N19+1)) -> 6 | Q19: =IF(Z18=0,1,"") ->  | R19: =IF(Z18=1,1,IF(Q19="","",Q19+1)) ->  | S19: =IF(Z18=2,1,IF(R19="","",R19+1)) ->  | T19: =IF(Z18=3,1,IF(S19="","",S19+1)) -> 1 | U19: =IF(Z18=4,1,IF(T19="","",T19+1)) -> 2 | V19: =IF(Z18=5,1,IF(U19="","",U19+1)) -> 3 | W19: =IF(Z18=6,1,IF(V19="","",V19+1)) -> 4 | Y19: 1月 | Z19: 6 | AC19: =Y3+ROUNDDOWN((Y3/4),0)-ROUNDDOWN((Y3/100),0)+ROUNDDOWN((Y3/400),0)+ROUNDDOWN((2.6*(1+12)+1.6),0)+1 -> 2547
A20: =G19+1 -> 3 | B20: =A20+1 -> 4 | C20: 5 | D20: 6 | E20: 7 | F20: 8 | G20: 9 | I20: =O19+1 -> 7 | J20: =I20+1 -> 8 | K20: 9 | L20: 10 | M20: 11 | N20: 12 | O20: 13 | Q20: =W19+1 -> 5 | R20: =Q20+1 -> 6 | S20: 7 | T20: 8 | U20: 9 | V20: 10 | W20: 11 | Y20: 2月 | Z20: 2 | AC20: =Y3+ROUNDDOWN((Y3/4),0)-ROUNDDOWN((Y3/100),0)+ROUNDDOWN((Y3/400),0)+ROUNDDOWN((2.6*(2+12)+1.6),0)+1 -> 2550
A21: =G20+1 -> 10 | B21: 11 | C21: 12 | D21: 13 | E21: 14 | F21: 15 | G21: 16 | I21: =O20+1 -> 14 | J21: 15 | K21: 16 | L21: 17 | M21: 18 | N21: 19 | O21: 20 | Q21: =W20+1 -> 12 | R21: 13 | S21: 14 | T21: 15 | U21: 16 | V21: 17 | W21: 18 | Y21: 3月 | Z21: 2 | AC21: =(Y3+1)+ROUNDDOWN(((Y3+1)/4),0)-ROUNDDOWN(((Y3+1)/100),0)+ROUNDDOWN(((Y3+1)/400),0)+ROUNDDOWN((2.6*(3)+1.6),0)+1 -> 2522
A22: =G21+1 -> 17 | B22: 18 | C22: 19 | D22: 20 | E22: 21 | F22: 22 | G22: 23 | I22: =O21+1 -> 21 | J22: 22 | K22: 23 | L22: 24 | M22: 25 | N22: 26 | O22: 27 | Q22: =W21+1 -> 19 | R22: 20 | S22: 21 | T22: 22 | U22: 23 | V22: 24 | W22: 25
A23: =G22+1 -> 24 | B23: =A23+1 -> 25 | C23: =IF(B23=31,"",IF(B23="","",B23+1)) -> 26 | D23: 27 | E23: 28 | F23: 29 | G23: 30 | I23: =O22+1 -> 28 | J23: =I23+1 -> 29 | K23: =IF(J23=30,"",IF(J23="","",J23+1)) -> 30 | Q23: =W22+1 -> 26 | R23: =Q23+1 -> 27 | S23: =IF(R23=31,"",IF(R23="","",R23+1)) -> 28 | T23: 29 | U23: 30 | V23: 31 | Y23: 春分・秋分日
A24: =IF(G23=31,"",IF(G23="","",G23+1)) -> 31 | B24: =IF(A24=31,"",IF(A24="","",A24+1)) ->  | I24: =IF(O23=30,"",IF(O23="","",O23+1)) ->  | J24: =IF(I24=30,"",IF(I24="","",I24+1)) ->  | Q24: =IF(W23=31,"",IF(W23="","",W23+1)) ->  | R24: =IF(Q24=31,"",IF(Q24="","",Q24+1)) ->  | Y24: 春分日 | AA24: =入力部!N17 -> 21
Y25: 秋分日 | AA25: =入力部!L18 -> 23
A26: 1月 | I26: 2月 | Q26: 3月 | AE26: 3月
A27: =IF(Z19=0,1,"") ->  | B27: =IF(Z19=1,1,IF(A27="","",A27+1)) ->  | C27: =IF(Z19=2,1,IF(B27="","",B27+1)) ->  | D27: =IF(Z19=3,1,IF(C27="","",C27+1)) ->  | E27: =IF(Z19=4,1,IF(D27="","",D27+1)) ->  | F27: =IF(Z19=5,1,IF(E27="","",E27+1)) ->  | G27: =IF(Z19=6,1,IF(F27="","",F27+1)) -> 1 | I27: =IF(Z20=0,1,"") ->  | J27: =IF(Z20=1,1,IF(I27="","",I27+1)) ->  | K27: =IF(Z20=2,1,IF(J27="","",J27+1)) -> 1 | L27: =IF(Z20=3,1,IF(K27="","",K27+1)) -> 2 | M27: =IF(Z20=4,1,IF(L27="","",L27+1)) -> 3 | N27: =IF(Z20=5,1,IF(M27="","",M27+1)) -> 4 | O27: =IF(Z20=6,1,IF(N27="","",N27+1)) -> 5 | Q27: =IF(ISBLANK(AE27),"",AE27) ->  | S27: 1 | T27: 2 | U27: 3 | V27: 4 | W27: 5 | Y27: セル幅・高さ設定 | AE27: =IF(Z21=0,1,"") ->  | AF27: =IF(Z21=1,1,IF(AE27="","",AE27+1)) ->  | AG27: =IF(Z21=2,1,IF(AF27="","",AF27+1)) -> 1 | AH27: =IF(Z21=3,1,IF(AG27="","",AG27+1)) -> 2 | AI27: =IF(Z21=4,1,IF(AH27="","",AH27+1)) -> 3 | AJ27: =IF(Z21=5,1,IF(AI27="","",AI27+1)) -> 4 | AK27: =IF(Z21=6,1,IF(AJ27="","",AJ27+1)) -> 5
A28: =G27+1 -> 2 | B28: =A28+1 -> 3 | C28: 4 | D28: 5 | E28: 6 | F28: 7 | G28: 8 | I28: =O27+1 -> 6 | J28: =I28+1 -> 7 | K28: 8 | L28: 9 | M28: 10 | N28: 11 | O28: 12 | Q28: 6 | R28: 7 | S28: 8 | T28: 9 | U28: 10 | V28: 11 | W28: 12 | Y28: (幅) | Z28: 列H、列Pを除く列A〜W：0.81cm | AE28: =AK27+1 -> 6 | AF28: =AE28+1 -> 7 | AG28: 8 | AH28: 9 | AI28: 10 | AJ28: 11 | AK28: 12
A29: =G28+1 -> 9 | B29: 10 | C29: 11 | D29: 12 | E29: 13 | F29: 14 | G29: 15 | I29: =O28+1 -> 13 | J29: 14 | K29: 15 | L29: 16 | M29: 17 | N29: 18 | O29: 19 | Q29: =IF(ISBLANK(AE29),"",AE29) -> 13 | R29: =IF(ISBLANK(AF29),"",AF29) -> 14 | S29: =IF(ISBLANK(AG29),"",AG29) -> 15 | T29: =IF(ISBLANK(AH29),"",AH29) -> 16 | U29: =IF(ISBLANK(AI29),"",AI29) -> 17 | V29: =IF(ISBLANK(AJ29),"",IF(AJ29=$AA$24," "&AJ29,AJ29)) -> 18 | W29: =IF(ISBLANK(AK29),"",IF(AK29=$AA$24," "&AK29,AK29)) -> 19 | Z29: 列H&列P：1.41cm | AE29: =AK28+1 -> 13 | AF29: 14 | AG29: 15 | AH29: 16 | AI29: 17 | AJ29: 18 | AK29: 19
A30: =G29+1 -> 16 | B30: 17 | C30: 18 | D30: 19 | E30: 20 | F30: 21 | G30: 22 | I30: =O29+1 -> 20 | J30: 21 | K30: 22 | L30: 23 | M30: 24 | N30: 25 | O30: 26 | Q30: =IF(ISBLANK(AE30),"",AE30) -> 20 | R30: =IF(ISBLANK(AF30),"",IF(AF30=$AA$24," "&AF30,IF(AE30=$AA$24," "&AF30,AF30))) -> 21 | S30: =IF(ISBLANK(AG30),"",IF(AG30=$AA$24," "&AG30,AG30)) -> 22 | T30: =IF(ISBLANK(AH30),"",IF(AH30=$AA$24," "&AH30,AH30)) -> 23 | U30: =IF(ISBLANK(AI30),"",IF(AI30=$AA$24," "&AI30,AI30)) -> 24 | V30: =IF(ISBLANK(AJ30),"",AJ30) -> 25 | W30: =IF(ISBLANK(AK30),"",AK30) -> 26 | Y30: (高さ) | AE30: =AK29+1 -> 20 | AF30: 21 | AG30: 22 | AH30: 23 | AI30: 24 | AJ30: 25 | AK30: 26
A31: =G30+1 -> 23 | B31: =A31+1 -> 24 | C31: =IF(B31=31,"",IF(B31="","",B31+1)) -> 25 | D31: 26 | E31: 27 | F31: 28 | G31: 29 | I31: =IF(O30=AC4,"",IF(O30="","",O30+1)) -> 27 | J31: =IF(I31=AC4,"",IF(I31="","",I31+1)) -> 28 | K31: =IF(J31=AC4,"",IF(J31="","",J31+1)) ->  | L31: =IF(K31=AC4,"",IF(K31="","",K31+1)) ->  | M31: =IF(L31=AC4,"",IF(L31="","",L31+1)) ->  | N31: =IF(M31=AC4,"",IF(M31="","",M31+1)) ->  | O31: =IF(N31=AC4,"",IF(N31="","",N31+1)) ->  | Q31: =IF(ISBLANK(AE31),"",AE31) -> 27 | R31: =IF(ISBLANK(AF31),"",AF31) -> 28 | S31: =IF(ISBLANK(AG31),"",AG31) -> 29 | T31: =IF(ISBLANK(AH31),"",AH31) -> 30 | U31: =IF(ISBLANK(AI31),"",AI31) -> 31 | V31: =IF(ISBLANK(AJ31),"",AJ31) ->  | W31: =IF(ISBLANK(AK31),"",AK31) ->  | Z31: 行1&行33：1.31cm | AE31: =AK30+1 -> 27 | AF31: =AE31+1 -> 28 | AG31: =IF(AF31=31,"",IF(AF31="","",AF31+1)) -> 29 | AH31: 30 | AI31: 31
A32: =IF(G31=31,"",IF(G31="","",G31+1)) -> 30 | B32: =IF(A32=31,"",IF(A32="","",A32+1)) -> 31 | I32: =IF(O31=AC4,"",IF(O31="","",O31+1)) ->  | J32: =IF(I32=AC4,"",IF(I32="","",I32+1)) ->  | K32: =IF(J32=AC4,"",IF(J32="","",J32+1)) ->  | L32: =IF(K32=AC4,"",IF(K32="","",K32+1)) ->  | M32: =IF(L32=AC4,"",IF(L32="","",L32+1)) ->  | N32: =IF(M32=AC4,"",IF(M32="","",M32+1)) ->  | O32: =IF(N32=AC4,"",IF(N32="","",N32+1)) ->  | Q32: =IF(W31=31,"",IF(W31="","",W31+1)) ->  | R32: =IF(Q32=31,"",IF(Q32="","",Q32+1)) ->  | Z32: 行2〜行32：0.81cm | AE32: =IF(AK31=31,"",IF(AK31="","",AK31+1)) ->  | AF32: =IF(AE32=31,"",IF(AE32="","",AE32+1)) -> 
W33: [ Concept & Make out by AN2 -- Feb. 18th (SAT) 2011 ]

Sheet 1-6月
A1: =入力部!J3&"年" -> 2021年 | P1: 計算部
A2: 1月 | I2: 2月 | P2: プリント年 | S2: うるう年2月日数判定
A3: =IF(Q7=0,1,"") ->  | B3: =IF(Q7=1,1,IF(A3="","",A3+1)) ->  | C3: =IF(Q7=2,1,IF(B3="","",B3+1)) ->  | D3: =IF(Q7=3,1,IF(C3="","",C3+1)) ->  | E3: =IF(Q7=4,1,IF(D3="","",D3+1)) ->  | F3: =IF(Q7=5,1,IF(E3="","",E3+1)) -> 1 | G3: =IF(Q7=6,1,IF(F3="","",F3+1)) -> 2 | I3: =IF(Q8=0,1,"") ->  | J3: =IF(Q8=1,1,IF(I3="","",I3+1)) -> 1 | K3: =IF(Q8=2,1,IF(J3="","",J3+1)) -> 2 | L3: =IF(Q8=3,1,IF(K3="","",K3+1)) -> 3 | M3: =IF(Q8=4,1,IF(L3="","",L3+1)) -> 4 | N3: =IF(Q8=5,1,IF(M3="","",M3+1)) -> 5 | O3: =IF(Q8=6,1,IF(N3="","",N3+1)) -> 6 | P3: =入力部!J3 -> 2021 | T3: =入力部!H17 -> 28
A4: =G3+1 -> 3 | B4: =A4+1 -> 4 | C4: 5 | D4: 6 | E4: 7 | F4: 8 | G4: 9 | I4: =O3+1 -> 7 | J4: =I4+1 -> 8 | K4: 9 | L4: 10 | M4: 11 | N4: 12 | O4: 13 | T4: =入力部!H18 -> 28
A5: =G4+1 -> 10 | B5: 11 | C5: 12 | D5: 13 | E5: 14 | F5: 15 | G5: 16 | I5: =O4+1 -> 14 | J5: 15 | K5: 16 | L5: 17 | M5: 18 | N5: 19 | O5: 20 | P5: 曜日判定
A6: =G5+1 -> 17 | B6: 18 | C6: 19 | D6: 20 | E6: 21 | F6: 22 | G6: 23 | I6: =O5+1 -> 21 | J6: 22 | K6: 23 | L6: 24 | M6: 25 | N6: 26 | O6: 27
A7: =G6+1 -> 24 | B7: =A7+1 -> 25 | C7: =IF(B7=31,"",IF(B7="","",B7+1)) -> 26 | D7: 27 | E7: 28 | F7: 29 | G7: 30 | I7: =IF(O6=T3,"",IF(O6="","",O6+1)) -> 28 | J7: =IF(I7=T3,"",IF(I7="","",I7+1)) ->  | K7: =IF(J7=T3,"",IF(J7="","",J7+1)) ->  | L7: =IF(K7=T3,"",IF(K7="","",K7+1)) ->  | M7: =IF(L7=T3,"",IF(L7="","",L7+1)) ->  | N7: =IF(M7=T3,"",IF(M7="","",M7+1)) ->  | O7: =IF(N7=T3,"",IF(N7="","",N7+1)) ->  | P7: 1月 | Q7: =ROUNDDOWN(MOD(T7,7),0) -> 5 | T7: =(P3-1)+ROUNDDOWN(((P3-1)/4),0)-ROUNDDOWN(((P3-1)/100),0)+ROUNDDOWN(((P3-1)/400),0)+ROUNDDOWN((2.6*(1+12)+1.6),0)+1 -> 2546
A8: =IF(G7=31,"",IF(G7="","",G7+1)) -> 31 | B8: =IF(A8=31,"",IF(A8="","",A8+1)) ->  | I8: =IF(O7=T3,"",IF(O7="","",O7+1)) ->  | J8: =IF(I8=T3,"",IF(I8="","",I8+1)) ->  | K8: =IF(J8=T3,"",IF(J8="","",J8+1)) ->  | L8: =IF(K8=T3,"",IF(K8="","",K8+1)) ->  | M8: =IF(L8=T3,"",IF(L8="","",L8+1)) ->  | N8: =IF(M8=T3,"",IF(M8="","",M8+1)) ->  | O8: =IF(N8=T3,"",IF(N8="","",N8+1)) ->  | P8: 2月 | Q8: 1 | T8: =(P3-1)+ROUNDDOWN(((P3-1)/4),0)-ROUNDDOWN(((P3-1)/100),0)+ROUNDDOWN(((P3-1)/400),0)+ROUNDDOWN((2.6*(2+12)+1.6),0)+1 -> 2549
P9: 3月 | Q9: 1 | T9: =P3+ROUNDDOWN((P3/4),0)-ROUNDDOWN((P3/100),0)+ROUNDDOWN((P3/400),0)+ROUNDDOWN((2.6*(3)+1.6),0)+1 -> 2521
A10: 3月 | I10: 4月 | P10: 4月 | Q10: 4 | T10: =P3+ROUNDDOWN((P3/4),0)-ROUNDDOWN((P3/100),0)+ROUNDDOWN((P3/400),0)+ROUNDDOWN((2.6*(4)+1.6),0)+1 -> 2524 | W10: 3月
A11: =IF(ISBLANK(W11),"",W11) ->  | B11: 1 | C11: 2 | D11: 3 | E11: 4 | F11: 5 | G11: 6 | I11: =IF(Q10=0,1,"") ->  | J11: =IF(Q10=1,1,IF(I11="","",I11+1)) ->  | K11: =IF(Q10=2,1,IF(J11="","",J11+1)) ->  | L11: =IF(Q10=3,1,IF(K11="","",K11+1)) ->  | M11: =IF(Q10=4,1,IF(L11="","",L11+1)) -> 1 | N11: =IF(Q10=5,1,IF(M11="","",M11+1)) -> 2 | O11: =IF(Q10=6,1,IF(N11="","",N11+1)) -> 3 | P11: 5月 | Q11: 6 | T11: =P3+ROUNDDOWN((P3/4),0)-ROUNDDOWN((P3/100),0)+ROUNDDOWN((P3/400),0)+ROUNDDOWN((2.6*(5)+1.6),0)+1 -> 2526 | W11: =IF(Q9=0,1,"") ->  | X11: =IF(Q9=1,1,IF(W11="","",W11+1)) -> 1 | Y11: =IF(Q9=2,1,IF(X11="","",X11+1)) -> 2 | Z11: =IF(Q9=3,1,IF(Y11="","",Y11+1)) -> 3 | AA11: =IF(Q9=4,1,IF(Z11="","",Z11+1)) -> 4 | AB11: =IF(Q9=5,1,IF(AA11="","",AA11+1)) -> 5 | AC11: =IF(Q9=6,1,IF(AB11="","",AB11+1)) -> 6
A12: 7 | B12: 8 | C12: 9 | D12: 10 | E12: 11 | F12: 12 | G12: 13 | I12: =O11+1 -> 4 | J12: =I12+1 -> 5 | K12: 6 | L12: 7 | M12: 8 | N12: 9 | O12: 10 | P12: 6月 | Q12: 2 | T12: =P3+ROUNDDOWN((P3/4),0)-ROUNDDOWN((P3/100),0)+ROUNDDOWN((P3/400),0)+ROUNDDOWN((2.6*(6)+1.6),0)+1 -> 2529 | W12: =AC11+1 -> 7 | X12: =W12+1 -> 8 | Y12: 9 | Z12: 10 | AA12: 11 | AB12: 12 | AC12: 13
A13: 14 | B13: 15 | C13: 16 | D13: 17 | E13: 18 | F13: =IF(ISBLANK(AB13),"",IF(AB13=$Q$14," "&AB13,AB13)) -> 19 | G13: =IF(ISBLANK(AC13),"",IF(AC13=$Q$14," "&AC13,AC13)) -> 20 | I13: =O12+1 -> 11 | J13: 12 | K13: 13 | L13: 14 | M13: 15 | N13: 16 | O13: 17 | W13: =AC12+1 -> 14 | X13: 15 | Y13: 16 | Z13: 17 | AA13: 18 | AB13: 19 | AC13: 20
A14: 21 | B14: =IF(ISBLANK(X14),"",IF(X14=$Q$14," "&X14,IF(W14=$Q$14," "&X14,X14))) -> 22 | C14: =IF(ISBLANK(Y14),"",IF(Y14=$Q$14," "&Y14,Y14)) -> 23 | D14: =IF(ISBLANK(Z14),"",IF(Z14=$Q$14," "&Z14,Z14)) -> 24 | E14: =IF(ISBLANK(AA14),"",IF(AA14=$Q$14," "&AA14,AA14)) -> 25 | F14: 26 | G14: 27 | I14: =O13+1 -> 18 | J14: 19 | K14: 20 | L14: 21 | M14: 22 | N14: 23 | O14: 24 | P14: 春分日 | Q14: =入力部!L17 -> 20 | W14: =AC13+1 -> 21 | X14: 22 | Y14: 23 | Z14: 24 | AA14: 25 | AB14: 26 | AC14: 27
A15: 28 | B15: 29 | C15: 30 | D15: 31 | I15: =O14+1 -> 25 | J15: =I15+1 -> 26 | K15: =IF(J15=30,"",IF(J15="","",J15+1)) -> 27 | L15: =IF(K15=30,"",IF(K15="","",K15+1)) -> 28 | M15: =IF(L15=30,"",IF(L15="","",L15+1)) -> 29 | N15: =IF(M15=30,"",IF(M15="","",M15+1)) -> 30 | W15: =AC14+1 -> 28 | X15: =W15+1 -> 29 | Y15: =IF(X15=31,"",IF(X15="","",X15+1)) -> 30 | Z15: 31
I16: =IF(O15=30,"",IF(O15="","",O15+1)) ->  | J16: =IF(I16=30,"",IF(I16="","",I16+1)) ->  | K16: =IF(J16=30,"",IF(J16="","",J16+1)) ->  | L16: =IF(K16=30,"",IF(K16="","",K16+1)) ->  | W16: =IF(AC15=31,"",IF(AC15="","",AC15+1)) ->  | X16: =IF(W16=31,"",IF(W16="","",W16+1)) -> 
P17: セル幅・高さ設定
A18: 5月 | I18: 6月 | P18: (幅) | Q18: 列A〜O：0.56cm
A19: =IF(Q11=0,1,"") ->  | B19: =IF(Q11=1,1,IF(A19="","",A19+1)) ->  | C19: =IF(Q11=2,1,IF(B19="","",B19+1)) ->  | D19: =IF(Q11=3,1,IF(C19="","",C19+1)) ->  | E19: =IF(Q11=4,1,IF(D19="","",D19+1)) ->  | F19: =IF(Q11=5,1,IF(E19="","",E19+1)) ->  | G19: =IF(Q11=6,1,IF(F19="","",F19+1)) -> 1 | I19: =IF(Q12=0,1,"") ->  | J19: =IF(Q12=1,1,IF(I19="","",I19+1)) ->  | K19: =IF(Q12=2,1,IF(J19="","",J19+1)) -> 1 | L19: =IF(Q12=3,1,IF(K19="","",K19+1)) -> 2 | M19: =IF(Q12=4,1,IF(L19="","",L19+1)) -> 3 | N19: =IF(Q12=5,1,IF(M19="","",M19+1)) -> 4 | O19: =IF(Q12=6,1,IF(N19="","",N19+1)) -> 5
A20: =G19+1 -> 2 | B20: =A20+1 -> 3 | C20: 4 | D20: 5 | E20: 6 | F20: 7 | G20: 8 | I20: =O19+1 -> 6 | J20: =I20+1 -> 7 | K20: 8 | L20: 9 | M20: 10 | N20: 11 | O20: 12 | P20: (高さ) | Q20: 行1：0.64cm
A21: =G20+1 -> 9 | B21: 10 | C21: 11 | D21: 12 | E21: 13 | F21: 14 | G21: 15 | I21: =O20+1 -> 13 | J21: 14 | K21: 15 | L21: 16 | M21: 17 | N21: 18 | O21: 19 | Q21: 行2〜行24：0.56cm
A22: =G21+1 -> 16 | B22: 17 | C22: 18 | D22: 19 | E22: 20 | F22: 21 | G22: 22 | I22: =O21+1 -> 20 | J22: 21 | K22: 22 | L22: 23 | M22: 24 | N22: 25 | O22: 26
A23: =G22+1 -> 23 | B23: =A23+1 -> 24 | C23: =IF(B23=31,"",IF(B23="","",B23+1)) -> 25 | D23: 26 | E23: 27 | F23: 28 | G23: 29 | I23: =O22+1 -> 27 | J23: =I23+1 -> 28 | K23: =IF(J23=30,"",IF(J23="","",J23+1)) -> 29 | L23: 30
A24: =IF(G23=31,"",IF(G23="","",G23+1)) -> 30 | B24: =IF(A24=31,"",IF(A24="","",A24+1)) -> 31 | I24: =IF(O23=30,"",IF(O23="","",O23+1)) ->  | J24: =IF(I24=30,"",IF(I24="","",I24+1)) -> 

Sheet 7-12月
A1: =入力部!J3&"年" -> 2021年 | P1: 計算部
A2: 7月 | I2: 8月 | P2: プリント年 | S2: うるう年2月日数判定
A3: =IF(Q7=0,1,"") ->  | B3: =IF(Q7=1,1,IF(A3="","",A3+1)) ->  | C3: =IF(Q7=2,1,IF(B3="","",B3+1)) ->  | D3: =IF(Q7=3,1,IF(C3="","",C3+1)) ->  | E3: =IF(Q7=4,1,IF(D3="","",D3+1)) -> 1 | F3: =IF(Q7=5,1,IF(E3="","",E3+1)) -> 2 | G3: =IF(Q7=6,1,IF(F3="","",F3+1)) -> 3 | I3: =IF(Q8=0,1,"") -> 1 | J3: =IF(Q8=1,1,IF(I3="","",I3+1)) -> 2 | K3: =IF(Q8=2,1,IF(J3="","",J3+1)) -> 3 | L3: =IF(Q8=3,1,IF(K3="","",K3+1)) -> 4 | M3: =IF(Q8=4,1,IF(L3="","",L3+1)) -> 5 | N3: =IF(Q8=5,1,IF(M3="","",M3+1)) -> 6 | O3: =IF(Q8=6,1,IF(N3="","",N3+1)) -> 7 | P3: =入力部!J3 -> 2021 | T3: =入力部!H17 -> 28
A4: =G3+1 -> 4 | B4: =A4+1 -> 5 | C4: 6 | D4: 7 | E4: 8 | F4: 9 | G4: 10 | I4: =O3+1 -> 8 | J4: =I4+1 -> 9 | K4: =J4+1 -> 10 | L4: =IF(K4<>10,K4+1,IF($P$3<2016," "&K4+1,K4+1)) -> 11 | M4: =IF(L4<>10,L4+1,IF($P$3<2016," "&L4+1,L4+1)) -> 12 | N4: =IF(M4<>10,M4+1,IF($P$3<2016," "&M4+1,M4+1)) -> 13 | O4: =IF(N4<>10,N4+1,IF($P$3<2016," "&N4+1,N4+1)) -> 14 | T4: =入力部!H18 -> 28
A5: =G4+1 -> 11 | B5: 12 | C5: 13 | D5: 14 | E5: 15 | F5: 16 | G5: 17 | I5: =O4+1 -> 15 | J5: =IF(I5<>10,I5+1,IF($P$3<2016," "&I5+1,I5+1)) -> 16 | K5: =IF(J5<>10,J5+1,IF($P$3<2016," "&J5+1,J5+1)) -> 17 | L5: =K5+1 -> 18 | M5: 19 | N5: 20 | O5: 21 | P5: 曜日判定
A6: =G5+1 -> 18 | B6: 19 | C6: 20 | D6: 21 | E6: 22 | F6: 23 | G6: 24 | I6: =O5+1 -> 22 | J6: =I6+1 -> 23 | K6: =J6+1 -> 24 | L6: 25 | M6: 26 | N6: 27 | O6: 28
A7: =G6+1 -> 25 | B7: =A7+1 -> 26 | C7: =IF(B7=31,"",IF(B7="","",B7+1)) -> 27 | D7: 28 | E7: 29 | F7: 30 | G7: 31 | I7: =O6+1 -> 29 | J7: =I7+1 -> 30 | K7: =J7+1 -> 31 | L7: =IF(K7=31,"",IF(K7="","",K7+1)) ->  | P7: 7月 | Q7: =ROUNDDOWN(MOD(T7,7),0) -> 4 | T7: =(P3)+ROUNDDOWN(((P3)/4),0)-ROUNDDOWN(((P3)/100),0)+ROUNDDOWN(((P3)/400),0)+ROUNDDOWN((2.6*(7)+1.6),0)+1 -> 2531
A8: =IF(G7=31,"",IF(G7="","",G7+1)) ->  | B8: =IF(A8=31,"",IF(A8="","",A8+1)) ->  | I8: =IF(O7=31,"",IF(O7="","",O7+1)) ->  | J8: =IF(I8=31,"",IF(I8="","",I8+1)) ->  | K8: =IF(J8=31,"",IF(J8="","",J8+1)) ->  | P8: 8月 | Q8: 0 | T8: =(P3)+ROUNDDOWN(((P3)/4),0)-ROUNDDOWN(((P3)/100),0)+ROUNDDOWN(((P3)/400),0)+ROUNDDOWN((2.6*(8)+1.6),0)+1 -> 2534
P9: 9月 | Q9: 3 | T9: =(P3)+ROUNDDOWN(((P3)/4),0)-ROUNDDOWN(((P3)/100),0)+ROUNDDOWN(((P3)/400),0)+ROUNDDOWN((2.6*(9)+1.6),0)+1 -> 2537
A10: 9月 | I10: 10月 | P10: 10月 | Q10: 5 | T10: =(P3)+ROUNDDOWN(((P3)/4),0)-ROUNDDOWN(((P3)/100),0)+ROUNDDOWN(((P3)/400),0)+ROUNDDOWN((2.6*(10)+1.6),0)+1 -> 2539 | W10: 9月
A11: =IF(ISBLANK(W11),"",W11) ->  | B11: =IF(ISBLANK(X11),"",X11) ->  | D11: 1 | E11: 2 | F11: 3 | G11: 4 | I11: =IF(Q10=0,1,"") ->  | J11: =IF(Q10=1,1,IF(I11="","",I11+1)) ->  | K11: =IF(Q10=2,1,IF(J11="","",J11+1)) ->  | L11: =IF(Q10=3,1,IF(K11="","",K11+1)) ->  | M11: =IF(Q10=4,1,IF(L11="","",L11+1)) ->  | N11: =IF(Q10=5,1,IF(M11="","",M11+1)) -> 1 | O11: =IF(Q10=6,1,IF(N11="","",N11+1)) -> 2 | P11: 11月 | Q11: 1 | T11: =(P3)+ROUNDDOWN(((P3)/4),0)-ROUNDDOWN(((P3)/100),0)+ROUNDDOWN(((P3)/400),0)+ROUNDDOWN((2.6*(11)+1.6),0)+1 -> 2542 | W11: =IF(Q9=0,1,"") ->  | X11: =IF(Q9=1,1,IF(W11="","",W11+1)) ->  | Y11: =IF(Q9=2,1,IF(X11="","",X11+1)) ->  | Z11: =IF(Q9=3,1,IF(Y11="","",Y11+1)) -> 1 | AA11: =IF(Q9=4,1,IF(Z11="","",Z11+1)) -> 2 | AB11: =IF(Q9=5,1,IF(AA11="","",AA11+1)) -> 3 | AC11: =IF(Q9=6,1,IF(AB11="","",AB11+1)) -> 4
A12: 5 | B12: 6 | C12: 7 | D12: 8 | E12: 9 | F12: 10 | G12: 11 | I12: =O11+1 -> 3 | J12: =I12+1 -> 4 | K12: =J12+1 -> 5 | L12: =K12+1 -> 6 | M12: 7 | N12: 8 | O12: 9 | P12: 12月 | Q12: 3 | T12: =(P3)+ROUNDDOWN(((P3)/4),0)-ROUNDDOWN(((P3)/100),0)+ROUNDDOWN(((P3)/400),0)+ROUNDDOWN((2.6*(12)+1.6),0)+1 -> 2544 | W12: =AC11+1 -> 5 | X12: =W12+1 -> 6 | Y12: 7 | Z12: 8 | AA12: 9 | AB12: 10 | AC12: 11
A13: 12 | B13: 13 | C13: 14 | D13: 15 | E13: 16 | F13: 17 | G13: 18 | I13: =O12+1 -> 10 | J13: =I13+1 -> 11 | K13: =J13+1 -> 12 | L13: 13 | M13: 14 | N13: 15 | O13: 16 | W13: =AC12+1 -> 12 | X13: 13 | Y13: 14 | Z13: 15 | AA13: 16 | AB13: 17 | AC13: 18
A14: 19 | B14: 20 | C14: =IF(ISBLANK(Y14),"",IF(Y14=$Q$14," "&Y14,IF(Z14=$Q$14," "&Y14,Y14))) -> 21 | D14: =IF(ISBLANK(Z14),"",IF(Z14=$Q$14," "&Z14,Z14)) -> 22 | E14: =IF(ISBLANK(AA14),"",IF(AA14=$Q$14," "&AA14,AA14)) -> 23 | F14: =IF(ISBLANK(AB14),"",IF(AB14=$Q$14," "&AB14,AB14)) -> 24 | G14: =IF(ISBLANK(AC14),"",IF(AC14=$Q$14," "&AC14,AC14)) -> 25 | I14: =O13+1 -> 17 | J14: =I14+1 -> 18 | K14: =J14+1 -> 19 | L14: 20 | M14: 21 | N14: 22 | O14: 23 | P14: 秋分日 | Q14: =入力部!L18 -> 23 | W14: =AC13+1 -> 19 | X14: 20 | Y14: 21 | Z14: 22 | AA14: 23 | AB14: 24 | AC14: 25
A15: 26 | B15: =IF(ISBLANK(X15),"",IF(X15=$Q$14," "&X15,X15)) -> 27 | C15: =IF(ISBLANK(Y15),"",Y15) -> 28 | D15: 29 | E15: 30 | I15: =O14+1 -> 24 | J15: =I15+1 -> 25 | K15: =IF(J15=31,"",IF(J15="","",J15+1)) -> 26 | L15: =IF(K15=31,"",IF(K15="","",K15+1)) -> 27 | M15: 28 | N15: 29 | O15: 30 | W15: =AC14+1 -> 26 | X15: =W15+1 -> 27 | Y15: =IF(X15=30,"",IF(X15="","",X15+1)) -> 28 | Z15: 29 | AA15: 30
B16: =IF(ISBLANK(X16),"",X16) ->  | I16: =IF(O15=31,"",IF(O15="","",O15+1)) -> 31 | J16: =IF(I16=31,"",IF(I16="","",I16+1)) ->  | K16: =IF(J16=31,"",IF(J16="","",J16+1)) ->  | W16: =IF(AC15=30,"",IF(AC15="","",AC15+1)) ->  | X16: =IF(W16=30,"",IF(W16="","",W16+1)) -> 
P17: セル幅・高さ設定
A18: 11月 | I18: 12月 | P18: (幅) | Q18: 列A〜O：0.56cm
A19: =IF(Q11=0,1,"") ->  | B19: =IF(Q11=1,1,IF(A19="","",A19+1)) -> 1 | C19: =IF(Q11=2,1,IF(B19="","",B19+1)) -> 2 | D19: =IF(Q11=3,1,IF(C19="","",C19+1)) -> 3 | E19: =IF(Q11=4,1,IF(D19="","",D19+1)) -> 4 | F19: =IF(Q11=5,1,IF(E19="","",E19+1)) -> 5 | G19: =IF(Q11=6,1,IF(F19="","",F19+1)) -> 6 | I19: =IF(Q12=0,1,"") ->  | J19: =IF(Q12=1,1,IF(I19="","",I19+1)) ->  | K19: =IF(Q12=2,1,IF(J19="","",J19+1)) ->  | L19: =IF(Q12=3,1,IF(K19="","",K19+1)) -> 1 | M19: =IF(Q12=4,1,IF(L19="","",L19+1)) -> 2 | N19: =IF(Q12=5,1,IF(M19="","",M19+1)) -> 3 | O19: =IF(Q12=6,1,IF(N19="","",N19+1)) -> 4
A20: =G19+1 -> 7 | B20: =A20+1 -> 8 | C20: 9 | D20: 10 | E20: 11 | F20: 12 | G20: 13 | I20: =O19+1 -> 5 | J20: =I20+1 -> 6 | K20: =J20+1 -> 7 | L20: =K20+1 -> 8 | M20: 9 | N20: 10 | O20: 11 | P20: (高さ) | Q20: 行1：0.64cm
A21: =G20+1 -> 14 | B21: 15 | C21: 16 | D21: 17 | E21: 18 | F21: 19 | G21: 20 | I21: =O20+1 -> 12 | J21: =I21+1 -> 13 | K21: =J21+1 -> 14 | L21: 15 | M21: 16 | N21: 17 | O21: 18 | Q21: 行2〜行24：0.56cm
A22: =G21+1 -> 21 | B22: 22 | C22: 23 | D22: 24 | E22: 25 | F22: 26 | G22: 27 | I22: =O21+1 -> 19 | J22: =I22+1 -> 20 | K22: =J22+1 -> 21 | L22: 22 | M22: 23 | N22: 24 | O22: 25
A23: =G22+1 -> 28 | B23: =A23+1 -> 29 | C23: =IF(B23=30,"",IF(B23="","",B23+1)) -> 30 | I23: =O22+1 -> 26 | J23: =I23+1 -> 27 | K23: =IF(J23=31,"",IF(J23="","",J23+1)) -> 28 | L23: =IF(K23=31,"",IF(K23="","",K23+1)) -> 29 | M23: 30 | N23: 31
A24: =IF(G23=30,"",IF(G23="","",G23+1)) ->  | B24: =IF(A24=30,"",IF(A24="","",A24+1)) ->  | I24: =IF(O23=31,"",IF(O23="","",O23+1)) ->  | J24: =IF(I24=31,"",IF(I24="","",I24+1)) ->  | K24: =IF(J24=31,"",IF(J24="","",J24+1)) -> 

Sheet 祝日資料
